Workbook

Sheet Home
Q1: ColH | R1: ColHSub | S1: DisplayLevel | T1: UsableSheet | U1: VisibleSheet | V1: FirstVisit | W1: FirstCell | X1: EnableSelection
S2: -1 | T2: TRUE | U2: TRUE | V2: FALSE | W2: =$D$6 -> *** You must enable macros for this calculator to function properly. *** | X2: xlUnlockedCells
C4: Cisco Access Switching ROI Calculator
D6: *** You must enable macros for this calculator to function properly. ***
B21: This Cisco Access Switching ROI Benefits Calculator quantifies the potential benefits that can result from implementing an enterprise network with with Cisco Catalyst Access switches 4K, 3K and 2K series. All of Cisco Catalyst Access Switches enable savings through features like ease of operations, low power consumption, energy savings on network devices, and longevity. Cisco Catalyst 4K and 3K provide additional savings through high availability, and borderless network features like security and video. Deploying Cisco Catalyst access switches ensures the network is future proofed and accommodates the ever changing needs of your business. | H21: Cisco commissioned Forrester Consulting to develop this calculator. See the Methodology, Disclaimer, and Disclosures section for more information.

Sheet Info
R1: ColH | S1: ColHSub | T1: DisplayLevel | U1: CurrencyRange | V1: InputAdr | W1: ResetDefault | X1: UsableSheet | Y1: VisibleSheet | Z1: FirstVisit | AA1: FirstCell | AB1: EnableSelection | AG1: SheetTitle
T2: -1 | X2: TRUE | Y2: TRUE | Z2: FALSE | AA2: =$G$13 -> John Doe | AB2: xlUnlockedCells | AG2: General Information
R3: =varHeader&1 -> H1 | S3: =ForrBeginChar -> + | T3: -1
C4: =varToolTitle -> Cisco Access Switching ROI Calculator | P4: Key:
P5: Input
C6: =$AG$2 -> General Information | P6: Suggested
P7: Calculated
R8: =varHeader&1 -> H1 | S8: =ForrEndChar -> - | T8: -1
A10: Contact Details
B11: Please specify the creator and recipient of this analysis.
B13: Completed By: | D13: Contact Name: | G13: John Doe
D14: Company | G14: Cisco
D15: Telephone: | G15: 800-222-1211
D16: Email Address: | G16: jdoe@cisco.com
B18: Completed For: | D18: Client Contact Name: | G18: John Smith
D19: Client Organization Name: | G19: XYZ Organization
D20: Client Telephone: | G20: 800-222-1212
D21: Client Email Address: | G21: smith@sample.com
G22: E-mail address solely for the purpose of sending a report based upon inputs provided.
A24: ="Information about "&G19 -> Information about XYZ Organization
B25: Please indicate the composition of the organization:
B27: Number of employees. | F27: 2500
B29: Normal hours of operation. | F29: 8x5 | G29: = | H29: =VLOOKUP($F$29,Hours_of_OperationArray,2,FALSE) -> 40 | I29: hours per week
B31: Number of laptops. | F31: =$G$31 -> 1000 | G31: =0.4*varEmployees -> 1000 | H31: (Suggested value is 40% of number of employees.) | V31: =CONCATENATE("I=",CELL("address",F31),";D=",CELL("Address",G31),";") -> I=$F$31;D=$G$31; | W31: =0.4*varEmployees -> 1000
B33: Number of desktops. | F33: =$G$33 -> 1625 | G33: =(0.6*varEmployees)+(0.05*varEmployees) -> 1625 | H33: (Suggested value is 60% of number of employees plus 5% for extra PCs.) | V33: =CONCATENATE("I=",CELL("address",F33),";D=",CELL("Address",G33),";") -> I=$F$33;D=$G$33; | W33: =(0.6*varEmployees)+(0.05*varEmployees) -> 1625
B35: Number of IP phones. | F35: =$G$35 -> 2750 | G35: =1.1*varEmployees -> 2750 | H35: (Suggested value is 1 phone per employee plus 10% additional phones in conference rooms, break rooms, etc.) | V35: =CONCATENATE("I=",CELL("address",F35),";D=",CELL("Address",G35),";") -> I=$F$35;D=$G$35; | W35: =1.1*varEmployees -> 2750
B37: Number of wireless access points. | F37: =$G$37 -> 250 | G37: =varEmployees/10 -> 250 | H37: (Suggested value is 10 users per access point.) | V37: =CONCATENATE("I=",CELL("address",F37),";D=",CELL("Address",G37),";") -> I=$F$37;D=$G$37; | W37: =varEmployees/10 -> 250
B39: Number of ports for Peripheral Devices - Printers, Telepresence, Security Camera's etc. | F39: =$G$39 -> 163 | G39: =ROUNDUP(0.1*F33,0) -> 163 | H39: (Suggested value is 10% of total destop ports.) | V39: =CONCATENATE("I=",CELL("address",F39),";D=",CELL("Address",G39),";") -> I=$F$39;D=$G$39; | W39: =ROUNDUP(0.1*F33,0) -> 163
B41: Total number of ports. | F41: =F31+F33+F35+F37+F39 -> 5788 | H41: (Laptops + Desktops + IP phones + Access Points + Peripheral devices)
B43: Number of IT Full Time Employees (FTEs) supporting the network. | F43: =$G$43 -> 3 | G43: =ROUNDUP(varEmployees/1000,0) -> 3 | H43: The number of FTEs for the network is dependant on a number of IT and business factors. The suggested value is a guideline and is not based on industry data. Please enter the number of FTEs that support your network. | V43: =CONCATENATE("I=",CELL("address",F43),";D=",CELL("Address",G43),";") -> I=$F$43;D=$G$43; | W43: =G43 -> 3
B45: Industry | F45: Consumer products manufacturing (consumer packaged goods, pharma/biotech, etc.)
A47: Currency | T47: -1
T48: -1
B49: Currency | F49: US Dollar (USD) | T49: -1
T50: -1
B51: ="Exchange Rate to " &F49 -> Exchange Rate to US Dollar (USD) | F51: =varExchangeRate -> 1 | H51: The exchange rate information can be changed from the Settings page. | T51: -1
T52: -1
A53: Assumptions
B55: The following values drive some calculations. These values should only be changed if an organization's cost structures are widely different.
B56: The salary information can be changed in the Settings page.
E58: Annual Salary | F58: Annual Salary Suggested | G58: Fully Loaded Salary | H58: Fully Loaded Hourly Rate
B59: IT staff | E59: =F59 -> 75000 | F59: =Settings!$G$39 -> 75000 | G59: =E59*(1+Settings!$J$39) -> 101250 | H59: =ROUND(G59/Settings!$F$44,2) -> 48.68 | I59: IT staff hourly rate. | U59: =CELL("address",E59)&":"&CELL("Address",H59) -> $E$59:$H$59 | V59: =CONCATENATE("I=",CELL("address",E59),";") -> I=$E$59; | W59: =F59 -> 75000
B60: Help desk staff | E60: =F60 -> 60000 | F60: =Settings!$H$39 -> 60000 | G60: =E60*(1+Settings!$J$39) -> 81000 | H60: =ROUND(G60/Settings!$F$44,2) -> 38.94 | I60: Help desk staff hourly rate. | U60: =CELL("address",E60)&":"&CELL("Address",H60) -> $E$60:$H$60 | V60: =CONCATENATE("I=",CELL("address",E60),";") -> I=$E$60; | W60: =F60 -> 60000
B61: General staff | E61: =F61 -> 100000 | F61: =Settings!$I$39 -> 100000 | G61: =E61*(1+Settings!$J$39) -> 135000 | H61: =ROUND(G61/Settings!$F$44,2) -> 64.9 | I61: General staff hourly rate. | U61: =CELL("address",E61)&":"&CELL("Address",H61) -> $E$61:$H$61 | V61: =CONCATENATE("I=",CELL("address",E61),";") -> I=$E$61; | W61: =F61 -> 100000

Sheet Costs
R1: ColH | S1: ColHSub | T1: DisplayLevel | U1: Desc | V1: ITBU | W1: CAPOPEX | X1: InputAdr | Y1: CurrencyRange | Z1: InpValue | AB1: UsableSheet | AC1: VisibleSheet | AD1: FirstVisit | AE1: FirstCell | AF1: EnableSelection | AG1: SheetTitle
T2: -1 | AB2: TRUE | AC2: TRUE | AD2: FALSE | AE2: =pf -> 3750X | AF2: xlUnlockedCells | AG2: Incremental Costs
R3: =varHeader&1 -> H1 | S3: =ForrBeginChar -> + | T3: -1
C4: =varToolTitle -> Cisco Access Switching ROI Calculator | P4: Key:
P5: Input
C6: =$AG$2 -> Incremental Costs | P6: Suggested
P7: Calculated
R8: =varHeader&1 -> H1 | S8: =ForrEndChar -> - | T8: -1
R10: =varSummary -> S | S10: =ForrBeginChar -> + | T10: -1
A11: Summary of Costs | T11: 1
T12: 1
T13: 1
R14: =varSummary&varChart -> SChart | S14: =ForrBeginChar -> +
F20: TRUE
R32: =varSummary&varChart -> SChart | S32: =ForrEndChar -> -
R33: =varCost&varSummary&varEquation&varOriginal -> CSEO | S33: =ForrBeginChar -> + | T33: -1
B34: =CONCATENATE("Cash Flows - ", $AG$2) -> Cash Flows - Incremental Costs | N34: Breakdown
B35: Category | E35: =IF(R35=varBenefit&varSummary&varTitle,"","Initial") -> Initial | F35: Year 1 | G35: Year 2 | H35: Year 3 | I35: Year 4 | J35: Year 5 | K35: Total | L35: Present Value | N35: % Total | O35: CAPEX | P35: OPEX | R35: =varCost&varSummary&varTitle -> CSTitle
B36: =$A$44 -> Incremental Hardware Costs (switches including stacking) | E36: =$M$77 -> 243815 | F36: 0 | G36: 0 | H36: 0 | I36: 0 | J36: 0 | K36: =SUM(E36:J36) -> 243815 | L36: =E36+NPV(varDiscountRate,F36:J36) -> 243815 | N36: =IF($L$38=0,"----",L36/$L$38) -> 0.9606012253 | O36: =IF(W36=varCAPEX,L36,"") -> 243815 | P36: =IF(W36=varOPEX,L36,"") ->  | R36: =varCost&varSummary&varEquation&varOriginal -> CSEO | T36: =$T$73 -> 1 | V36: =$V$73 -> IT | W36: =$W$73 -> CAPEX | Y36: =CONCATENATE(CELL("address",E36),":",CELL("address",L36)) -> $E$36:$L$36
B37: =$A$81 -> Software Costs | E37: =$M$85 -> 10000 | F37: 0 | G37: 0 | H37: 0 | I37: 0 | J37: 0 | K37: =SUM(E37:J37) -> 10000 | L37: =E37+NPV(varDiscountRate,F37:J37) -> 10000 | N37: =IF($L$38=0,"----",L37/$L$38) -> 0.0393987747 | O37: =IF(W37=varCAPEX,L37,"") -> 10000 | P37: =IF(W37=varOPEX,L37,"") ->  | R37: =varCost&varSummary&varEquation&varOriginal -> CSEO | T37: =$T$85 -> 1 | V37: =$V$85 -> IT | W37: =$W$85 -> CAPEX | Y37: =CONCATENATE(CELL("address",E37),":",CELL("address",L37)) -> $E$37:$L$37
B38: Total | E38: =SUM(E36:E37) -> 253815 | F38: 0 | G38: 0 | H38: 0 | I38: 0 | J38: 0 | K38: 253815 | L38: 253815 | O38: =SUM(O36:O37) -> 253815 | P38: =SUM(P36:P37) -> 0 | R38: =varCost&varSummary&varEquation&varOriginal&varTotal -> CSEOT | Y38: =CONCATENATE(CELL("address",E38),":",CELL("address",L38)) -> $E$38:$L$38
B39: ="Confidence adjustment (" & varConfidenceLevel &")" -> Confidence adjustment (Low) | E39: =IF(R39=varBenefit,varRiskB,varRiskC) -> 1.083333333 | R39: =varCost -> C
B40: Total (Risk Adjusted) | E40: =E38*$E39 -> 274966.25 | F40: 0 | G40: 0 | H40: 0 | I40: 0 | J40: 0 | K40: =SUM(E40:J40) -> 274966.25 | L40: =E40+NPV(varDiscountRate,F40:J40) -> 274966.25 | O40: =O38*E39 -> 274966.25 | P40: =P38*E39 -> 0 | R40: =varCost&varSummary&varEquation&varRisk&varTotal -> CSERT | Y40: =CONCATENATE(CELL("address",E40),":",CELL("address",L40)) -> $E$40:$L$40
R41: =varCost&varSummary&varEquation&varOriginal -> CSEO | S41: =ForrEndChar -> - | T41: -1
R43: =varCost&varBenefit -> CB | S43: =ForrBeginChar -> + | T43: -1 | U43: =varCost -> C
A44: Incremental Hardware Costs (switches including stacking) | R44: =varTitle -> Title | T44: 1 | X44: =CONCATENATE("Q=",CELL("address",A44),";") -> Q=$A$44;
T45: 1 | U45: c1
B46: Product family required. | G46: 3750X | R46: =varInput -> Inp | T46: 1 | U46: c2 | X46: =CONCATENATE("Q=",CELL("address",B46),";I=",CELL("address",G46),";Reset=3750X;") -> Q=$B$46;I=$G$46;Reset=3750X;
B47: Check if 48 ports required (default is 24 ports). | F47: FALSE | G47: TRUE | I47: Check if 48. Leave BLANK if 24/12/8 ports | R47: Inp | T47: 1 | U47: c3 | X47: =CONCATENATE("Q=",CELL("address",B47),";I=",CELL("address",G47),";Reset=TRUE;") -> Q=$B$47;I=$G$47;Reset=TRUE;
B48: PoE Power | G48: TRUE | I48: Check if PoE required | R48: Inp | T48: 1 | U48: c4 | X48: =CONCATENATE("Q=",CELL("address",B48),";I=",CELL("address",G48),";Reset=TRUE;") -> Q=$B$48;I=$G$48;Reset=TRUE;
B49: Stackwise/Stacking | G49: FALSE | I49: Check if Stacking is required (3750, 2960S only) | R49: Inp | T49: 1 | U49: c5 | X49: =CONCATENATE("Q=",CELL("address",B49),";I=",CELL("address",G49),";Reset=FALSE;") -> Q=$B$49;I=$G$49;Reset=FALSE;
B50: Check if GE is required | G50: TRUE | I50: Unchecked will mean Fast Ethernet (FE) | R50: Inp | T50: 1 | U50: c6=c4*c5 | X50: =CONCATENATE("Q=",CELL("address",B50),";I=",CELL("address",G50),";Reset=TRUE;") -> Q=$B$50;I=$G$50;Reset=TRUE;
B51: 10 GE Uplinks | G51: TRUE | I51: Unchecked will mean 10GE uplink is not required | R51: Inp | T51: 1 | U51: c7 | X51: =CONCATENATE("Q=",CELL("address",B51),";I=",CELL("address",G51),";Reset=TRUE;") -> Q=$B$51;I=$G$51;Reset=TRUE;
B52: Select the Software Image for Product Family selected. | C52: IP Base | G52: IP Base | I52: LAN Lite/Base for 2K, LAN Base/IP Base/IP Services for 3K | R52: Inp | T52: 1 | U52: c8 | X52: =CONCATENATE("Q=",CELL("address",B52),";I=",CELL("address",G52),";Reset=IP Base;") -> Q=$B$52;I=$G$52;Reset=IP Base;
B53: POSSIBLE SKU's Based on Above Inputs. | G53: WS-C3750X-48P-S | I53: Select One SKU for TCO calculations. SKU with "F" is with Full PoE | R53: Inp | T53: 1 | U53: c9 | X53: =CONCATENATE("Q=",CELL("address",B53),";I=",CELL("address",G53),";") -> Q=$B$53;I=$G$53;
B54: Know the SKU? Just Paste SKU here (supercedes the SKU above). | I54: Option: Paste the SKU directly if you know the exact SKU you want instead | R54: Inp | T54: 1 | U54: c10 | X54: Q=$B$54;I=$G$54;
B55: =CONCATENATE(UPPER(IF(LEN(TRIM(G54))=0,G53,G54)), " Selling List Price") -> WS-C3750X-48P-S Selling List Price | G55: =(VLOOKUP(UPPER(IF(LEN(TRIM(G54))=0,G53,G54)),'All Options'!J15:N130,5,FALSE))*varExchangeRate -> 13000 | R55: =varCalculation -> Calc | T55: 1 | U55: c11=(c9 or c10 list price) | X55: =CONCATENATE("Q=",CELL("address",B55),";C=",CELL("address",G55),";") -> Q=$B$55;C=$G$55; | Y55: =CELL("address",G55) -> $G$55
B56: Total Quantity of the SKU required (Please | C56: 100 | G56: =$I$56 -> 121 | I56: =ROUNDUP(Info!F41/IF(G47=FALSE,24,48),0) -> 121 | K56: Enter the number of SKU's required based on customer needs and ports required. The default is the total number of ports (provided on the Info page) divided by the number of ports per switch (24 or 48). | R56: =varInput -> Inp | T56: 1 | U56: c12 | X56: =CONCATENATE("Q=",CELL("address",B56),";I=",CELL("address",G56),";D=",CELL("address",I56),";") -> Q=$B$56;I=$G$56;D=$I$56;
B57: =CONCATENATE("Total cost of ", G56, " quantity of ", G53) -> Total cost of 121 quantity of WS-C3750X-48P-S | M57: =G55*Qty_1 -> 1573000 | R57: =varCalculation -> Calc | T57: 1 | U57: c13=c11*c12 | X57: =CONCATENATE("Q=",CELL("address",B57),";C=",CELL("address",G57),";") -> Q=$B$57;C=$G$57; | Y57: =CELL("address",M57) -> $M$57
T58: 1
B59: Stacking: | T59: 1
B60: Number of switches per stack | G60: 4 | R60: =varInput -> Inp | T60: 1 | U60: c14 | X60: =CONCATENATE("Q=",CELL("address",B60),";I=",CELL("address",G60),";Reset=4;") -> Q=$B$60;I=$G$60;Reset=4;
B61: Number of stacks | C61: 100 | G61: =ROUNDUP(IF(G49,G56/G60,0),0) -> 0 | R61: =varCalculation -> Calc | T61: 1 | U61: c15=c12/c14 | X61: =CONCATENATE("Q=",CELL("address",B61),";C=",CELL("address",G61),";") -> Q=$B$61;C=$G$61;
B62: Extra cost of stacking | C62: 100 | G62: =IF(MATCH(pf,product_family_new,0)=4,$G$61*$G$60*'All Options'!$N$104,0) -> 0 | I62: If 2960S-4 Flexstack modules per stack. IF 3750 then there is no extra cost for stacking. | R62: =varCalculation -> Calc | T62: 1 | U62: c16=c14*c15 | X62: =CONCATENATE("Q=",CELL("address",B62),";C=",CELL("address",G62),";") -> Q=$B$62;C=$G$62;
B63: Extra cost of network modules | C63: 100 | G63: =IF(OR(MATCH(pf,product_family_new,0)=2,MATCH(pf,product_family_new,0)=3,MATCH(pf,product_family_new,0)=5,MATCH(pf,product_family_new,0)=6),IF(UL,'All Options'!$N$129,'All Options'!$N$128)*Qty_1,0) -> 302500 | I63: For 3K, we have to add network modules based on the UL (10G/1G). | R63: =varCalculation -> Calc | T63: 1 | U63: c17 | X63: =CONCATENATE("Q=",CELL("address",B63),";C=",CELL("address",G63),";") -> Q=$B$63;C=$G$63; | Y63: =CELL("address",G63) -> $G$63
B64: Total extra cost (over SLP) | M64: =SUM(G62:H63) -> 302500 | R64: =varCalculation -> Calc | T64: 1 | U64: c18=c16+c17 | X64: =CONCATENATE("Q=",CELL("address",B64),";C=",CELL("address",M64),";") -> Q=$B$64;C=$M$64; | Y64: =CELL("address",M64) -> $M$64
T65: 1
B66: Hardware subtotal. | M66: =M57+M64 -> 1875500 | R66: =varCalculation -> Calc | T66: 1 | U66: c19=c13+c18 | X66: =CONCATENATE("Q=",CELL("address",B66),";C=",CELL("address",M66),";") -> Q=$B$66;C=$M$66; | Y66: =CELL("address",M66) -> $M$66
T67: 1
T68: 1
B69: Total discount (percentage). | M69: =$N$69 -> 0.35 | N69: 0.35 | R69: =varInput -> Inp | T69: 1 | U69: c20 | X69: =CONCATENATE("Q=",CELL("address",B69),";I=",CELL("address",M69),";D=",CELL("address",N69),";") -> Q=$B$69;I=$M$69;D=$N$69;
T70: -1
B71: Total discount. | M71: =M66*M69*-1 -> -656425 | R71: =varCalculation -> Calc | T71: -1 | U71: c21=c19*c20 | X71: =CONCATENATE("Q=",CELL("address",B71),";C=",CELL("address",M71),";") -> Q=$B$71;C=$M$71; | Y71: =CELL("address",M71) -> $M$71
T72: 1
B73: Total hardware costs (switches). | M73: =M57+M64+M71 -> 1219075 | R73: =varCalculation -> Calc | T73: 1 | U73: c22=c19+c21 | V73: =varBenefitsIT -> IT | W73: =varCAPEX -> CAPEX | X73: =CONCATENATE("Q=",CELL("address",B73),";C=",CELL("address",M73),";") -> Q=$B$73;C=$M$73; | Y73: =CELL("address",M73) -> $M$73
T74: 1
B75: Premium above non-Catalyst switches. | M75: =$N$75 -> 0.2 | N75: 0.2 | R75: =varInput -> Inp | T75: 1 | U75: c20 | X75: =CONCATENATE("Q=",CELL("address",B75),";I=",CELL("address",M75),";D=",CELL("address",N75),";") -> Q=$B$75;I=$M$75;D=$N$75;
T76: 1
B77: Incremental cost above non-Catalyst switches. | M77: =M73*M75 -> 243815 | R77: =varTotal&varCalculation -> TCalc | T77: 1 | U77: c22=c19+c21 | V77: =varBenefitsIT -> IT | W77: =varCAPEX -> CAPEX | X77: =CONCATENATE("Q=",CELL("address",B77),";C=",CELL("address",M77),";") -> Q=$B$77;C=$M$77; | Y77: =CELL("address",M77) -> $M$77
T78: 1
R79: =varCost&varBenefit -> CB | S79: =ForrEndChar -> - | T79: -1 | U79: =varCost -> C
R80: =varCost&varBenefit -> CB | S80: =ForrBeginChar -> + | T80: -1 | U80: =varCost -> C
A81: Software Costs | R81: =varTitle -> Title | T81: 1 | X81: =CONCATENATE("Q=",CELL("address",A81),";") -> Q=$A$81;
T82: 1
B83: Are you going to use (and buy) LMS for network management? | H83: Yes | R83: =varInput -> Inp | T83: 1 | U83: c26 | X83: =CONCATENATE("Q=",CELL("address",B83),";I=",CELL("address",H83),";Reset=Yes;") -> Q=$B$83;I=$H$83;Reset=Yes;
T84: 1
B85: Total software license costs. | M85: =IF(H83="Yes",IF(Info!F41>10000,30000,10000),0) -> 10000 | R85: =varTotal&varCalculation -> TCalc | T85: 1 | U85: c27 | V85: =varBenefitsIT -> IT | W85: =varCAPEX -> CAPEX | X85: =CONCATENATE("Q=",CELL("address",B85),";I=",CELL("address",M85),";C=",CELL("address",M85),";") -> Q=$B$85;I=$M$85;C=$M$85; | Y85: =CELL("address",M85) -> $M$85
T86: 1
R87: =varCost&varBenefit -> CB | S87: =ForrEndChar -> - | T87: -1 | U87: =varCost -> C
R88: =varCost&varBenefit -> CB | S88: =ForrBeginChar -> + | T88: -1 | U88: =varCost -> C
A89: Implementation and configuration fees | R89: =varTitle -> Title | T89: 1 | X89: =CONCATENATE("Q=",CELL("address",A89),";") -> Q=$A$89;
T90: 1
B91: Number of switches | M91: =G56 -> 121 | R91: =varCalculation -> Calc | T91: 1 | U91: v1 | X91: =CONCATENATE("Q=",CELL("address",B91),";C=",CELL("address",M91),";") -> Q=$B$91;C=$M$91; | Y91: =CELL("address",M91) -> $M$91
T92: 1
B93: Cost to implement and configure per switch. | M93: =$N$93 -> 938 | N93: 938 | R93: =varInput -> Inp | T93: 1 | U93: v2 | X93: =CONCATENATE("Q=",CELL("address",B93),";I=",CELL("address",M93),";D=",CELL("address",N93),";") -> Q=$B$93;I=$M$93;D=$N$93; | Y93: =CONCATENATE(CELL("address",M93),":",CELL("address",N93)) -> $M$93:$N$93
T94: 1
B95: Total implementation and configuration fees. These fees are the baseline for installing non-Catalyst switches. | M95: =M91*M93 -> 113498 | R95: =varCalculation -> Calc | T95: 1 | U95: v3=v1*v3 | V95: =varBenefitsIT -> IT | W95: =varCAPEX -> CAPEX | X95: =CONCATENATE("Q=",CELL("address",B95),";C=",CELL("address",M95),";") -> Q=$B$95;C=$M$95; | Y95: =CELL("address",M95) -> $M$95
T96: 1
R97: =varCost&varBenefit -> CB | S97: =ForrEndChar -> - | T97: -1 | U97: =varCost -> C

Sheet Summary
R1: ColH | S1: ColHSub | T1: DisplayLevel | U1: InputAdr | V1: ITBU | W1: InputValue | X1: X | Y1: CurrencyRange | Z1: UsableSheet | AA1: VisibleSheet | AB1: FirstVisit | AC1: FirstCell | AD1: EnableSelection | AG1: SheetTitle
T2: -1 | Z2: TRUE | AA2: TRUE | AB2: FALSE | AD2: xlNoSelection | AG2: Summary Results
R3: =varHeader&2 -> H2 | S3: =ForrBeginChar -> + | T3: -1
C4: =varToolTitle -> Cisco Access Switching ROI Calculator | P4: Key:
P5: Input
C6: =$AG$2 -> Summary Results | P6: Suggested
I7: Select Service Benefits | P7: Calculated
R8: =varHeader&2 -> H2 | S8: =ForrEndChar -> - | T8: -1
D9: Please use the "Select Service Benefits" drop down menu above for modifications or click "Next" | R9: ="Report"&varTitle -> ReportTitle
R10: =varTotal&varSummary&ForrBeginChar -> TS+
B11: Learn about risk adjustments
R12: =varSummary&varTotal&varChart -> STChart | S12: =ForrBeginChar -> +
B13: Scenario:
C14: =CONCATENATE("Cisco SKU: ",pf,", ",pfImage,", ",IF(Costs!G48=TRUE,"PoE",""),", ",IF(Costs!G47=TRUE,"48","12 or less")," ports (",IF(Costs!G54>"",Costs!G54,pfSKU),")") -> Cisco SKU: 3750X, IP Base, PoE, 48 ports (WS-C3750X-48P-S)
C15: =CONCATENATE("Customer Network: ",varEmployees," users, ",Info!F41," end devices;", NumNetworkFTEs," FTE IT Staff") -> Customer Network: 2500 users, 5788 end devices;3 FTE IT Staff
K17: Financial Analysis Summary (5-year analysis, risk adjusted)
K18: Return on Investment (ROI) | N18: =$L$75 -> 1.350377282 | R18: =varSummary&varTotal&varROI -> STROI
K19: Payback Period (months) | N19: =$L$76 -> 21 | R19: =varSummary&varTotal&varPayback -> STPb
K20: Total Costs (PV) | N20: =$L$71 -> -274966.25 | R20: =varSummary&varTotal&varCost&varTotal&varSummary&varEquation&varRisk&varTotal -> STCTSERT | Y20: =CELL("address",N20) -> $N$20
K21: Total Benefits (PV) | N21: =$L$72 -> 646274.4273 | R21: =varSummary&varTotal&varBenefit&varTotal&varSummary&varEquation&varRisk&varTotal -> STBTSERT | Y21: =CELL("address",N21) -> $N$21
K22: Total (NPV) | N22: =$L$73 -> 371308.1773 | R22: =varSummary&varTotal&varSummary&varEquation&varRisk -> STSER | Y22: =CELL("address",N22) -> $N$22
K23: The ROI is calculated ONLY on the premium price paid for and value received from Catalyst switches.
R35: =varSummary&varTotal&varChart -> STChart | S35: =ForrEndChar -> -
U37: =CONCATENATE("I=",CELL("address",W37),";Reset=TRUE;") -> I=$W$37;Reset=TRUE; | W37: TRUE
R39: D | S39: =ForrBeginChar -> + | T39: -1
B40: Select the areas that will be included in the analysis. For a realistic analysis, at least 3 areas should be selected. For any benefit category in the areas, change the default value(s) to 0 to exclude it from the analysis. | R40: D | T40: =IF($W$38=TRUE,1,0) -> 0
B41: Area | N41: Include in analysis? | R41: D | T41: =IF($W$38=TRUE,1,0) -> 0
B42: Energy: Cisco Catalyst switches provide PoE, UPOE along with solutions to lower power consumption and measurable energy efficiency. Cisco EnergyWise is an innovative technology for company-wide energy management. Sustainability is a key advantage with Cisco Access switches. | N42: TRUE | R42: D | T42: 0 | U42: =CONCATENATE("Q=",CELL("address",B42),",I=",CELL("address",N42),";Reset=TRUE;") -> Q=$B$42,I=$N$42;Reset=TRUE; | AA42: =#REF! ->  | AB42: =varNo -> No | AC42: =Summary!$A$1 -> 0 | AD42: =Security!$A$1 -> 0
B43: Security: Cisco access switches provide end-to-end security using TrustSec to secure networks with policy-based access control while using MACsec for hardware encryption. Lower TCO results from threat intelligence capabilities, lower incidents, and compliance. | N43: TRUE | R43: D | T43: 0 | U43: =CONCATENATE("Q=",CELL("address",B43),",I=",CELL("address",N43),";Reset=TRUE;") -> Q=$B$43,I=$N$43;Reset=TRUE; | AC43: =Summary!$A$1 -> 0 | AD43: =#REF! -> 
B44: Catalyst SmartOperations: SmartOperations features include our planning/deployment and monitoring/troubleshooting tools. Planning/deployment includes tools such as Smart Install, Auto-smart ports that helps automate intial switch installation/configurations as well as deployments, moving, additions and changes for both switches and endpoints. Post deployment, free intuitive GUI simplifies operational tasks and compliments the powerful CLI for better monitoring/troubleshooting of your network. Also, Cisco Catalyst Access switches’ Medianet features make it easy to deploy video and other business critical applications that have stringent delay, jitter and loss budgets. This is done through built-in free tools for network assessment, monitoring and troubleshooting. | N44: TRUE | R44: D | T44: 0 | U44: =CONCATENATE("Q=",CELL("address",B44),",I=",CELL("address",N44),";Reset=TRUE;") -> Q=$B$44,I=$N$44;Reset=TRUE;
B45: High Availability: Redundant fan, power and high availability features like StackWise, StackWise Plus, StackPower keep the network up during failures. Rolling Stack upgrade on Cat 3k ensure zero downtime during upgrades for endpoints with redundant connections to the stack. | N45: TRUE | R45: D | T45: 0 | U45: =CONCATENATE("Q=",CELL("address",B45),",I=",CELL("address",N45),";Reset=TRUE") -> Q=$B$45,I=$N$45;Reset=TRUE | AA45: =Security!#REF! ->  | AB45: =varNo -> No
B46: Refresh Cycles: Cisco's focus to protect network investment makes a 6-8 year lifecycle for Cisco access switches versus Industry average being 4-5 years. This includes hot swappable uplink modules to upgrade from Gig to 10Gig, field replacable fans and power supplies, and IPv6 readiness. | N46: TRUE | R46: D | T46: 0 | U46: =CONCATENATE("Q=",CELL("address",B46),",I=",CELL("address",N46),";Reset=TRUE;") -> Q=$B$46,I=$N$46;Reset=TRUE;
R47: D | S47: =ForrEndChar -> - | T47: -1
B66: Currency: | C66: =varCurrency -> US Dollar (USD)
R68: =varTotal&varSummary&varEquation&varRisk -> TSER | S68: =ForrBeginChar -> + | T68: -1
B69: Total Cash Flows
B70: Category | E70: Initial | F70: Year 1 | G70: Year 2 | H70: Year 3 | I70: Year 4 | J70: Year 5 | K70: Total | L70: Present Value
B71: Total Costs | E71: =$E$94*-1 -> -274966.25 | F71: =$F$94*-1 -> 0 | G71: =$G$94*-1 -> 0 | H71: =$H$94*-1 -> 0 | I71: =$I$94*-1 -> 0 | J71: =$J$94*-1 -> 0 | K71: =$K$94*-1 -> -274966.25 | L71: =$L$94*-1 -> -274966.25 | R71: =varTotal&varCost&varTotal&varSummary&varEquation&varRisk&varTotal -> TCTSERT | Y71: =CONCATENATE(CELL("address",E71),":",CELL("address",L71)) -> $E$71:$L$71
B72: Total Benefits | E72: =$E$87 -> 111047.75 | F72: =$F$87 -> 111929.3867 | G72: =$G$87 -> 70224.31792 | H72: =$H$87 -> 70224.31792 | I72: =$I$87 -> 70224.31792 | J72: =$J$87 -> 442425.3596 | K72: =$K$87 -> 876075.45 | L72: =$L$87 -> 646274.4273 | R72: =varTotal&varBenefit&varTotal&varSummary&varEquation&varRisk&varTotal -> TBTSERT | Y72: =CONCATENATE(CELL("address",F72),":",CELL("address",L72)) -> $F$72:$L$72
B73: ="Total ("&IF(ISERROR(FIND(varOriginal,R68,1))=FALSE,"Original","Risk Adjusted")&")" -> Total (Risk Adjusted) | E73: =SUM(E71:E72) -> -163918.5 | F73: 111929.3867 | G73: 70224.31792 | H73: 70224.31792 | I73: 70224.31792 | J73: 442425.3596 | K73: 601109.2 | L73: 371308.1773 | R73: =varTotal&varSummary&varEquation&varRisk -> TSER | Y73: =CONCATENATE(CELL("address",E73),":",CELL("address",L73)) -> $E$73:$L$73
B74: Running Total | E74: =SUM($E73:E73) -> -163918.5 | F74: =SUM($E73:F73) -> -51989.11333 | G74: =SUM($E73:G73) -> 18235.20458 | H74: =SUM($E73:H73) -> 88459.5225 | I74: =SUM($E73:I73) -> 158683.8404 | J74: =SUM($E73:J73) -> 601109.2 | R74: =varTotal&varRunningTotal -> TRt | Y74: =CONCATENATE(CELL("address",E74),":",CELL("address",J74)) -> $E$74:$J$74
B75: ROI | L75: =IF(L71<>0,L73/ABS(L71),0) -> 1.350377282 | R75: =varTotal&varROI -> TROI
B76: Payback Period (months) | F76: =IF(AND(F74>=0,E74<0,MIN(G74:$J74)>=0),(ABS(E74)/F73)*12,0) -> 0 | G76: =IF(AND(G74>=0,F74<0,MIN(H74:$J74)>=0),((COLUMN()-COLUMN($F76))+(ABS(F74)/G73))*12,0) -> 20.88395044 | H76: =IF(AND(H74>=0,G74<0,MIN(I74:$J74)>=0),((COLUMN()-COLUMN($F76))+(ABS(G74)/H73))*12,0) -> 0 | I76: =IF(AND(I74>=0,H74<0,MIN(J74:$J74)>=0),((COLUMN()-COLUMN($F76))+(ABS(H74)/I73))*12,0) -> 0 | J76: =IF(AND(J74>=0,I74<0,MIN($J74:K74)>=0),((COLUMN()-COLUMN($F76))+(ABS(I74)/J73))*12,0) -> 0 | L76: =IF(MIN(E74:J74)>=0,0,IF(MAX(F76:J76)>0,ROUNDUP(MAX(F76:J76),0),"> "&(varYears*12))) -> 21 | R76: =varTotal&varPayback -> TPb
R77: =varTotal&varSummary&varEquation&varRisk -> TSER | S77: =ForrEndChar -> - | T77: -1
R79: =varBenefit&varSummary&varEquation&varRisk&varTotal -> BSERT | S79: =ForrBeginChar -> + | T79: -1
B80: Total Cash Flows - Benefits | N80: Breakdown
B81: Category | E81: =IF(R81=varBenefit,"","Initial") -> Initial | F81: Year 1 | G81: Year 2 | H81: Year 3 | I81: Year 4 | J81: Year 5 | K81: Total | L81: Present Value | N81: % Total | O81: CAPEX | P81: OPEX
B82: =Energy!$AG$2 -> Energy | E82: =Energy!$E$24 -> 0 | F82: =Energy!$F$24 -> 22898.04688 | G82: =Energy!$G$24 -> 22898.04688 | H82: =Energy!$H$24 -> 22898.04688 | I82: =Energy!$I$24 -> 22898.04688 | J82: =Energy!$J$24 -> 22898.04688 | K82: =Energy!$K$24 -> 114490.2344 | L82: =Energy!$L$24 -> 86801.61314 | N82: =IF($L$87=0,"----",L82/$L$87) -> 0.1343107656 | O82: =Energy!$O$24 -> 0 | P82: =Energy!$P$24 -> 86801.61314 | R82: =varBenefit&varSummary&varEquation&varRisk&varTotal -> BSERT | T82: 1 | Y82: =CONCATENATE(CELL("address",F82),":",CELL("address",L82),",",CELL("address",O82),":",CELL("address",P82)) -> $F$82:$L$82,$O$82:$P$82
B83: =Security!$AG$2 -> Security | E83: =Security!$E$47 -> 0 | F83: =Security!$F$47 -> 21295.3125 | G83: =Security!$G$47 -> 21295.3125 | H83: =Security!$H$47 -> 21295.3125 | I83: =Security!$I$47 -> 21295.3125 | J83: =Security!$J$47 -> 21295.3125 | K83: =Security!$K$47 -> 106476.5625 | L83: =Security!$L$47 -> 80725.98888 | N83: =IF($L$87=0,"----",L83/$L$87) -> 0.1249097681 | O83: =Security!$O$47 -> 0 | P83: =Security!$P$47 -> 80725.98888 | R83: BSERT | T83: 1 | Y83: $F$83:$L$83,$O$83:$P$83
B84: SMARTOperations | E84: =SMART!$E$49+MTNO!$E$47 -> 111047.75 | F84: =SMART!$F$49+MTNO!$F$47 -> 47001.30063 | G84: =SMART!$G$49+MTNO!$G$47 -> 5296.231875 | H84: =SMART!$H$49+MTNO!$H$47 -> 5296.231875 | I84: =SMART!$I$49+MTNO!$I$47 -> 5296.231875 | J84: =SMART!$J$49+MTNO!$J$47 -> 5296.231875 | K84: =SMART!$K$49+MTNO!$K$47 -> 179233.9781 | L84: =SMART!$L$49+MTNO!$L$47 -> 169038.3346 | N84: =IF($L$87=0,"----",L84/$L$87) -> 0.261558136 | O84: =SMART!$O$49+MTNO!O47 -> 111047.75 | P84: =SMART!$P$49+MTNO!P47 -> 57990.58458 | R84: BSERT | T84: 1 | Y84: $F$84:$L$84,$O$84:$P$84
B85: =HA!$AG$2 -> High Availability | E85: =HA!$E$45 -> 0 | F85: =HA!$F$45 -> 20734.72667 | G85: =HA!$G$45 -> 20734.72667 | H85: =HA!$H$45 -> 20734.72667 | I85: =HA!$I$45 -> 20734.72667 | J85: =HA!$J$45 -> 20734.72667 | K85: =HA!$K$45 -> 103673.6333 | L85: =HA!$L$45 -> 78600.92752 | N85: =IF($L$87=0,"----",L85/$L$87) -> 0.1216215963 | O85: =HA!$O$45 -> 0 | P85: =HA!$P$45 -> 78600.92752 | R85: BSERT | T85: 1 | Y85: $F$85:$L$85,$O$85:$P$85
B86: =Refresh!$AG$2 -> Refresh Cycles | E86: =Refresh!$E$44 -> 0 | F86: =Refresh!$F$44 -> 0 | G86: =Refresh!$G$44 -> 0 | H86: =Refresh!$H$44 -> 0 | I86: =Refresh!$I$44 -> 0 | J86: =Refresh!$J$44 -> 372201.0417 | K86: =Refresh!$K$44 -> 372201.0417 | L86: =Refresh!$L$44 -> 231107.5632 | N86: =IF($L$87=0,"----",L86/$L$87) -> 0.3575997339 | O86: =Refresh!$O$44 -> 231107.5632 | P86: =Refresh!$P$44 -> 0 | R86: BSERT | T86: 1 | Y86: $F$86:$L$86,$O$86:$P$86
B87: Total (Risk Adjusted) | E87: =SUM(E82:E86) -> 111047.75 | F87: 111929.3867 | G87: 70224.31792 | H87: 70224.31792 | I87: 70224.31792 | J87: 442425.3596 | K87: 876075.45 | L87: 646274.4273 | O87: =SUM(O82:O86) -> 342155.3132 | P87: =SUM(P82:P86) -> 304119.1141 | R87: =varBenefit&varSummary&varEquation&varRisk&varTotal&varTotal -> BSERTT | Y87: $F$87:$L$87,$O$87:$P$87
R88: =varBenefit&varSummary&varEquation&varRisk&varTotal -> BSERT | S88: =ForrEndChar -> - | T88: -1
R90: =varCost&varSummary&varEquation&varRisk&varTotal -> CSERT | S90: =ForrBeginChar -> + | T90: -1
B91: Total Cash Flows - Costs | N91: Breakdown
B92: Category | E92: =IF(R92=varBenefit,"","Initial") -> Initial | F92: Year 1 | G92: Year 2 | H92: Year 3 | I92: Year 4 | J92: Year 5 | K92: Total | L92: Present Value | N92: % Total | O92: CAPEX | P92: OPEX
B93: =Costs!$AG$2 -> Incremental Costs | E93: =Costs!$E$40 -> 274966.25 | F93: =Costs!$F$40 -> 0 | G93: =Costs!$G$40 -> 0 | H93: =Costs!$H$40 -> 0 | I93: =Costs!$I$40 -> 0 | J93: =Costs!$J$40 -> 0 | K93: =Costs!$K$40 -> 274966.25 | L93: =Costs!$L$40 -> 274966.25 | N93: =IF($L$94=0,"----",L93/$L$94) -> 1 | O93: =Costs!$O$40 -> 274966.25 | P93: =Costs!$P$40 -> 0 | R93: =varCost&varSummary&varEquation&varRisk&varTotal -> CSERT | T93: 1 | Y93: =CONCATENATE(CELL("address",E93),":",CELL("address",L93)) -> $E$93:$L$93
B94: ="Total ("&IF(ISERROR(FIND(varOriginal,R90,1))=FALSE,"Original","Risk Adjusted")&")" -> Total (Risk Adjusted) | E94: =SUM(E93:E93) -> 274966.25 | F94: 0 | G94: 0 | H94: 0 | I94: 0 | J94: 0 | K94: 274966.25 | L94: 274966.25 | O94: =SUM(O92:O93) -> 274966.25 | P94: =SUM(P92:P93) -> 0 | R94: =varCost&varSummary&varEquation&varRisk&varTotal&varTotal -> CSERTT | Y94: =CONCATENATE(CELL("address",E94),":",CELL("address",L94)) -> $E$94:$L$94
R95: =varCost&varSummary&varEquation&varRisk&varTotal -> CSERT | S95: =ForrEndChar -> - | T95: -1
R97: =varTotal&varOPEX -> TOPEX | S97: =ForrBeginChar -> + | T97: -1
B98: Total Capital and Operating Expenses without Catalyst Products | N98: Breakdown | R98: TOPEX
B99: Category | E99: =IF(R99=varBenefit,"","Initial") -> Initial | F99: Year 1 | G99: Year 2 | H99: Year 3 | I99: Year 4 | J99: Year 5 | K99: Total | L99: Present Value | N99: % Total | R99: TOPEX
B100: Energy and power | E100: 0 | F100: =Energy!$G$41 -> 125925 | G100: =F100 -> 125925 | H100: =F100 -> 125925 | I100: =F100 -> 125925 | J100: =F100 -> 125925 | K100: =SUM(E100:J100) -> 629625 | L100: =E100+NPV(varDiscountRate,F100:J100) -> 477354.8239 | N100: =L100/$L$105 -> 0.2391315219 | R100: TOPEX | S100: 1 | T100: 1 | Y100: =CONCATENATE(CELL("address",E100),":",CELL("address",L100)) -> $E$100:$L$100
B101: =Costs!A89 -> Implementation and configuration fees | E101: 0 | F101: =Costs!M95 -> 113498 | G101: 0 | H101: 0 | I101: 0 | J101: =F101 -> 113498 | K101: =SUM(E101:J101) -> 226996 | L101: 173653.3283 | N101: =L101/$L$105 -> 0.08699186141 | R101: TOPEX | S101: 2 | T101: 1 | Y101: $E$101:$L$101
B102: IT staff | E102: 0 | F102: =NumNetworkFTEs*SalaryITStaff -> 303750 | G102: =F102 -> 303750 | H102: =F102 -> 303750 | I102: =F102 -> 303750 | J102: =F102 -> 303750 | K102: 1518750 | L102: 1151451.481 | N102: =L102/$L$105 -> 0.576821122 | R102: TOPEX | S102: 3 | T102: 1 | Y102: $E$102:$L$102
B103: Security | E103: 0 | F103: =Security!M62+Security!M77+Security!M104 -> 51108.75 | G103: =F103 -> 51108.75 | H103: =F103 -> 51108.75 | I103: =F103 -> 51108.75 | J103: =F103 -> 51108.75 | K103: 255543.75 | L103: 193742.3733 | N103: =L103/$L$105 -> 0.09705549471 | R103: TOPEX | S103: 4 | T103: 1 | Y103: $E$103:$L$103
B104: Network traffic and sniffer-tracer tools | E104: =MTNO!E41+MTNO!E43 -> 0 | F104: 0 | G104: =F104 -> 0 | H104: =F104 -> 0 | I104: =F104 -> 0 | J104: =F104 -> 0 | K104: 0 | L104: 0 | N104: =L104/$L$105 -> 0 | R104: TOPEX | S104: 4 | T104: 1 | Y104: $E$104:$L$104
B105: ="Total ("&IF(ISERROR(FIND(varOriginal,R97,1))=FALSE,"Original","Risk Adjusted")&")" -> Total (Original) | E105: =SUM(E100:E104) -> 0 | F105: =SUM(F100:F104) -> 594281.75 | G105: =SUM(G100:G104) -> 480783.75 | H105: 480783.75 | I105: 480783.75 | J105: 594281.75 | K105: =SUM(K100:K104) -> 2630914.75 | L105: 1996202.007 | R105: TOPEX | Y105: $E$105:$L$105
R106: TOPEX | S106: =ForrEndChar -> - | T106: -1
R108: TSavings | S108: =ForrBeginChar -> + | T108: -1
B109: Total Savings with Catalyst Products | R109: TSavings
B110: Category | E110: =IF(R110=varBenefit,"","Initial") -> Initial | F110: Year 1 | G110: Year 2 | H110: Year 3 | I110: Year 4 | J110: Year 5 | K110: Total | L110: Present Value | R110: TSavings
B111: TOTAL SAVINGS | E111: 0 | F111: =F113+F116+F121 -> 116508.996 | G111: 74803.92729 | H111: 74803.92729 | I111: 74803.92729 | J111: 447004.969 | K111: 787925.7469 | L111: 663634.75 | R111: TSavings | T111: 1 | Y111: =CONCATENATE(CELL("address",E111),":",CELL("address",L111)) -> $E$111:$L$111
B112: Savings as a percentage of total costs | L112: =L111/(L94+L105) -> 0.2921997294 | R112: TSavings | T112: 1 | Y112: $E$112:$L$112
B113: Capital savings (total) | E113: =SUM(E114:E115) -> 111047.75 | F113: 0 | G113: 0 | H113: 0 | I113: 0 | J113: 372201.0417 | K113: =SUM(F113:J113) -> 372201.0417 | L113: =E113+NPV(varDiscountRate,F113:J113) -> 342155.3132 | R113: TSavings | T113: 1 | Y113: $E$113:$L$113
B114: =SMART!B46 -> Reduction in over provisioning | E114: =SMART!E46*SMART!E48 -> 111047.75 | F114: 0 | G114: 0 | H114: 0 | I114: 0 | J114: 0 | K114: =SUM(F114:J114) -> 0 | L114: =E114+NPV(varDiscountRate,F114:J114) -> 111047.75 | R114: TSavings | T114: 1 | Y114: =CONCATENATE(CELL("address",E114),":",CELL("address",L114)) -> $E$114:$L$114
B115: Refresh Cycles | E115: =E86 -> 0 | F115: =F86 -> 0 | G115: 0 | H115: 0 | I115: 0 | J115: 372201.0417 | K115: 372201.0417 | L115: 231107.5632 | R115: TSavings | T115: 1 | Y115: =CONCATENATE(CELL("address",E115),":",CELL("address",L115)) -> $E$115:$L$115
B116: Operational savings (total) | E116: 0 | F116: =SUM(F117:F120) -> 86259.51688 | G116: 44554.44812 | H116: 44554.44812 | I116: 44554.44812 | J116: 44554.44812 | K116: 264477.3094 | L116: 206810.1113 | R116: TSavings | T116: 1 | Y116: =CONCATENATE(CELL("address",E116),":",CELL("address",L116)) -> $E$116:$L$116
B117: Energy and power savings | E117: 0 | F117: =Energy!F22 -> 27477.65625 | G117: =Energy!G22 -> 27477.65625 | H117: =Energy!H22 -> 27477.65625 | I117: =Energy!I22 -> 27477.65625 | J117: =Energy!J22 -> 27477.65625 | K117: =Energy!K22 -> 137388.2812 | L117: =Energy!L22 -> 104161.9358 | R117: TSavings | T117: 1 | Y117: $E$117:$L$117
B118: SMARTOperations (IT productivity improvement) | E118: 0 | F118: =SMART!F49 -> 47001.30063 | G118: =SMART!G49 -> 5296.231875 | H118: =SMART!H49 -> 5296.231875 | I118: =SMART!I49 -> 5296.231875 | J118: =SMART!J49 -> 5296.231875 | K118: =SUM(F118:J118) -> 68186.22812 | L118: =E118+NPV(varDiscountRate,F118:J118) -> 57990.58458 | R118: TSavings | T118: 1 | Y118: =CONCATENATE(CELL("address",E118),":",CELL("address",L118)) -> $E$118:$L$118
B119: SMARTOperations (network monitoring and optimization) | E119: =MTNO!$E$47 -> 0 | F119: =MTNO!$E$47 -> 0 | G119: =MTNO!$E$47 -> 0 | H119: =MTNO!$E$47 -> 0 | I119: =MTNO!$E$47 -> 0 | J119: =MTNO!$E$47 -> 0 | K119: =SUM(F119:J119) -> 0 | L119: 0 | R119: TSavings | T119: 1 | Y119: =CONCATENATE(CELL("address",E119),":",CELL("address",L119)) -> $E$119:$L$119
B120: High availability (IT productivity improvement) | E120: 0 | F120: =HA!F41*HA!$E$44 -> 11780.56 | G120: =HA!G41*HA!$E$44 -> 11780.56 | H120: =HA!H41*HA!$E$44 -> 11780.56 | I120: =HA!I41*HA!$E$44 -> 11780.56 | J120: =HA!J41*HA!$E$44 -> 11780.56 | K120: 58902.8 | L120: 44657.59098 | R120: TSavings | T120: 1 | Y120: $E$120:$L$120
B121: Business benefits | E121: 0 | F121: =SUM(F122:F123) -> 30249.47917 | G121: =SUM(G122:G123) -> 30249.47917 | H121: =SUM(H122:H123) -> 30249.47917 | I121: =SUM(I122:I123) -> 30249.47917 | J121: =SUM(J122:J123) -> 30249.47917 | K121: 151247.3958 | L121: 114669.3254 | R121: TSavings | T121: 1 | Y121: $E$121:$L$121
B122: High availability (business productivity improvement and avoidance of loss of revenue) | E122: 0 | F122: =(HA!F40+HA!F42)*HA!$E$44 -> 8954.166667 | G122: =(HA!G40+HA!G42)*HA!$E$44 -> 8954.166667 | H122: =(HA!H40+HA!H42)*HA!$E$44 -> 8954.166667 | I122: =(HA!I40+HA!I42)*HA!$E$44 -> 8954.166667 | J122: =(HA!J40+HA!J42)*HA!$E$44 -> 8954.166667 | K122: =SUM(F122:J122) -> 44770.83333 | L122: =E122+NPV(varDiscountRate,F122:J122) -> 33943.33653 | R122: TSavings | T122: 1 | Y122: =CONCATENATE(CELL("address",E122),":",CELL("address",L122)) -> $E$122:$L$122
B123: Security savings (avoidance of security events resulting in loss) | E123: 0 | F123: =F83 -> 21295.3125 | G123: =G83 -> 21295.3125 | H123: 21295.3125 | I123: 21295.3125 | J123: 21295.3125 | K123: 106476.5625 | L123: 80725.98888 | R123: TSavings | T123: 1 | Y123: $E$123:$L$123
R124: TSavings | S124: =ForrEndChar -> - | T124: -1
E126: Capex | F126: Opex | G126: Total | H126: Savings
B127: Cost without Catalyst Switches | E127: =Costs!M73-Costs!M77 -> 975260 | F127: =L105 -> 1996202.007 | G127: =E127+F127 -> 2971462.007 | T127: 1
B128: Cost with Catalyst Switches Upgrade | E128: =Costs!M73 -> 1219075 | F128: =F127-L111 -> 1332567.257 | G128: =E128+F128 -> 2551642.257 | H128: =(G127-G128)/G127 -> 0.141283903 | T128: 1
G129: =G127-G128 -> 419819.75

Sheet Energy
R1: ColH | S1: ColHSub | T1: DisplayLevel | U1: Desc | V1: ITBU | W1: CAPOPEX | X1: InputAdr | Y1: CurrencyRange | Z1: InpValue | AB1: UsableSheet | AC1: VisibleSheet | AD1: FirstVisit | AE1: FirstCell | AF1: EnableSelection | AG1: SheetTitle
T2: -1 | AB2: TRUE | AC2: =Summary!$N$42 -> TRUE | AD2: FALSE | AE2: =M34 -> 0.1 | AF2: xlUnlockedCells | AG2: Energy
R3: =varHeader&2 -> H2 | S3: =ForrBeginChar -> + | T3: -1
C4: =varToolTitle -> Cisco Access Switching ROI Calculator | P4: Key:
P5: Input
C6: =$AG$2 -> Energy | P6: Suggested
I7: Select Service Benefits | P7: Calculated
R8: =varHeader&2 -> H2 | S8: =ForrEndChar -> - | T8: -1
T9: 1
B10: Cisco EnergyWise enables companies to measure and manage the power consumption of network infrastructure and network-attached devices with specific policies. As a result, organizations can reduce power consumption to realize increased cost savings. | T10: 1
B11: The ability to use the network to help reduce energy costs of IT. | T11: 1
B12: The efficient use of technology within an organization can create a large impact on both the corporate bottom line and on the environment. Green IT deals with the effective and environmentally responsible use of IT resources within an organization. It is not just about reducing the corporate carbon footprint; the goal of Green IT is also to significantly reduce resource consumption, eliminate waste and business inefficiencies, which leads to a quicker and more agile organization. | T12: 1
R13: =varSummary -> S | S13: =ForrBeginChar -> + | T13: -1
A14: Summary of Energy Benefits
R17: =varBenefit&varSummary&varEquation&varOriginal -> BSEO | S17: =ForrBeginChar -> + | T17: -1
B18: =CONCATENATE("Cash Flows - ", $AG$2) -> Cash Flows - Energy | N18: Breakdown
B19: Category | E19: Initial | F19: Year 1 | G19: Year 2 | H19: Year 3 | I19: Year 4 | J19: Year 5 | K19: Total | L19: Present Value | N19: % Total | O19: CAPEX | P19: OPEX | R19: =varBenefit&varSummary&varTitle -> BSTitle
B20: =$A$32 -> Savings through energy management of IT and network devices | E20: 0 | F20: =$M$42 -> 27477.65625 | G20: =$M$42 -> 27477.65625 | H20: =$M$42 -> 27477.65625 | I20: =$M$42 -> 27477.65625 | J20: =$M$42 -> 27477.65625 | K20: =SUM(E20:J20) -> 137388.2812 | L20: =E20+NPV(varDiscountRate,F20:J20) -> 104161.9358 | N20: =IF($L$22=0,"----",L20/$L$22) -> 1 | O20: =IF(W20=varCAPEX,L20,"") ->  | P20: =IF(W20=varOPEX,L20,"") -> 104161.9358 | R20: =varBenefit&varSummary&varEquation&varOriginal -> BSEO | T20: =$T$42 -> 1 | V20: =$V$42 -> Business | W20: =$W$42 -> OPEX | Y20: =CONCATENATE(CELL("address",F20),":",CELL("address",L20),",",CELL("address",O20),":",CELL("address",P20)) -> $F$20:$L$20,$O$20:$P$20
B21: =$A$46 -> Savings through power consumption of access switches | E21: 0 | F21: =$M$67 -> 0 | G21: =$M$67 -> 0 | H21: =$M$67 -> 0 | I21: =$M$67 -> 0 | J21: =$M$67 -> 0 | K21: =SUM(E21:J21) -> 0 | L21: =E21+NPV(varDiscountRate,F21:J21) -> 0 | N21: =IF($L$22=0,"----",L21/$L$22) -> 0 | O21: =IF(W21=varCAPEX,L21,"") ->  | P21: =IF(W21=varOPEX,L21,"") -> 0 | R21: =varBenefit&varSummary&varEquation&varOriginal -> BSEO | T21: =$T$67 -> 1 | V21: =$V$67 -> Business | W21: =$W$67 -> OPEX | Y21: =CONCATENATE(CELL("address",F21),":",CELL("address",L21),",",CELL("address",O21),":",CELL("address",P21)) -> $F$21:$L$21,$O$21:$P$21
B22: Total | E22: =SUM(E20:E21) -> 0 | F22: 27477.65625 | G22: 27477.65625 | H22: 27477.65625 | I22: 27477.65625 | J22: 27477.65625 | K22: 137388.2812 | L22: 104161.9358 | O22: =SUM(O20:O21) -> 0 | P22: =SUM(P20:P21) -> 104161.9358 | R22: =varBenefit&varSummary&varEquation&varOriginal&varTotal -> BSEOT | Y22: =CONCATENATE(CELL("address",F22),":",CELL("address",L22),",",CELL("address",O22),":",CELL("address",P22)) -> $F$22:$L$22,$O$22:$P$22
B23: ="Confidence adjustment (" & varConfidenceLevel &")" -> Confidence adjustment (Low) | E23: =IF(R23=varBenefit,varRiskB,varRiskC) -> 0.8333333333 | R23: =varBenefit -> B
B24: Total (Risk Adjusted) | E24: =E22*$E23 -> 0 | F24: 22898.04688 | G24: 22898.04688 | H24: 22898.04688 | I24: 22898.04688 | J24: 22898.04688 | K24: =SUM(E24:J24) -> 114490.2344 | L24: =E24+NPV(varDiscountRate,F24:J24) -> 86801.61314 | O24: =O22*E23 -> 0 | P24: =P22*E23 -> 86801.61314 | R24: =varBenefit&varSummary&varEquation&varRisk&varTotal -> BSERT | Y24: =CONCATENATE(CELL("address",F24),":",CELL("address",L24),",",CELL("address",O24),":",CELL("address",P24)) -> $F$24:$L$24,$O$24:$P$24
R25: =varBenefit&varSummary&varEquation&varOriginal -> BSEO | S25: =ForrEndChar -> - | T25: -1
R26: =varSummary -> S | S26: =ForrEndChar -> - | T26: -1
B28: For any benefit category in the areas, change the default value(s) to 0 to exclude it from the analysis. | T28: 1
R31: =varCost&varBenefit -> CB | S31: =ForrBeginChar -> + | T31: -1 | U31: =varBenefit -> B
A32: Savings through energy management of IT and network devices | R32: =varTitle -> Title | T32: 1 | X32: =CONCATENATE("Q=",CELL("address",A32),";") -> Q=$A$32;
T33: 1
B34: Electrical cost of power and cooling per kilowatt hour. | M34: =$N$34 -> 0.1 | N34: =0.1*varExchangeRate -> 0.1 | O34: per kilowatt hour | R34: =varInput -> Inp | T34: 1 | U34: v2 | X34: =CONCATENATE("Q=",CELL("address",B34),";I=",CELL("address",M34),";D=",CELL("address",N34),";") -> Q=$B$34;I=$M$34;D=$N$34; | Y34: =CONCATENATE(CELL("address",M34),":",CELL("address",N34),";",CELL("address",M34)) -> $M$34:$N$34;$M$34
T35: 1
C36: Enter the number of devices in each category that might be managed in the future. | T36: 1
C37: Equipment | E37: Total number of devices managed (t1) | F37: Idle power (kWh / hour) (t2) | G37: Approximate energy cost per year | H37: Stand by power mode (watts / hour) (t3) | I37: Watts per hour saved (t4=t2-t3) | J37: Average hours per day saved (t5) | L37: KwH saved per year (t6=t1*t4/1000*365 days) | M37: ="Annual Savings (t7=t6 * "&TEXT($M$34,"0.00")&")" -> Annual Savings (t7=t6 * 0.10) | T37: 1
C38: Desktops | E38: =Info!F33 -> 1625 | F38: 80 | G38: =E38*(F38/1000)*(24*365)*$M$34 -> 113880 | H38: 5 | I38: =F38-H38 -> 75 | J38: =$K$38 -> 5.5 | K38: 5.5 | L38: =(E38*I38*J38*365)/1000 -> 244664.0625 | M38: =L38*$M$34 -> 24466.40625 | R38: =varInput -> Inp | T38: 1 | X38: =CONCATENATE("Q=",CELL("address",C38),";I=",CELL("address",J38),";D=",CELL("address",K38),";C=",CELL("address",M38),";") -> Q=$C$38;I=$J$38;D=$K$38;C=$M$38; | Y38: =CONCATENATE(CELL("address",M38)) -> $M$38
C39: IP Telephones | E39: =Info!F35 -> 2750 | F39: 4 | G39: =E39*(F39/1000)*(24*365)*$M$34 -> 9636 | H39: 0 | I39: =F39-H39 -> 4 | J39: =$K$39 -> 6.5 | K39: 6.5 | L39: =(E39*I39*J39*365)/1000 -> 26097.5 | M39: =L39*$M$34 -> 2609.75 | R39: =varInput -> Inp | T39: 1 | X39: =CONCATENATE("Q=",CELL("address",C39),";I=",CELL("address",J39),";D=",CELL("address",K39),";C=",CELL("address",M39),";") -> Q=$C$39;I=$J$39;D=$K$39;C=$M$39; | Y39: =CONCATENATE(CELL("address",M39)) -> $M$39
C40: Wireless access points | E40: =Info!F37 -> 250 | F40: 11 | G40: 2409 | H40: 0 | I40: =F40-H40 -> 11 | J40: =$K$40 -> 4 | K40: 4 | L40: =(E40*I40*J40*365)/1000 -> 4015 | M40: 401.5 | R40: =varInput -> Inp | T40: 1 | X40: =CONCATENATE("Q=",CELL("address",C40),";I=",CELL("address",J40),";D=",CELL("address",K40),";C=",CELL("address",M40),";") -> Q=$C$40;I=$J$40;D=$K$40;C=$M$40; | Y40: =CONCATENATE(CELL("address",M40)) -> $M$40
C41: Total annual energy costs: | G41: =SUM(G38:G40) -> 125925 | T41: 1
B42: Annual energy savings: | M42: =IF($AC$2=TRUE,SUM(M38:M40),0) -> 27477.65625 | R42: =varTotal&varCalculation -> TCalc | T42: 1 | U42: v3=sum(t6) | V42: =varBenefitsBusiness -> Business | W42: =varOPEX -> OPEX | X42: =CONCATENATE("Q=",CELL("address",B42),";C=",CELL("address",M42),";") -> Q=$B$42;C=$M$42; | Y42: =CONCATENATE(CELL("address",M42)) -> $M$42
T43: 1
R44: =varCost&varBenefit -> CB | S44: =ForrEndChar -> - | T44: -1 | U44: =varBenefit -> B
R45: =varCost&varBenefit -> CB | S45: =ForrBeginChar -> + | T45: -1 | U45: =varBenefit -> B
A46: Savings through power consumption of access switches | R46: =varTitle -> Title | T46: 1 | X46: =CONCATENATE("Q=",CELL("address",A46),";") -> Q=$A$46;
B47: Cisco access switches are more energy efficient than those replacing. Logic: - 17% hrs@100% load, else@70% load. Weekends,remaining hrs /day are idle - Average savings of 36% for Cisco Catalyst switches based on the Miercom Report average over industry standards | T47: 1
T48: 0
B49: Product family | M49: =Costs!G46 -> 3750X | R49: =varCalculation -> Calc | T49: 0 | U49: v1 | X49: =CONCATENATE("Q=",CELL("address",B49),";C=",CELL("address",M49),";") -> Q=$B$49;C=$M$49;
T50: 0
B51: Number of access switches. | M51: =Qty_1 -> 121 | R51: =varCalculation -> Calc | T51: 0 | U51: v2 | X51: =CONCATENATE("Q=",CELL("address",B51),";C=",CELL("address",M51),";") -> Q=$B$51;C=$M$51;
T52: 0
B53: Number of hours in use per week. | M53: =Info!$H$29 -> 40 | R53: =varCalculation -> Calc | T53: 0 | U53: v2 | X53: =CONCATENATE("Q=",CELL("address",B53),";C=",CELL("address",M53),";") -> Q=$B$53;C=$M$53;
T54: 0
B55: Total hours in use per year. | M55: =M51*M53*52 -> 251680 | R55: =varCalculation -> Calc | T55: 0 | U55: v2 | X55: =CONCATENATE("Q=",CELL("address",B55),";C=",CELL("address",M55),";") -> Q=$B$55;C=$M$55;
T56: 0
B57: Total watts per device. | M57: =VLOOKUP(M49,'All Options'!B58:D63,3) -> 127.1 | R57: =varCalculation -> Calc | T57: 0 | U57: v2 | X57: =CONCATENATE("Q=",CELL("address",B57),";C=",CELL("address",M57),";") -> Q=$B$57;C=$M$57;
T58: 0
B59: Total KwHr per year. | M59: =M55*M57/1000 -> 31988.528 | R59: =varCalculation -> Calc | T59: 0 | U59: v2 | X59: =CONCATENATE("Q=",CELL("address",B59),";C=",CELL("address",M59),";") -> Q=$B$59;C=$M$59;
T60: 0
B61: Total cost per year to operate. | M61: =M59*M34 -> 3198.8528 | R61: =varCalculation -> Calc | T61: 0 | U61: v2 | X61: =CONCATENATE("Q=",CELL("address",B61),";C=",CELL("address",M61),";") -> Q=$B$61;C=$M$61;
T62: 1
B63: Percentage efficiency savings. | M63: 0 | N63: 0.36 | R63: =varInput -> Inp | T63: 1 | U63: v3 | X63: =CONCATENATE("Q=",CELL("address",B63),";I=",CELL("address",M63),";D=",CELL("address",N63),";U=",CELL("address",O63),";") -> Q=$B$63;I=$M$63;D=$N$63;U=$O$63;
T64: 0
B65: Total cost per year to operate before. | M65: =M61/(1-M63) -> 3198.8528 | R65: =varCalculation -> Calc | T65: 0 | U65: v2 | X65: =CONCATENATE("Q=",CELL("address",B65),";C=",CELL("address",M65),";") -> Q=$B$65;C=$M$65;
T66: 1
B67: Annual energy savings: | M67: =IF($AC$2=TRUE,M65-M61,0) -> 0 | R67: =varTotal&varCalculation -> TCalc | T67: 1 | U67: v3=sum(t6) | V67: =varBenefitsBusiness -> Business | W67: =varOPEX -> OPEX | X67: =CONCATENATE("Q=",CELL("address",B67),";C=",CELL("address",M67),";") -> Q=$B$67;C=$M$67; | Y67: =CONCATENATE(CELL("address",M67)) -> $M$67
T68: 1
R69: =varCost&varBenefit -> CB | S69: =ForrEndChar -> - | T69: -1 | U69: =varBenefit -> B

Sheet Security
R1: ColH | S1: ColHSub | T1: DisplayLevel | U1: Desc | V1: ITBU | W1: CAPOPEX | X1: InputAdr | Y1: CurrencyRange | Z1: InpValue | AB1: UsableSheet | AC1: VisibleSheet | AD1: FirstVisit | AE1: FirstCell | AF1: EnableSelection | AG1: SheetTitle
T2: -1 | AB2: TRUE | AC2: =Summary!$N$43 -> TRUE | AD2: FALSE | AF2: xlUnlockedCells | AG2: Security
R3: =varHeader&2 -> H2 | S3: =ForrBeginChar -> + | T3: -1
C4: =varToolTitle -> Cisco Access Switching ROI Calculator | P4: Key:
P5: Input
C6: =$AG$2 -> Security | P6: Suggested
I7: Select Service Benefits | P7: Calculated
R8: =varHeader&2 -> H2 | S8: =ForrEndChar -> - | T8: -1
T9: 1
B10: Security Incident Information: You can provide your input for cost information related to various types of security incidents. These numbers are defaults based on Industry research for 3 years. Note: Defaults based on "CSI Computer Crime and Security Survey 2009". This showed that average losses due to security incidents were $234,244 per respondent. The default value of $12,000 for 6 incidents during a 3-year period, results in a security incident cost of $24,000 per year, or 10.3% of the average (a conservative estimate). | T10: 1
B11: Cisco access switches enable end-to-end security solutions using identity-based policy and threat intelligence capabilities. TrustSec helps secure networks with policy-based access control while MACsec provides hardware encryption to ensure data confidentiality and integrity. | T11: 1
T12: 1
B13: TrustSec helps organizations enforce compliance, strengthen security, increase operational efficiency, and establish a consistent global access policy while embracing the changing business environment. Monitor mode in Cisco Access Switches allows you to implement 802.1x in a read-only mode to minimize operational impact to your network while implementing 802.1x | T13: 1
T14: 1
R15: =varSummary -> S | S15: =ForrBeginChar -> + | T15: -1
A16: Summary of Security Benefits
R18: =varSummary&varChart -> SChart | S18: =ForrBeginChar -> +
R38: =varSummary&varChart -> SChart | S38: =ForrEndChar -> -
R39: =varBenefit&varSummary&varEquation&varOriginal -> BSEO | S39: =ForrBeginChar -> + | T39: -1
B40: =CONCATENATE("Cash Flows - ", $AG$2) -> Cash Flows - Security | N40: Breakdown
B41: Category | E41: Initial | F41: Year 1 | G41: Year 2 | H41: Year 3 | I41: Year 4 | J41: Year 5 | K41: Total | L41: Present Value | N41: % Total | O41: CAPEX | P41: OPEX | R41: =varBenefit&varSummary&varTitle -> BSTitle
B42: =$A$55 -> Reduction in unauthorized access security incidents | E42: 0 | F42: =$M$66 -> 0 | G42: =$M$66 -> 0 | H42: =$M$66 -> 0 | I42: =$M$66 -> 0 | J42: =$M$66 -> 0 | K42: =SUM(E42:J42) -> 0 | L42: =E42+NPV(varDiscountRate,F42:J42) -> 0 | N42: =IF($L$45=0,"----",L42/$L$45) -> 0 | O42: =IF(W42=varCAPEX,L42,"") ->  | P42: =IF(W42=varOPEX,L42,"") -> 0 | R42: =varBenefit&varSummary&varEquation&varOriginal -> BSEO | T42: =$T$66 -> 1 | V42: =$V$66 -> Business | W42: =$W$66 -> OPEX | Y42: =CONCATENATE(CELL("address",F42),":",CELL("address",L42),",",CELL("address",O42),":",CELL("address",P42)) -> $F$42:$L$42,$O$42:$P$42
B43: =$A$70 -> Reduction in non-compliance security incidents | E43: 0 | F43: =$M$81 -> 0 | G43: =$M$81 -> 0 | H43: =$M$81 -> 0 | I43: =$M$81 -> 0 | J43: =$M$81 -> 0 | K43: =SUM(E43:J43) -> 0 | L43: =E43+NPV(varDiscountRate,F43:J43) -> 0 | N43: =IF($L$45=0,"----",L43/$L$45) -> 0 | O43: =IF(W43=varCAPEX,L43,"") ->  | P43: =IF(W43=varOPEX,L43,"") -> 0 | R43: =varBenefit&varSummary&varEquation&varOriginal -> BSEO | T43: =$T$81 -> 1 | V43: =$V$81 -> Business | W43: =$W$81 -> OPEX | Y43: =CONCATENATE(CELL("address",F43),":",CELL("address",L43),",",CELL("address",O43),":",CELL("address",P43)) -> $F$43:$L$43,$O$43:$P$43
B44: =$A$85 -> Reduction in virus/malware security incidents | E44: 0 | F44: =$M$106 -> 25554.375 | G44: =$M$106 -> 25554.375 | H44: =$M$106 -> 25554.375 | I44: =$M$106 -> 25554.375 | J44: =$M$106 -> 25554.375 | K44: =SUM(E44:J44) -> 127771.875 | L44: =E44+NPV(varDiscountRate,F44:J44) -> 96871.18665 | N44: =IF($L$45=0,"----",L44/$L$45) -> 1 | O44: =IF(W44=varCAPEX,L44,"") ->  | P44: =IF(W44=varOPEX,L44,"") -> 96871.18665 | R44: =varBenefit&varSummary&varEquation&varOriginal -> BSEO | T44: =$T$106 -> 1 | V44: =$V$106 -> Business | W44: =$W$106 -> OPEX | Y44: =CONCATENATE(CELL("address",F44),":",CELL("address",L44),",",CELL("address",O44),":",CELL("address",P44)) -> $F$44:$L$44,$O$44:$P$44
B45: Total | E45: =SUM(E42:E44) -> 0 | F45: 25554.375 | G45: 25554.375 | H45: 25554.375 | I45: 25554.375 | J45: 25554.375 | K45: 127771.875 | L45: 96871.18665 | O45: =SUM(O42:O44) -> 0 | P45: =SUM(P42:P44) -> 96871.18665 | R45: =varBenefit&varSummary&varEquation&varOriginal&varTotal -> BSEOT | Y45: =CONCATENATE(CELL("address",F45),":",CELL("address",L45),",",CELL("address",O45),":",CELL("address",P45)) -> $F$45:$L$45,$O$45:$P$45
B46: ="Confidence adjustment (" & varConfidenceLevel &")" -> Confidence adjustment (Low) | E46: =IF(R46=varBenefit,varRiskB,varRiskC) -> 0.8333333333 | R46: =varBenefit -> B
B47: Total (Risk Adjusted) | E47: =E45*$E46 -> 0 | F47: 21295.3125 | G47: 21295.3125 | H47: 21295.3125 | I47: 21295.3125 | J47: 21295.3125 | K47: =SUM(E47:J47) -> 106476.5625 | L47: =E47+NPV(varDiscountRate,F47:J47) -> 80725.98888 | O47: =O45*E46 -> 0 | P47: =P45*E46 -> 80725.98888 | R47: =varBenefit&varSummary&varEquation&varRisk&varTotal -> BSERT | Y47: =CONCATENATE(CELL("address",F47),":",CELL("address",L47),",",CELL("address",O47),":",CELL("address",P47)) -> $F$47:$L$47,$O$47:$P$47
R48: =varBenefit&varSummary&varEquation&varOriginal -> BSEO | S48: =ForrEndChar -> - | T48: -1
R49: =varSummary -> S | S49: =ForrEndChar -> - | T49: -1
R51: =varCost&varBenefit -> CB | S51: =ForrBeginChar -> + | T51: -1 | U51: =varBenefit -> B
B53: For any benefit category in the areas, change the default value(s) to 0 to exclude it from the analysis. | T53: 1
A55: Reduction in unauthorized access security incidents | R55: =varTitle -> Title | T55: 1 | X55: =CONCATENATE("Q=",CELL("address",A55),";") -> Q=$A$55;
B56: Today's network connects diverse device types, whether is corporate owned or personal device, through wired or wireless connection. It's critical to secure the network perimeter at access layer to prevent unauthorized access to the network. Cisco access switches have intelligent capabilities to provide a flexible, comprehensive method to authenticate endpoints thru a variety of methods, and to identify device type and provide proper authorization based on that. | T56: 1
T57: 1
B58: Security incidents due to unauthorized access. | M58: 0 | O58: per year | R58: =varInput -> Inp | T58: 1 | U58: v1 | X58: =CONCATENATE("Q=",CELL("address",B58),";I=",CELL("address",M58),";U=",CELL("address",O58),";Reset=4;") -> Q=$B$58;I=$M$58;U=$O$58;Reset=4; | Z58: 4
T59: 1
B60: Average loss of value (sensitive data) per incident. | M60: =$N$60 -> 10000 | N60: 10000 | O60: per incident | R60: =varInput -> Inp | T60: 1 | U60: v2 | X60: =CONCATENATE("Q=",CELL("address",B60),";I=",CELL("address",M60),";D=",CELL("address",N60),";U=",CELL("address",O60),";") -> Q=$B$60;I=$M$60;D=$N$60;U=$O$60; | Y60: =CONCATENATE(CELL("address",M60),":",CELL("address",N60)) -> $M$60:$N$60
T61: 0
B62: Total loss of value per year. | M62: =M58*M60 -> 0 | R62: =varCalculation -> Calc | T62: 0 | U62: v2 | V62: =varTotal -> T | X62: =CONCATENATE("Q=",CELL("address",B62),";C=",CELL("address",M62),";") -> Q=$B$62;C=$M$62; | Y62: =CELL("address",M62) -> $M$62
T63: 1
B64: Possible incident reduction % (Cisco TrustSec solution) | M64: =$N$64 -> 0.6 | N64: 0.6 | R64: =varInput -> Inp | T64: 1 | U64: v3 | X64: =CONCATENATE("Q=",CELL("address",B64),";I=",CELL("address",M64),";D=",CELL("address",N64),";U=",CELL("address",O64),";") -> Q=$B$64;I=$M$64;D=$N$64;U=$O$64;
T65: 1
B66: Security incidents reduction savings per year. | M66: =IF($AC$2=TRUE,M62*M64,0) -> 0 | R66: =varTotal&varCalculation -> TCalc | T66: 1 | U66: v4=v1*v2*v3 | V66: =varBenefitsBusiness -> Business | W66: =varOPEX -> OPEX | X66: =CONCATENATE("Q=",CELL("address",B66),";C=",CELL("address",M66),";") -> Q=$B$66;C=$M$66; | Y66: =CELL("address",M66) -> $M$66
T67: 1
R68: =varCost&varBenefit -> CB | S68: =ForrEndChar -> - | T68: -1 | U68: =varBenefit -> B
R69: =varCost&varBenefit -> CB | S69: =ForrBeginChar -> + | T69: -1 | U69: =varBenefit -> B
A70: Reduction in non-compliance security incidents | R70: =varTitle -> Title | T70: 1 | X70: =CONCATENATE("Q=",CELL("address",A70),";") -> Q=$A$70;
B71: Cisco's access switches work in conjunction with policy servers (such as Cisco Identity Services Engine) to ensure the compliance of the endpoints and provide a hollistc solution of network access control, authentication, and policy enforcement. Non-compliant devices are quarantined to allow only limited access to the network until compliance status is reached. | T71: 1
T72: 1
B73: Number of incidents due to non-compliance. | M73: 0 | O73: per year | R73: =varInput -> Inp | T73: 1 | U73: v1 | X73: =CONCATENATE("Q=",CELL("address",B73),";I=",CELL("address",M73),";U=",CELL("address",O73),";Reset=3;") -> Q=$B$73;I=$M$73;U=$O$73;Reset=3;
T74: 1
B75: Average loss of value (sensitive data) per incident. | M75: =$N$75 -> 20000 | N75: 20000 | O75: per incident | R75: =varInput -> Inp | T75: 1 | U75: v2 | X75: =CONCATENATE("Q=",CELL("address",B75),";I=",CELL("address",M75),";D=",CELL("address",N75),";U=",CELL("address",O75),";") -> Q=$B$75;I=$M$75;D=$N$75;U=$O$75; | Y75: =CONCATENATE(CELL("address",M75),":",CELL("address",N75)) -> $M$75:$N$75
T76: 0
B77: Total loss of value per year. | M77: =M73*M75 -> 0 | R77: =varCalculation -> Calc | T77: 0 | U77: v2 | V77: =varTotal -> T | X77: =CONCATENATE("Q=",CELL("address",B77),";C=",CELL("address",M77),";") -> Q=$B$77;C=$M$77; | Y77: =CELL("address",M77) -> $M$77
T78: 1
B79: Possible incident reduction % (Cisco TrustSec solution) | M79: =$N$79 -> 0.6 | N79: 0.6 | R79: =varInput -> Inp | T79: 1 | U79: v3 | X79: =CONCATENATE("Q=",CELL("address",B79),";I=",CELL("address",M79),";D=",CELL("address",N79),";U=",CELL("address",O79),";") -> Q=$B$79;I=$M$79;D=$N$79;U=$O$79;
T80: 1
B81: Security incidents reduction savings. | M81: =IF($AC$2=TRUE,M77*M79,0) -> 0 | R81: =varTotal&varCalculation -> TCalc | T81: 1 | U81: v4=v1*v2*v3 | V81: =varBenefitsBusiness -> Business | W81: =varOPEX -> OPEX | X81: =CONCATENATE("Q=",CELL("address",B81),";C=",CELL("address",M81),";") -> Q=$B$81;C=$M$81; | Y81: =CELL("address",M81) -> $M$81
T82: 1
R83: =varCost&varBenefit -> CB | S83: =ForrEndChar -> - | T83: -1 | U83: =varBenefit -> B
R84: =varCost&varBenefit -> CB | S84: =ForrBeginChar -> + | T84: -1 | U84: =varBenefit -> B
A85: Reduction in virus/malware security incidents | R85: =varTitle -> Title | T85: 1 | X85: =CONCATENATE("Q=",CELL("address",A85),";") -> Q=$A$85;
B86: It's crucial to detect malicious network devices at an early stage in order to minimize negative impact. The intelligent monitoring capability on Cisco access switches such as Flexible NetFlow provides a valuable tool to monitor the behavior of the endpoints and to detect anomalies. In addition, SLT (smart logging and telemetry) provides automatic, event-triggered packet capturing for deep analysis and troubleshooting when suspicious behavior is detected. | T86: 1
T87: 1
M88: TRUE | T88: 1
T89: 1
B90: Number of incidents due to virus/malware per year. | M90: 4 | O90: per year | R90: =varInput -> Inp | T90: 1 | U90: v1 | X90: =CONCATENATE("Q=",CELL("address",B90),";I=",CELL("address",M90),";U=",CELL("address",O90),";Reset=4;") -> Q=$B$90;I=$M$90;U=$O$90;Reset=4;
T91: 1
B92: Average impact: end-user down time (hours) per incident. | M92: =$N$92 -> 0.75 | N92: 0.75 | O92: hours per incident | R92: =varInput -> Inp | T92: 1 | U92: v2 | X92: =CONCATENATE("Q=",CELL("address",B92),";I=",CELL("address",M92),";D=",CELL("address",N92),";U=",CELL("address",O92),";") -> Q=$B$92;I=$M$92;D=$N$92;U=$O$92;
T93: 0
B94: Number of laptops and desktops (users). | M94: =Info!F31+Info!F33 -> 2625 | R94: =varCalculation -> Calc | T94: 0 | U94: v2 | X94: =CONCATENATE("Q=",CELL("address",B94),";C=",CELL("address",M94),";") -> Q=$B$94;C=$M$94;
T95: 1
B96: Percentage of users impacted by a virus/malware security event. | M96: =$N$96 -> 0.1 | N96: 0.1 | O96: per event. | R96: =varInput -> Inp | T96: 1 | U96: v3 | X96: =CONCATENATE("Q=",CELL("address",B96),";I=",CELL("address",M96),";D=",CELL("address",N96),";U=",CELL("address",O96),";") -> Q=$B$96;I=$M$96;D=$N$96;U=$O$96; | Y96: =CONCATENATE(CELL("address",M96),":",CELL("address",N96)) -> $M$96:$N$96
T97: 0
B98: Number of hours lost to virus/malware security incidents. | M98: =M90*M92*M94*M96 -> 787.5 | O98: hours per year | R98: =varCalculation -> Calc | T98: 0 | U98: v2 | X98: =CONCATENATE("Q=",CELL("address",B98),";C=",CELL("address",M98),";") -> Q=$B$98;C=$M$98;
T99: 1
B100: Possible incident reduction % (Cisco TrustSec solution) | M100: =$N$100 -> 0.5 | N100: 0.5 | R100: =varInput -> Inp | T100: 1 | U100: v3 | X100: =CONCATENATE("Q=",CELL("address",B100),";I=",CELL("address",M100),";D=",CELL("address",N100),";") -> Q=$B$100;I=$M$100;D=$N$100;
T101: =varLevel1 -> 0
B102: =Info!I61 -> General staff hourly rate. | M102: =Info!H61 -> 64.9 | R102: =varCalculation -> Calc | T102: 0 | U102: v4 | X102: =CONCATENATE("Q=",CELL("address",B102),";C=",CELL("address",M102),";") -> Q=$B$102;C=$M$102; | Y102: =CELL("address",M102) -> $M$102
T103: 0
B104: Total loss of value per year. | M104: =M98*M102 -> 51108.75 | R104: =varCalculation -> Calc | T104: 0 | U104: v2 | V104: =varTotal -> T | X104: =CONCATENATE("Q=",CELL("address",B104),";C=",CELL("address",M104),";") -> Q=$B$104;C=$M$104; | Y104: =CELL("address",M104) -> $M$104
T105: 1
B106: Security incidents reduction savings. | M106: =IF(AND($AC$2=TRUE,$M$88=TRUE),M98*M100*M102,0) -> 25554.375 | R106: =varTotal&varCalculation -> TCalc | T106: 1 | U106: v4=v1*v2*v3 | V106: =varBenefitsBusiness -> Business | W106: =varOPEX -> OPEX | X106: =CONCATENATE("Q=",CELL("address",B106),";C=",CELL("address",M106),";") -> Q=$B$106;C=$M$106; | Y106: =CELL("address",M106) -> $M$106
T107: 1
R108: =varCost&varBenefit -> CB | S108: =ForrEndChar -> - | T108: -1 | U108: =varBenefit -> B

Sheet SMART
R1: ColH | S1: ColHSub | T1: DisplayLevel | U1: Desc | V1: ITBU | W1: CAPOPEX | X1: InputAdr | Y1: CurrencyRange | Z1: InpValue | AB1: UsableSheet | AC1: VisibleSheet | AD1: FirstVisit | AE1: FirstCell | AF1: EnableSelection | AG1: SheetTitle
T2: -1 | AB2: TRUE | AC2: =Summary!$N$44 -> TRUE | AD2: FALSE | AF2: xlUnlockedCells | AG2: Catalyst SmartOperations
R3: =varHeader&2 -> H2 | S3: =ForrBeginChar -> + | T3: -1
C4: =varToolTitle -> Cisco Access Switching ROI Calculator | P4: Key:
P5: Input
C6: =$AG$2 -> Catalyst SmartOperations | P6: Suggested
I7: Select Service Benefits | P7: Calculated
R8: =varHeader&2 -> H2 | S8: =ForrEndChar -> - | T8: -1
T9: 1
B10: Catalyst SmartOperations include features that help automate infrastructure deployment. This includes SmartInstall and AutoSmart Ports as its key elements. | T10: 1
B11: SmartInstall is a plug-and-play configuration and image-management feature that provides zero-touch deployment for new switches. This means that a customer can ship a switch to a location, place it in the network and power it on with no configuration required on the switch. Auto SmartPorts dynamically configure ports based on the device type detected on the port for faster and tested deployments across the network | T11: 1
B12: In addition switch integrated automation capabilities such as Embedded Event Manager & IP SLA make Cisco networks easy to deploy and manage. Cisco access switches allow networks to adapt and support new application deployments to meet changing business needs with these Smart Operations features. This leads to decrease in labor and time spent on initial install, configuration and other associated activities. | T12: 1
R14: =varSummary -> S | S14: =ForrBeginChar -> + | T14: -1
A15: Summary of SMARTOperations Benefits
R17: =varSummary&varChart -> SChart | S17: =ForrBeginChar -> +
R37: =varSummary&varChart -> SChart | S37: =ForrEndChar -> -
R39: =varBenefit&varSummary&varEquation&varOriginal -> BSEO | S39: =ForrBeginChar -> + | T39: -1
B40: =CONCATENATE("Cash Flows - ", $AG$2) -> Cash Flows - Catalyst SmartOperations | N40: Breakdown
B41: Category | E41: Initial | F41: Year 1 | G41: Year 2 | H41: Year 3 | I41: Year 4 | J41: Year 5 | K41: Total | L41: Present Value | N41: % Total | O41: CAPEX | P41: OPEX | R41: =varBenefit&varSummary&varTitle -> BSTitle
B42: =$A$59 -> Reduction in initial configuration of new switches with SmartInstall | E42: 0 | F42: =$M$72 -> 3313.2825 | G42: 0 | H42: 0 | I42: 0 | J42: 0 | K42: =SUM(E42:J42) -> 3313.2825 | L42: =E42+NPV(varDiscountRate,F42:J42) -> 3012.075 | N42: =IF($L$47=0,"----",L42/$L$47) -> 0.01484907259 | O42: =IF(W42=varCAPEX,L42,"") ->  | P42: =IF(W42=varOPEX,L42,"") -> 3012.075 | R42: =varBenefit&varSummary&varEquation&varOriginal -> BSEO | T42: =$T$72 -> 1 | V42: =$V$72 -> Business | W42: =$W$72 -> OPEX | Y42: =CONCATENATE(CELL("address",F42),":",CELL("address",L42),",",CELL("address",O42),":",CELL("address",P42)) -> $F$42:$L$42,$O$42:$P$42
B43: =$A$76 -> Reduction in ongoing configuration of switches with SmartInstall | E43: 0 | F43: =$M$93 -> 331.32825 | G43: =$M$93 -> 331.32825 | H43: =$M$93 -> 331.32825 | I43: =$M$93 -> 331.32825 | J43: =$M$93 -> 331.32825 | K43: =SUM(E43:J43) -> 1656.64125 | L43: =E43+NPV(varDiscountRate,F43:J43) -> 1255.994746 | N43: =IF($L$47=0,"----",L43/$L$47) -> 0.006191863469 | O43: =IF(W43=varCAPEX,L43,"") ->  | P43: =IF(W43=varOPEX,L43,"") -> 1255.994746 | R43: =varBenefit&varSummary&varEquation&varOriginal -> BSEO | T43: =$T$93 -> 1 | V43: =$V$93 -> Business | W43: =$W$93 -> OPEX | Y43: $F$43:$L$43,$O$43:$P$43
B44: =$A$97 -> Reduction in testing and initial configuration of new devices with Auto SmartPorts | E44: 0 | F44: =$M$108 -> 46732.8 | G44: 0 | H44: 0 | I44: 0 | J44: 0 | K44: =SUM(E44:J44) -> 46732.8 | L44: =E44+NPV(varDiscountRate,F44:J44) -> 42484.36364 | N44: =IF($L$47=0,"----",L44/$L$47) -> 0.2094414646 | O44: =IF(W44=varCAPEX,L44,"") ->  | P44: =IF(W44=varOPEX,L44,"") -> 42484.36364 | R44: =varBenefit&varSummary&varEquation&varOriginal -> BSEO | T44: =$T$108 -> 1 | V44: =$V$108 -> Business | W44: =$W$108 -> OPEX | Y44: $F$44:$L$44,$O$44:$P$44
B45: =$A$112 -> Reduction in ongoing configuration of devices (owing to mobility) with Auto SmartPorts | E45: 0 | F45: =$M$125 -> 6024.15 | G45: =$M$125 -> 6024.15 | H45: =$M$125 -> 6024.15 | I45: =$M$125 -> 6024.15 | J45: =$M$125 -> 6024.15 | K45: =SUM(E45:J45) -> 30120.75 | L45: =E45+NPV(varDiscountRate,F45:J45) -> 22836.26812 | N45: =IF($L$47=0,"----",L45/$L$47) -> 0.1125793358 | O45: =IF(W45=varCAPEX,L45,"") ->  | P45: =IF(W45=varOPEX,L45,"") -> 22836.26812 | R45: =varBenefit&varSummary&varEquation&varOriginal -> BSEO | T45: =$T$125 -> 1 | V45: =$V$125 -> Business | W45: =$W$125 -> OPEX | Y45: $F$45:$L$45,$O$45:$P$45
B46: =$A$129 -> Reduction in over provisioning | E46: =$M$150 -> 133257.3 | F46: 0 | G46: 0 | H46: 0 | I46: 0 | J46: 0 | K46: =SUM(E46:J46) -> 133257.3 | L46: =E46+NPV(varDiscountRate,F46:J46) -> 133257.3 | N46: =IF($L$47=0,"----",L46/$L$47) -> 0.6569382636 | O46: =IF(W46=varCAPEX,L46,"") -> 133257.3 | P46: =IF(W46=varOPEX,L46,"") ->  | R46: =varBenefit&varSummary&varEquation&varOriginal -> BSEO | T46: =$T$150 -> 1 | V46: =$V$150 -> Business | W46: =$W$150 -> CAPEX | Y46: $F$46:$L$46,$O$46:$P$46
B47: Total | E47: =SUM(E42:E46) -> 133257.3 | F47: 56401.56075 | G47: 6355.47825 | H47: 6355.47825 | I47: 6355.47825 | J47: 6355.47825 | K47: 215080.7738 | L47: 202846.0015 | O47: =SUM(O42:O46) -> 133257.3 | P47: =SUM(P42:P46) -> 69588.7015 | R47: =varBenefit&varSummary&varEquation&varOriginal&varTotal -> BSEOT | Y47: $F$47:$L$47,$O$47:$P$47
B48: ="Confidence adjustment (" & varConfidenceLevel &")" -> Confidence adjustment (Low) | E48: =IF(R48=varBenefit,varRiskB,varRiskC) -> 0.8333333333 | R48: =varBenefit -> B
B49: Total (Risk Adjusted) | E49: =E47*$E48 -> 111047.75 | F49: 47001.30063 | G49: 5296.231875 | H49: 5296.231875 | I49: 5296.231875 | J49: 5296.231875 | K49: =SUM(E49:J49) -> 179233.9781 | L49: =E49+NPV(varDiscountRate,F49:J49) -> 169038.3346 | O49: =O47*E48 -> 111047.75 | P49: =P47*E48 -> 57990.58458 | R49: =varBenefit&varSummary&varEquation&varRisk&varTotal -> BSERT | Y49: =CONCATENATE(CELL("address",F49),":",CELL("address",L49),",",CELL("address",O49),":",CELL("address",P49)) -> $F$49:$L$49,$O$49:$P$49
R50: =varBenefit&varSummary&varEquation&varOriginal -> BSEO | S50: =ForrEndChar -> - | T50: -1
R51: =varSummary -> S | S51: =ForrEndChar -> - | T51: -1
B53: For any benefit category in the areas, change the default value(s) to 0 to exclude it from the analysis. | T53: 1
T54: 1
T55: 1
B56: How are your switches installed and configured in your network? | H56: By the internal IT Team | T56: 1 | X56: =CONCATENATE("Q=",CELL("address",B56),";I=",CELL("address",H56),";Reset=By the internal IT Team;") -> Q=$B$56;I=$H$56;Reset=By the internal IT Team;
T57: 1
R58: =varCost&varBenefit -> CB | S58: =ForrBeginChar -> + | T58: -1 | U58: =varBenefit -> B
A59: Reduction in initial configuration of new switches with SmartInstall | R59: =varTitle -> Title | T59: 1 | X59: =CONCATENATE("Q=",CELL("address",A59),";") -> Q=$A$59;
B60: Brand new switches when deployed, need a startup configuration with basic access parameters and then a full configuration with advanced features such as Security, QOS etc. Sending each of these configurations to every switch can increase network downtime and costs to configure the network. SmartInstall combines both the steps and distributes configurations in true zero touch fashion saving time and money. Typically customers standardize on config templates for their network. Cisco infrastructure (such as Cat 3k and ISR) allows customers to simply define the templates once and have intelligent Cisco infrastructure automatically download the right templates to new access switches. This cuts down the time required in staging the switches & ensures all access switches are compliant to Corporate standard templates. SmartInstall combines both the steps and distributes configurations in true zero touch fashion saving time and money. | T60: 1
T61: 0
B62: Number of new access switches. | M62: =Costs!$G$56 -> 121 | R62: =varInput -> Inp | T62: 0 | U62: v1 | X62: =CONCATENATE("Q=",CELL("address",B62),";C=",CELL("address",M62),";") -> Q=$B$62;C=$M$62;
T63: 1
B64: Time spent per switch to configure for new device in hours. | M64: =$N$64 -> 0.75 | N64: 0.75 | O64: hours | R64: =varInput -> Inp | T64: 1 | U64: v2 | X64: =CONCATENATE("Q=",CELL("address",B64),";I=",CELL("address",M64),";D=",CELL("address",N64),";U=",CELL("address",O64),";") -> Q=$B$64;I=$M$64;D=$N$64;U=$O$64;
T65: 1
B66: Possible savings per switch to test and initially configure a new switch on the network. | M66: =$N$66 -> 0.75 | N66: 0.75 | R66: =varInput -> Inp | T66: 1 | U66: v3 | X66: =CONCATENATE("Q=",CELL("address",B66),";I=",CELL("address",M66),";D=",CELL("address",N66),";") -> Q=$B$66;I=$M$66;D=$N$66;
T67: =varLevel1 -> 0
B68: =Info!$I$59 -> IT staff hourly rate. | M68: =Info!$H$59 -> 48.68 | R68: =varCalculation -> Calc | T68: 0 | U68: v4 | X68: =CONCATENATE("Q=",CELL("address",B68),";C=",CELL("address",M68),";") -> Q=$B$68;C=$M$68; | Y68: =CELL("address",M68) -> $M$68
T69: 1
B70: Cost charged per switch installation and configuration by partner or service provider? | M70: =$N$70 -> 750 | N70: 750 | O70: per switch | R70: =varInput -> Inp | T70: 1 | U70: v3 | X70: =CONCATENATE("Q=",CELL("address",B70),";I=",CELL("address",M70),";D=",CELL("address",N70),";U=",CELL("address",O70),";") -> Q=$B$70;I=$M$70;D=$N$70;U=$O$70; | Y70: =CONCATENATE(CELL("address",M70),":",CELL("address",N70)) -> $M$70:$N$70
T71: 1
B72: Total OPEX savings per year with Cisco for initial configuration of new switches. | M72: =IF($AC$2=TRUE,IF($H$56="By the internal IT Team",M62*M64*M66*M68,M62*M70*M66),0) -> 3313.2825 | R72: =varTotal&varCalculation -> TCalc | T72: 1 | U72: v5 | V72: =varBenefitsBusiness -> Business | W72: =varOPEX -> OPEX | X72: =CONCATENATE("Q=",CELL("address",B72),";C=",CELL("address",M72),";PERIODSTART=1;PERIODEND=1;") -> Q=$B$72;C=$M$72;PERIODSTART=1;PERIODEND=1; | Y72: =CELL("address",M72) -> $M$72
T73: 1
R74: =varCost&varBenefit -> CB | S74: =ForrEndChar -> - | T74: -1 | U74: =varBenefit -> B
R75: =varCost&varBenefit -> CB | S75: =ForrBeginChar -> + | T75: -1 | U75: =varBenefit -> B
A76: Reduction in ongoing configuration of switches with SmartInstall | R76: =varTitle -> Title | T76: 1 | X76: =CONCATENATE("Q=",CELL("address",A76),";") -> Q=$A$76;
B77: Switches once configured may need configuration changes when they are moved to another location or are serving a new set of end devices. SmartInstall can push new configuration to number of switches using minimal configuration reducing operational complexity. | T77: 1
T78: 0
B79: Number of new access switches. | M79: =Costs!$G$56 -> 121 | R79: =varInput -> Inp | T79: 0 | U79: v1 | X79: =CONCATENATE("Q=",CELL("address",B79),";C=",CELL("address",M79),";") -> Q=$B$79;C=$M$79;
T80: 1
B81: Percentage of switches that are reinstalled and reconfigured each year. | M81: =$N$81 -> 0.1 | N81: 0.1 | R81: =varInput -> Inp | T81: 1 | U81: v3 | X81: =CONCATENATE("Q=",CELL("address",B81),";I=",CELL("address",M81),";D=",CELL("address",N81),";") -> Q=$B$81;I=$M$81;D=$N$81;
T82: 0
B83: Number of new access switches configured throughout the year. | M83: =M79*M81 -> 12.1 | R83: =varInput -> Inp | T83: 0 | U83: v1 | X83: =CONCATENATE("Q=",CELL("address",B83),";C=",CELL("address",M83),";") -> Q=$B$83;C=$M$83;
T84: 0
B85: Time spent per switch to configure for new device in hours. | M85: =M64 -> 0.75 | O85: hours | R85: =varInput -> Inp | T85: 0 | U85: v2 | X85: =CONCATENATE("Q=",CELL("address",B85),";C=",CELL("address",M85),";") -> Q=$B$85;C=$M$85;
T86: 0
B87: =B66 -> Possible savings per switch to test and initially configure a new switch on the network. | M87: =M66 -> 0.75 | R87: =varInput -> Inp | T87: 0 | U87: v3 | X87: =CONCATENATE("Q=",CELL("address",B87),";C=",CELL("address",M87),";") -> Q=$B$87;C=$M$87;
T88: =varLevel1 -> 0
B89: =Info!$I$59 -> IT staff hourly rate. | M89: =Info!$H$59 -> 48.68 | R89: =varCalculation -> Calc | T89: 0 | U89: v4 | X89: =CONCATENATE("Q=",CELL("address",B89),";C=",CELL("address",M89),";") -> Q=$B$89;C=$M$89; | Y89: =CELL("address",M89) -> $M$89
T90: 0
B91: Cost charged per switch installation and configuration by partner or service provider? | M91: =M70 -> 750 | O91: per switch | R91: =varInput -> Inp | T91: 0 | U91: v3 | X91: =CONCATENATE("Q=",CELL("address",B91),";C=",CELL("address",M91),";") -> Q=$B$91;C=$M$91; | Y91: =CONCATENATE(CELL("address",M91),":",CELL("address",N91)) -> $M$91:$N$91
T92: 1
B93: Total OPEX savings per year with Cisco for initial configuration of new switches. | M93: =IF($AC$2=TRUE,IF($H$56="By the internal IT Team",M83*M85*M87*M89,M83*M91*M87),0) -> 331.32825 | R93: =varTotal&varCalculation -> TCalc | T93: 1 | U93: v5 | V93: =varBenefitsBusiness -> Business | W93: =varOPEX -> OPEX | X93: =CONCATENATE("Q=",CELL("address",B93),";C=",CELL("address",M93),";") -> Q=$B$93;C=$M$93; | Y93: =CELL("address",M93) -> $M$93
T94: 1
R95: =varCost&varBenefit -> CB | S95: =ForrEndChar -> - | T95: -1 | U95: =varBenefit -> B
R96: =varCost&varBenefit -> CB | S96: =ForrBeginChar -> + | T96: -1 | U96: =varBenefit -> B
A97: Reduction in testing and initial configuration of new devices with Auto SmartPorts | R97: =varTitle -> Title | T97: 1 | X97: =CONCATENATE("Q=",CELL("address",A97),";") -> Q=$A$97;
B98: AutoSmart ports automatically identifies Cisco and non-Cisco end points and applies device specific configuration as recommended by Cisco with the correct parameters and vlans. This reduces the need for reserving ports for different kinds of devices on a switch. | T98: 1
T99: 1
B100: Number of different devices in customer network. (devices could be printers, laptops, desktops, servers, IP phones, access points - anything that goes into a port, security cameras) | M100: 30 | O100: devices | R100: =varInput -> Inp | T100: 1 | U100: v1 | X100: =CONCATENATE("Q=",CELL("address",B100),";I=",CELL("address",M100),";U=",CELL("address",O100),";Reset=0;") -> Q=$B$100;I=$M$100;U=$O$100;Reset=0; | Z100: 30
T101: 1
B102: Time spent (in days) per port to test and initially configure a new port on the network. (for each new device) | M102: =$N$102 -> 5 | N102: 5 | O102: days | R102: =varInput -> Inp | T102: 1 | U102: v2 | X102: =CONCATENATE("Q=",CELL("address",B102),";I=",CELL("address",M102),";D=",CELL("address",N102),";U=",CELL("address",O102),";") -> Q=$B$102;I=$M$102;D=$N$102;U=$O$102;
T103: 1
B104: Possible savings per port to test and initially configure a new port on the network. | M104: =$N$104 -> 0.8 | N104: 0.8 | R104: =varInput -> Inp | T104: 1 | U104: v3 | X104: =CONCATENATE("Q=",CELL("address",B104),";I=",CELL("address",M104),";D=",CELL("address",N104),";") -> Q=$B$104;I=$M$104;D=$N$104;
T105: =varLevel1 -> 0
B106: =Info!$I$59 -> IT staff hourly rate. | M106: =Info!$H$59 -> 48.68 | R106: =varCalculation -> Calc | T106: 0 | U106: v4 | X106: =CONCATENATE("Q=",CELL("address",B106),";C=",CELL("address",M106),";") -> Q=$B$106;C=$M$106; | Y106: =CELL("address",M106) -> $M$106
T107: 1
B108: Total OPEX savings in first year for initial configuration. | M108: =IF($AC$2=TRUE,(M102-(M102-(M102*M104)))*8*M100*M106,0) -> 46732.8 | R108: =varTotal&varCalculation -> TCalc | T108: 1 | U108: v5 | V108: =varBenefitsBusiness -> Business | W108: =varOPEX -> OPEX | X108: =CONCATENATE("Q=",CELL("address",B108),";C=",CELL("address",M108),";PERIODSTART=1;PERIODEND=1;") -> Q=$B$108;C=$M$108;PERIODSTART=1;PERIODEND=1; | Y108: =CELL("address",M108) -> $M$108
T109: 1
R110: =varCost&varBenefit -> CB | S110: =ForrEndChar -> - | T110: -1 | U110: =varBenefit -> B
R111: =varCost&varBenefit -> CB | S111: =ForrBeginChar -> + | T111: -1 | U111: =varBenefit -> B
A112: Reduction in ongoing configuration of devices (owing to mobility) with Auto SmartPorts | R112: =varTitle -> Title | T112: 1 | X112: =CONCATENATE("Q=",CELL("address",A112),";") -> Q=$A$112;
B113: Auto SmartPorts applies device configuration to a port when the device is plugged in and removes the configuration when the device is plugged out. This reduces the need to reconfigure ports every time a new device is plugged in. | T113: 1
T114: 0
B115: Number of users. | M115: =Info!F27 -> 2500 | O115: users | R115: =varInput -> Inp | T115: 0 | U115: v1 | X115: =CONCATENATE("Q=",CELL("address",B115),";C=",CELL("address",M115),";") -> Q=$B$115;C=$M$115;
T116: 1
B117: How many moves (including additions, changes, replacements) of end devices that are connected to access (edge) switch ports occur on average per year at your company (as a percentage of overall devices). | M117: =$N$117 -> 0.2 | N117: 0.2 | R117: =varInput -> Inp | T117: 1 | X117: =CONCATENATE("Q=",CELL("address",B117),";I=",CELL("address",M117),";D=",CELL("address",N117),";U=",CELL("address",O117),";") -> Q=$B$117;I=$M$117;D=$N$117;U=$O$117;
T118: 1
B119: Time spent per port to configure for new port in hours. | M119: =$N$119 -> 0.33 | N119: 0.33 | O119: hours | R119: =varInput -> Inp | T119: 1 | U119: v2 | X119: =CONCATENATE("Q=",CELL("address",B119),";I=",CELL("address",M119),";D=",CELL("address",N119),";U=",CELL("address",O119),";") -> Q=$B$119;I=$M$119;D=$N$119;U=$O$119;
T120: 1
B121: Possible savings per port to test and initially configure a new port on the network. | M121: =$N$121 -> 0.75 | N121: 0.75 | R121: =varInput -> Inp | T121: 1 | U121: v3 | X121: =CONCATENATE("Q=",CELL("address",B121),";I=",CELL("address",M121),";D=",CELL("address",N121),";") -> Q=$B$121;I=$M$121;D=$N$121;
T122: =varLevel1 -> 0
B123: =Info!$I$59 -> IT staff hourly rate. | M123: =Info!$H$59 -> 48.68 | R123: =varCalculation -> Calc | T123: 0 | U123: v4 | X123: =CONCATENATE("Q=",CELL("address",B123),";C=",CELL("address",M123),";") -> Q=$B$123;C=$M$123; | Y123: =CELL("address",M123) -> $M$123
T124: 1
B125: Total OPEX savings per year with Cisco. | M125: =IF($AC$2=TRUE,M115*M117*M119*M121*M123,0) -> 6024.15 | R125: =varTotal&varCalculation -> TCalc | T125: 1 | U125: v5 | V125: =varBenefitsBusiness -> Business | W125: =varOPEX -> OPEX | X125: =CONCATENATE("Q=",CELL("address",B125),";C=",CELL("address",M125),";") -> Q=$B$125;C=$M$125; | Y125: =CELL("address",M125) -> $M$125
T126: 1
R127: =varCost&varBenefit -> CB | S127: =ForrEndChar -> - | T127: -1 | U127: =varBenefit -> B
R128: =varCost&varBenefit -> CB | S128: =ForrBeginChar -> + | T128: -1 | U128: =varBenefit -> B
A129: Reduction in over provisioning | R129: =varTitle -> Title | T129: 1 | X129: =CONCATENATE("Q=",CELL("address",A129),";") -> Q=$A$129;
B130: Auto SmartPorts enable any device any port without the need for pre-provisioning. This gives the ability for IT admins to order the correct number of switches based on the number of end-points. | T130: 1
T131: 0
B132: Number of new access switches. | M132: =Costs!$G$56 -> 121 | R132: =varCalculation -> Calc | T132: 0 | U132: v1 | X132: =CONCATENATE("Q=",CELL("address",B132),";C=",CELL("address",M132),";") -> Q=$B$132;C=$M$132;
T133: 0
B134: Approximate number of ports. | M134: =M132*IF(Costs!G47=FALSE,24,48) -> 5808 | R134: =varCalculation -> Calc | T134: 0 | U134: v2 | X134: =CONCATENATE("Q=",CELL("address",B134),";C=",CELL("address",M134),";") -> Q=$B$134;C=$M$134;
T135: 1
B136: Percentage of ports that are "over provisioned" because of standard configurations that will be used across all of your switches to avoid complication. | M136: =$N$136 -> 0.1 | N136: 0.1 | R136: =varInput -> Inp | T136: 1 | U136: v3 | X136: =CONCATENATE("Q=",CELL("address",B136),";I=",CELL("address",M136),";D=",CELL("address",N136),";") -> Q=$B$136;I=$M$136;D=$N$136;
T137: 0
B138: Number of ports "conserved." | M138: =M134*M136 -> 580.8 | R138: =varCalculation -> Calc | T138: 0 | U138: v4=v2*v3 | X138: =CONCATENATE("Q=",CELL("address",B138),";C=",CELL("address",M138),";") -> Q=$B$138;C=$M$138;
T139: 0
B140: Number of switches "conserved." | M140: =M138/IF(Costs!G47=FALSE,24,48) -> 12.1 | R140: =varCalculation -> Calc | T140: 0 | U140: v5=v4/8 | X140: =CONCATENATE("Q=",CELL("address",B140),";C=",CELL("address",M140),";") -> Q=$B$140;C=$M$140;
T141: 0
B142: =Costs!B55 -> WS-C3750X-48P-S Selling List Price | M142: =Costs!$M73/Costs!$G$56 -> 10075 | R142: =varCalculation -> Calc | T142: 0 | U142: v6 | X142: =CONCATENATE("Q=",CELL("address",B142),";C=",CELL("address",M142),";") -> Q=$B$142;C=$M$142; | Y142: =CELL("address",M142) -> $M$142
T143: 0
B144: CAPEX savings. | M144: =M140*M142 -> 121907.5 | R144: =varCalculation -> Calc | T144: 0 | U144: v7=v5*v6 | X144: =CONCATENATE("Q=",CELL("address",B144),";C=",CELL("address",M144),";") -> Q=$B$144;C=$M$144; | Y144: =CELL("address",M144) -> $M$144
T145: 0
B146: Installation savings per access switch. | M146: =Costs!$M$93 -> 938 | R146: =varCalculation -> Calc | T146: 0 | U146: v8 | X146: =CONCATENATE("Q=",CELL("address",B146),";C=",CELL("address",M146),";") -> Q=$B$146;C=$M$146; | Y146: =CELL("address",M146) -> $M$146
T147: 0
B148: Installation savings per access switch. | M148: =M140*M146 -> 11349.8 | R148: =varCalculation -> Calc | T148: 0 | U148: v9=v5*v8 | X148: =CONCATENATE("Q=",CELL("address",B148),";C=",CELL("address",M148),";") -> Q=$B$148;C=$M$148; | Y148: =CELL("address",M148) -> $M$148
T149: 1
B150: Total initial CAPEX savings with Cisco. | M150: =IF($AC$2=TRUE,M144+M148,0) -> 133257.3 | R150: =varTotal&varCalculation -> TCalc | T150: 1 | U150: v10=v7+v9 | V150: =varBenefitsBusiness -> Business | W150: =varCAPEX -> CAPEX | X150: =CONCATENATE("Q=",CELL("address",B150),";C=",CELL("address",M150),";") -> Q=$B$150;C=$M$150; | Y150: =CELL("address",M150) -> $M$150
T151: 1
R152: =varCost&varBenefit -> CB | S152: =ForrEndChar -> - | T152: -1 | U152: =varBenefit -> B

Sheet MTNO
R1: ColH | S1: ColHSub | T1: DisplayLevel | U1: Desc | V1: ITBU | W1: CAPOPEX | X1: InputAdr | Y1: CurrencyRange | Z1: InpValue | AB1: UsableSheet | AC1: VisibleSheet | AD1: FirstVisit | AE1: FirstCell | AF1: EnableSelection | AG1: SheetTitle
T2: -1 | AB2: TRUE | AC2: =Summary!N44 -> TRUE | AD2: FALSE | AF2: xlUnlockedCells | AG2: Monitoring and Network Optimization
R3: =varHeader&2 -> H2 | S3: =ForrBeginChar -> + | T3: -1
C4: =varToolTitle -> Cisco Access Switching ROI Calculator | P4: Key:
P5: Input
C6: =$AG$2 -> Monitoring and Network Optimization | P6: Suggested
I7: Select Service Benefits | P7: Calculated
R8: =varHeader&2 -> H2 | S8: =ForrEndChar -> - | T8: -1
T9: 1
B10: Cisco Access switches ensure a quality user experience while optimizing bandwidth use and efficiency with built-in features such as auto-configuration, media monitoring, traffic simulators, flexible netflow. | T10: 1
B11: Medianet helps customers validate network readiness and simplify troubleshooting with embedded traffic simulator and Mediatrace. Further the customers can prioritize business-critical traffic such as video with Strict Priority Queuing. Improved network visibility results in better planning and investment decisions and bandwidth scoping with Performance Monitor, Mediatrace, and Cisco Prime Collaboration Manager. | T11: 1
B12: Monitoring and Network Optimization with Cisco Access switches reduces total cost of ownership and scales video through features such as auto-configuration and media monitoring. At the same time, it helps to ensure a quality user experience while optimizing bandwidth use and efficiency. | T12: 1
R14: =varSummary -> S | S14: =ForrBeginChar -> + | T14: -1
A15: Summary of Benefits
R17: =varSummary&varChart -> SChart | S17: =ForrBeginChar -> +
R36: =varSummary&varChart -> SChart | S36: =ForrEndChar -> -
R37: =varBenefit&varSummary&varEquation&varOriginal -> BSEO | S37: =ForrBeginChar -> + | T37: -1
B38: =CONCATENATE("Cash Flows - ", $AG$2) -> Cash Flows - Monitoring and Network Optimization | N38: Breakdown
B39: Category | E39: Initial | F39: Year 1 | G39: Year 2 | H39: Year 3 | I39: Year 4 | J39: Year 5 | K39: Total | L39: Present Value | N39: % Total | O39: CAPEX | P39: OPEX | R39: =varBenefit&varSummary&varTitle -> BSTitle
B40: =$A$55 -> Increased IT productivity with use of Cisco Troubleshooting and Monitoring features | E40: 0 | F40: =$M$64 -> 0 | G40: =$M$64 -> 0 | H40: =$M$64 -> 0 | I40: =$M$64 -> 0 | J40: =$M$64 -> 0 | K40: =SUM(E40:J40) -> 0 | L40: =E40+NPV(varDiscountRate,F40:J40) -> 0 | N40: =IF($L$45=0,"----",L40/$L$45) -> ---- | O40: =IF(W40=varCAPEX,L40,"") ->  | P40: =IF(W40=varOPEX,L40,"") -> 0 | R40: =varBenefit&varSummary&varEquation&varOriginal -> BSEO | T40: =$T$64 -> 1 | V40: =$V$64 -> Business | W40: =$W$64 -> OPEX | Y40: =CONCATENATE(CELL("address",F40),":",CELL("address",L40),",",CELL("address",O40),":",CELL("address",P40)) -> $F$40:$L$40,$O$40:$P$40
B41: =$A$68 -> Savings from avoiding purchase of network assessment tools. | E41: =$M$75 -> 0 | F41: 0 | G41: 0 | H41: 0 | I41: 0 | J41: 0 | K41: =SUM(E41:J41) -> 0 | L41: =E41+NPV(varDiscountRate,F41:J41) -> 0 | N41: =IF($L$45=0,"----",L41/$L$45) -> ---- | O41: =IF(W41=varCAPEX,L41,"") -> 0 | P41: =IF(W41=varOPEX,L41,"") ->  | R41: =varBenefit&varSummary&varEquation&varOriginal -> BSEO | T41: =$T$75 -> 0 | V41: =$V$75 -> Business | W41: =$W$75 -> CAPEX | Y41: $F$41:$L$41,$O$41:$P$41
B42: =$A$78 -> Savings from avoiding use and testing of network traffic tools. | E42: 0 | F42: =$M$91 -> 0 | G42: =$M$91 -> 0 | H42: =$M$91 -> 0 | I42: =$M$91 -> 0 | J42: =$M$91 -> 0 | K42: =SUM(E42:J42) -> 0 | L42: =E42+NPV(varDiscountRate,F42:J42) -> 0 | N42: =IF($L$45=0,"----",L42/$L$45) -> ---- | O42: =IF(W42=varCAPEX,L42,"") ->  | P42: =IF(W42=varOPEX,L42,"") -> 0 | R42: =varBenefit&varSummary&varEquation&varOriginal -> BSEO | T42: =$T$91 -> 1 | V42: =$V$91 -> Business | W42: =$W$91 -> OPEX | Y42: $F$42:$L$42,$O$42:$P$42
B43: =$A$95 -> Savings from avoiding purchase of network sniffer-trace tools. | E43: =$M$102 -> 0 | F43: 0 | G43: 0 | H43: 0 | I43: 0 | J43: 0 | K43: =SUM(E43:J43) -> 0 | L43: =E43+NPV(varDiscountRate,F43:J43) -> 0 | N43: =IF($L$45=0,"----",L43/$L$45) -> ---- | O43: =IF(W43=varCAPEX,L43,"") -> 0 | P43: =IF(W43=varOPEX,L43,"") ->  | R43: =varBenefit&varSummary&varEquation&varOriginal -> BSEO | T43: =$T$102 -> 0 | V43: =$V$102 -> Business | W43: =$W$102 -> CAPEX | Y43: $F$43:$L$43,$O$43:$P$43
B44: =$A$106 -> Savings from avoiding use and testing of network sniffer-trace tools. | E44: 0 | F44: =$M$127 -> 0 | G44: =$M$127 -> 0 | H44: =$M$127 -> 0 | I44: =$M$127 -> 0 | J44: =$M$127 -> 0 | K44: =SUM(E44:J44) -> 0 | L44: =E44+NPV(varDiscountRate,F44:J44) -> 0 | N44: =IF($L$45=0,"----",L44/$L$45) -> ---- | O44: =IF(W44=varCAPEX,L44,"") ->  | P44: =IF(W44=varOPEX,L44,"") -> 0 | R44: =varBenefit&varSummary&varEquation&varOriginal -> BSEO | T44: =$T$127 -> 1 | V44: =$V$127 -> Business | W44: =$W$127 -> OPEX | Y44: $F$44:$L$44,$O$44:$P$44
B45: Total | E45: =SUM(E40:E44) -> 0 | F45: 0 | G45: 0 | H45: 0 | I45: 0 | J45: 0 | K45: 0 | L45: 0 | O45: =SUM(O40:O44) -> 0 | P45: =SUM(P40:P44) -> 0 | R45: =varBenefit&varSummary&varEquation&varOriginal&varTotal -> BSEOT | Y45: $F$45:$L$45,$O$45:$P$45
B46: ="Confidence adjustment (" & varConfidenceLevel &")" -> Confidence adjustment (Low) | E46: =IF(R46=varBenefit,varRiskB,varRiskC) -> 0.8333333333 | R46: =varBenefit -> B
B47: Total (Risk Adjusted) | E47: =E45*$E46 -> 0 | F47: 0 | G47: 0 | H47: 0 | I47: 0 | J47: 0 | K47: =SUM(E47:J47) -> 0 | L47: =E47+NPV(varDiscountRate,F47:J47) -> 0 | O47: =O45*E46 -> 0 | P47: =P45*E46 -> 0 | R47: =varBenefit&varSummary&varEquation&varRisk&varTotal -> BSERT | Y47: =CONCATENATE(CELL("address",F47),":",CELL("address",L47),",",CELL("address",O47),":",CELL("address",P47)) -> $F$47:$L$47,$O$47:$P$47
R48: =varBenefit&varSummary&varEquation&varOriginal -> BSEO | S48: =ForrEndChar -> - | T48: -1
R49: =varSummary -> S | S49: =ForrEndChar -> - | T49: -1
B51: For any benefit category in the areas, change the default value(s) to 0 to exclude it from the analysis. | T51: 1
R54: =varCost&varBenefit -> CB | S54: =ForrBeginChar -> + | T54: -1 | U54: =varBenefit -> B
A55: Increased IT productivity with use of Cisco Troubleshooting and Monitoring features | R55: =varTitle -> Title | T55: 1 | X55: =CONCATENATE("Q=",CELL("address",A55),";") -> Q=$A$55;
B56: Performance monitoring provides visibility into real time video performance. Mediatrace enables network level per-session tracing and gathering of performance information at various nodes in the media path automatically. Mediatrace monitors key video performance indicators such as jitter/latency at each hop of the session. Using these two options, IT can save cost by proactively monitoring network, using which IT personnel can troubleshoot and resolve problems much faster. | T56: 1
T57: 1
B58: Projected number of uses of Cisco Troubleshooting and Monitoring features per month. | M58: 0 | N58: 15 | O58: events / month | R58: =varInput -> Inp | T58: 1 | U58: v1 | X58: =CONCATENATE("Q=",CELL("address",B58),";I=",CELL("address",M58),";D=",CELL("address",N58),";U=",CELL("address",O58),";") -> Q=$B$58;I=$M$58;D=$N$58;U=$O$58;
T59: 1
B60: Time saved per use. | M60: =$N$60 -> 0.75 | N60: 0.75 | O60: hours | R60: =varInput -> Inp | T60: 1 | U60: v2 | X60: =CONCATENATE("Q=",CELL("address",B60),";I=",CELL("address",M60),";D=",CELL("address",N60),";U=",CELL("address",O60),";") -> Q=$B$60;I=$M$60;D=$N$60;U=$O$60;
T61: 0
B62: =Info!$I$59 -> IT staff hourly rate. | M62: =Info!$H$59 -> 48.68 | R62: =varCalculation -> Calc | T62: 0 | U62: v3 | X62: =CONCATENATE("Q=",CELL("address",B62),";C=",CELL("address",M62),";") -> Q=$B$62;C=$M$62; | Y62: =CELL("address",M62) -> $M$62
T63: 1
B64: Increase in productivity with use of Cisco Troubleshooting and Monitoring features. | M64: =IF($AC$2=TRUE,M58*12*M60*M62,0) -> 0 | R64: =varTotal&varCalculation -> TCalc | T64: 1 | U64: v4=(v1*12)*v2*v3 | V64: =varBenefitsBusiness -> Business | W64: =varOPEX -> OPEX | X64: =CONCATENATE("Q=",CELL("address",B64),";C=",CELL("address",M64),";") -> Q=$B$64;C=$M$64; | Y64: =CELL("address",M64) -> $M$64
T65: 1
R66: =varCost&varBenefit -> CB | S66: =ForrEndChar -> - | T66: -1 | U66: =varBenefit -> B
R67: =varCost&varBenefit -> CB | S67: =ForrBeginChar -> + | T67: -1 | U67: =varBenefit -> B
A68: Savings from avoiding purchase of network assessment tools. | R68: =varTitle -> Title | T68: 1 | X68: =CONCATENATE("Q=",CELL("address",A68),";") -> Q=$A$68;
B69: Typically customers conduct a thorough assessment to determine whether the network has the bandwidth required to support new applications such as Video. To get a realistic assessment, they would have to deploy dedicated Video end points across the network to generate Video traffic. Through embedded traffic simulator functionality on the Catalyst 3k/4k switch every switch can act as a network probe and can simulate Video traffic generation eliminating the need for costly assessment costs related to equipment and site survey. | T69: 1
T70: 1
M71: FALSE | T71: 1
T72: 1
B73: Cost of traffic simulator. | M73: 50000 | R73: =varInput -> Inp | T73: 1 | U73: v1 | X73: =CONCATENATE("Q=",CELL("address",B73),";I=",CELL("address",M73),";Reset=50000;") -> Q=$B$73;I=$M$73;Reset=50000; | Y73: =CELL("address",M73)&";"&CELL("address",M73) -> $M$73;$M$73
T74: 0
B75: Savings from avoiding purchase of network traffic tools. | M75: =IF(AND($AC$2=TRUE,$M$71=TRUE),M73,0) -> 0 | R75: =varTotal&varCalculation -> TCalc | T75: 0 | V75: =varBenefitsBusiness -> Business | W75: =varCAPEX -> CAPEX | X75: =CONCATENATE("Q=",CELL("address",B75),";C=",CELL("address",M75),";") -> Q=$B$75;C=$M$75; | Y75: =CELL("address",M75) -> $M$75
R76: =varCost&varBenefit -> CB | S76: =ForrEndChar -> - | T76: -1 | U76: =varBenefit -> B
R77: =varCost&varBenefit -> CB | S77: =ForrBeginChar -> + | T77: -1 | U77: =varBenefit -> B
A78: Savings from avoiding use and testing of network traffic tools. | R78: =varTitle -> Title | T78: 1 | X78: =CONCATENATE("Q=",CELL("address",A78),";") -> Q=$A$78;
B79: Through embedded traffic simulator functionality as every switch acts as network probe, it greatly reduces the time it takes to isolate problems. This functionality enables to identify if the issue is with application servers or with network through detailed performance metrics. | T79: 1
T80: 1
M81: FALSE | T81: 1
T82: 1
B83: Number of sites to travel to connect a traffic simulator. | M83: 5 | O83: per year | R83: =varInput -> Inp | T83: 1 | U83: v2 | X83: =CONCATENATE("Q=",CELL("address",B83),";I=",CELL("address",M83),";U=",CELL("address",O83),";Reset=5;") -> Q=$B$83;I=$M$83;U=$O$83;Reset=5;
T84: 1
B85: Site travel cost per site. | M85: =$N$85 -> 1500 | N85: 1500 | O85: per site | R85: =varInput -> Inp | T85: 1 | U85: v3 | X85: =CONCATENATE("Q=",CELL("address",B85),";I=",CELL("address",M85),";D=",CELL("address",N85),";U=",CELL("address",O85),";") -> Q=$B$85;I=$M$85;D=$N$85;U=$O$85; | Y85: =CELL("address",M85)&":"&CELL("address",N85)&";"&CELL("address",M85) -> $M$85:$N$85;$M$85
T86: 1
B87: Total time spent to set up periodic tests throughout the year. | M87: =$N$87 -> 10 | N87: 10 | O87: days | R87: =varInput -> Inp | T87: 1 | U87: v4=v1*v2*v3 | X87: =CONCATENATE("Q=",CELL("address",B87),";I=",CELL("address",M87),";D=",CELL("address",N87),";U=",CELL("address",O87),";") -> Q=$B$87;I=$M$87;D=$N$87;U=$O$87;
T88: =varLevel1 -> 0
B89: =Info!$I$59 -> IT staff hourly rate. | M89: =Info!$H$59 -> 48.68 | R89: =varCalculation -> Calc | T89: 0 | U89: v5 | X89: =CONCATENATE("Q=",CELL("address",B89),";C=",CELL("address",M89),";") -> Q=$B$89;C=$M$89; | Y89: =CELL("address",M89) -> $M$89
T90: 1
B91: Savings from avoiding use and testing of network traffic tools. | M91: =IF(AND($AC$2=TRUE,$M$81=TRUE),(M83*M85)+(M87*M89),0) -> 0 | R91: =varTotal&varCalculation -> TCalc | T91: 1 | U91: v6=v1+(v2*v3)+(v4*v5) | V91: =varBenefitsBusiness -> Business | W91: =varOPEX -> OPEX | X91: =CONCATENATE("Q=",CELL("address",B91),";C=",CELL("address",M91),";") -> Q=$B$91;C=$M$91; | Y91: =CELL("address",M91) -> $M$91
T92: 1
R93: =varCost&varBenefit -> CB | S93: =ForrEndChar -> - | T93: -1 | U93: =varBenefit -> B
R94: =varCost&varBenefit -> CB | S94: =ForrBeginChar -> + | T94: -1 | U94: =varBenefit -> B
A95: Savings from avoiding purchase of network sniffer-trace tools. | R95: =varTitle -> Title | T95: 1 | X95: =CONCATENATE("Q=",CELL("address",A95),";") -> Q=$A$95;
B96: Performance monitoring provides real time media quality metrics at every switch. Mediatrace enables automatic network level per-session tracing and gathering of performance information at various nodes in the media path automatically. This embedded mechanism greatly reduces the cost to deploy sniffer trace tools throughout various parts of the network. IT staff can remotely troubleshoot the video performance without having to travel to remote locations where there’s no IT staff (remote branch offices). | T96: 1
T97: 1
M98: FALSE | T98: 1
T99: 1
B100: Annual cost of existing acquisition and maintenance of sniffer-tracer tool. | M100: 20000 | R100: =varInput -> Inp | T100: 1 | U100: v1 | X100: =CONCATENATE("Q=",CELL("address",B100),";I=",CELL("address",M100),";Reset=20000;") -> Q=$B$100;I=$M$100;Reset=20000; | Y100: =CELL("address",M100)&";"&CELL("address",M100) -> $M$100;$M$100
T101: 0
B102: Savings from avoiding purchase of sniffer-tracer tools. | M102: =IF(AND($AC$2=TRUE,$M$98=TRUE),M100,0) -> 0 | R102: =varTotal&varCalculation -> TCalc | T102: 0 | V102: =varBenefitsBusiness -> Business | W102: =varCAPEX -> CAPEX | X102: =CONCATENATE("Q=",CELL("address",B102),";C=",CELL("address",M102),";") -> Q=$B$102;C=$M$102; | Y102: =CELL("address",M102) -> $M$102
T103: 1
R104: =varCost&varBenefit -> CB | S104: =ForrEndChar -> - | T104: -1 | U104: =varBenefit -> B
R105: =varCost&varBenefit -> CB | S105: =ForrBeginChar -> + | T105: -1 | U105: =varBenefit -> B
A106: Savings from avoiding use and testing of network sniffer-trace tools. | R106: =varTitle -> Title | T106: 1 | X106: =CONCATENATE("Q=",CELL("address",A106),";") -> Q=$A$106;
B107: Performance monitoring provides real time media quality metrics at every switch. Mediatrace enables automatic network level per-session tracing and gathering of performance information at various nodes in the media path automatically. This embedded mechanism greatly helps the cost to deploy sniffer trace tools through out various parts of the network | T107: 1
T108: 1
M109: FALSE | T109: 1
T110: 1
B111: Number of sites to travel to troubleshoot problems based on the results from the sniffer-tracer tool. | M111: 6 | O111: per year | R111: =varInput -> Inp | T111: 1 | U111: v2 | X111: =CONCATENATE("Q=",CELL("address",B111),";I=",CELL("address",M111),";U=",CELL("address",O111),";Reset=6;") -> Q=$B$111;I=$M$111;U=$O$111;Reset=6;
T112: 1
B113: Site travel cost per site. | M113: =$N$113 -> 1500 | N113: 1500 | O113: per site | R113: =varInput -> Inp | T113: 1 | U113: v3 | X113: =CONCATENATE("Q=",CELL("address",B113),";I=",CELL("address",M113),";D=",CELL("address",N113),";U=",CELL("address",O113),";") -> Q=$B$113;I=$M$113;D=$N$113;U=$O$113; | Y113: =CELL("address",M113)&":"&CELL("address",N113)&";"&CELL("address",M113) -> $M$113:$N$113;$M$113
T114: 1
B115: Number of help/service desk cases per year on Quality of Service (QoS) and/or application performance issues with various applications, e.g. bad VOIP or video quality, slower response time? | M115: =$N$115 -> 300 | N115: 300 | O115: help desk calls per year | R115: =varInput -> Inp | T115: 1 | U115: v4=v1*v2*v3 | X115: =CONCATENATE("Q=",CELL("address",B115),";I=",CELL("address",M115),";D=",CELL("address",N115),";U=",CELL("address",O115),";") -> Q=$B$115;I=$M$115;D=$N$115;U=$O$115;
T116: 1
B117: Average help desk call to receive and process a help desk call of this type. | M117: =$N$117 -> 10 | N117: 10 | O117: minutes | R117: =varInput -> Inp | T117: 1 | U117: v4=v1*v2*v3 | X117: =CONCATENATE("Q=",CELL("address",B117),";I=",CELL("address",M117),";D=",CELL("address",N117),";U=",CELL("address",O117),";") -> Q=$B$117;I=$M$117;D=$N$117;U=$O$117;
T118: 1
B119: Percent reduction in help desk calls. | M119: =$N$119 -> 0.25 | N119: 0.25 | R119: =varInput -> Inp | T119: 1 | U119: v6 | X119: =CONCATENATE("Q=",CELL("address",B119),";I=",CELL("address",M119),";D=",CELL("address",N119),";U=",CELL("address",O119),";") -> Q=$B$119;I=$M$119;D=$N$119;U=$O$119;
T120: =varLevel1 -> 0
B121: =Info!I60 -> Help desk staff hourly rate. | M121: =Info!H60 -> 38.94 | R121: =varCalculation -> Calc | T121: 0 | U121: v5 | X121: =CONCATENATE("Q=",CELL("address",B121),";C=",CELL("address",M121),";") -> Q=$B$121;C=$M$121; | Y121: =CELL("address",M121) -> $M$121
T122: 1
B123: Average time for IT staff to troubleshoot QoS/application performance calls. | M123: =$N$123 -> 45 | N123: 45 | O123: minutes | R123: =varInput -> Inp | T123: 1 | U123: v4=v1*v2*v3 | X123: =CONCATENATE("Q=",CELL("address",B123),";I=",CELL("address",M123),";D=",CELL("address",N123),";U=",CELL("address",O123),";") -> Q=$B$123;I=$M$123;D=$N$123;U=$O$123;
T124: =varLevel1 -> 0
B125: =Info!$I$59 -> IT staff hourly rate. | M125: =Info!$H$59 -> 48.68 | R125: =varCalculation -> Calc | T125: 0 | U125: v5 | X125: =CONCATENATE("Q=",CELL("address",B125),";C=",CELL("address",M125),";") -> Q=$B$125;C=$M$125; | Y125: =CELL("address",M125) -> $M$125
T126: 1
B127: Savings from avoiding purchase, use, and testing of network traffic tools. | M127: =IF(AND($AC$2=TRUE,$M$109=TRUE),(M111*M113)+(M115*(M117/60)*M119*M121)+(M115*(M123/60)*M125),0) -> 0 | R127: =varTotal&varCalculation -> TCalc | T127: 1 | U127: v6=v1+(v2*v3)+(v4*v5) | V127: =varBenefitsBusiness -> Business | W127: =varOPEX -> OPEX | X127: =CONCATENATE("Q=",CELL("address",B127),";C=",CELL("address",M127),";") -> Q=$B$127;C=$M$127; | Y127: =CELL("address",M127) -> $M$127
T128: 1
R129: =varCost&varBenefit -> CB | S129: =ForrEndChar -> - | T129: -1 | U129: =varBenefit -> B

Sheet HA
R1: ColH | S1: ColHSub | T1: DisplayLevel | U1: Desc | V1: ITBU | W1: CAPOPEX | X1: InputAdr | Y1: CurrencyRange | Z1: InpValue | AB1: UsableSheet | AC1: VisibleSheet | AD1: FirstVisit | AE1: FirstCell | AF1: EnableSelection | AG1: SheetTitle
T2: -1 | AB2: TRUE | AC2: =Summary!$N$45 -> TRUE | AD2: FALSE | AF2: xlUnlockedCells | AG2: High Availability
R3: =varHeader&2 -> H2 | S3: =ForrBeginChar -> + | T3: -1
C4: =varToolTitle -> Cisco Access Switching ROI Calculator | P4: Key:
P5: Input
C6: =$AG$2 -> High Availability | P6: Suggested
I7: Select Service Benefits | P7: Calculated
R8: =varHeader&2 -> H2 | S8: =ForrEndChar -> - | T8: -1
T9: 1
B10: With Cisco Catalyst Series switches, organizations can deploy industry-leading high-availability features and technology innovations that can mitigate downtime, at both a device level and a network protocol level. | T10: 1
B11: High availability in the wiring closet is more critical with real-time application deployments.Cisco Catalyst switches provide extensive resiliency features to help network managers build highly available networks with device-level features and network-level features. Redundant power supplies and cooling fans are some examples | T11: 1
B12: High availability with Cisco Catalyst switches helps to increase network uptime and minimizes the business impact to a customer because of their network. Risk of revenue loss owing to the network being down is also minimized. Cisco catalyst switches also increase IT productivity due to reduction in planned downtime. | T12: 1
R14: =varSummary -> S | S14: =ForrBeginChar -> + | T14: -1
A15: Summary of High Availability Benefits
R17: =varSummary&varChart -> SChart | S17: =ForrBeginChar -> +
R36: =varSummary&varChart -> SChart | S36: =ForrEndChar -> -
R37: =varBenefit&varSummary&varEquation&varOriginal -> BSEO | S37: =ForrBeginChar -> + | T37: -1
B38: =CONCATENATE("Cash Flows - ", $AG$2) -> Cash Flows - High Availability | N38: Breakdown
B39: Category | E39: Initial | F39: Year 1 | G39: Year 2 | H39: Year 3 | I39: Year 4 | J39: Year 5 | K39: Total | L39: Present Value | N39: % Total | O39: CAPEX | P39: OPEX | R39: =varBenefit&varSummary&varTitle -> BSTitle
B40: =$A$53 -> Increased business productivity due to reduction in unplanned downtime. | E40: 0 | F40: =$M$70 -> 3245 | G40: =$M$70 -> 3245 | H40: =$M$70 -> 3245 | I40: =$M$70 -> 3245 | J40: =$M$70 -> 3245 | K40: =SUM(E40:J40) -> 16225 | L40: =E40+NPV(varDiscountRate,F40:J40) -> 12301.10307 | N40: =IF($L$43=0,"----",L40/$L$43) -> 0.1304172806 | O40: =IF(W40=varCAPEX,L40,"") ->  | P40: =IF(W40=varOPEX,L40,"") -> 12301.10307 | R40: =varBenefit&varSummary&varEquation&varOriginal -> BSEO | T40: =$T$70 -> 1 | V40: =$V$70 -> Business | W40: =$W$70 -> OPEX | Y40: =CONCATENATE(CELL("address",F40),":",CELL("address",L40),",",CELL("address",O40),":",CELL("address",P40)) -> $F$40:$L$40,$O$40:$P$40
B41: =$A$74 -> Increased IT productivity due to reduction in planned downtime. | E41: 0 | F41: =$M$89 -> 14136.672 | G41: =$M$89 -> 14136.672 | H41: =$M$89 -> 14136.672 | I41: =$M$89 -> 14136.672 | J41: =$M$89 -> 14136.672 | K41: =SUM(E41:J41) -> 70683.36 | L41: =E41+NPV(varDiscountRate,F41:J41) -> 53589.10918 | N41: =IF($L$43=0,"----",L41/$L$43) -> 0.5681560307 | O41: =IF(W41=varCAPEX,L41,"") ->  | P41: =IF(W41=varOPEX,L41,"") -> 53589.10918 | R41: =varBenefit&varSummary&varEquation&varOriginal -> BSEO | T41: =$T$89 -> 1 | V41: =$V$89 -> Business | W41: =$W$89 -> OPEX | Y41: =CONCATENATE(CELL("address",F41),":",CELL("address",L41),",",CELL("address",O41),":",CELL("address",P41)) -> $F$41:$L$41,$O$41:$P$41
B42: =$A$93 -> Avoidance of revenue lost to network outages. | E42: 0 | F42: =$M$106 -> 7500 | G42: =$M$106 -> 7500 | H42: =$M$106 -> 7500 | I42: =$M$106 -> 7500 | J42: =$M$106 -> 7500 | K42: =SUM(E42:J42) -> 37500 | L42: =E42+NPV(varDiscountRate,F42:J42) -> 28430.90077 | N42: =IF($L$43=0,"----",L42/$L$43) -> 0.3014266887 | O42: =IF(W42=varCAPEX,L42,"") ->  | P42: =IF(W42=varOPEX,L42,"") -> 28430.90077 | R42: =varBenefit&varSummary&varEquation&varOriginal -> BSEO | T42: =$T$106 -> 1 | V42: =$V$106 -> Business | W42: =$W$106 -> OPEX | Y42: =CONCATENATE(CELL("address",F42),":",CELL("address",L42),",",CELL("address",O42),":",CELL("address",P42)) -> $F$42:$L$42,$O$42:$P$42
B43: Total | E43: =SUM(E40:E42) -> 0 | F43: 24881.672 | G43: 24881.672 | H43: 24881.672 | I43: 24881.672 | J43: 24881.672 | K43: 124408.36 | L43: 94321.11302 | O43: =SUM(O40:O42) -> 0 | P43: =SUM(P40:P42) -> 94321.11302 | R43: =varBenefit&varSummary&varEquation&varOriginal&varTotal -> BSEOT | Y43: =CONCATENATE(CELL("address",F43),":",CELL("address",L43),",",CELL("address",O43),":",CELL("address",P43)) -> $F$43:$L$43,$O$43:$P$43
B44: ="Confidence adjustment (" & varConfidenceLevel &")" -> Confidence adjustment (Low) | E44: =IF(R44=varBenefit,varRiskB,varRiskC) -> 0.8333333333 | R44: =varBenefit -> B
B45: Total (Risk Adjusted) | E45: =E43*$E44 -> 0 | F45: 20734.72667 | G45: 20734.72667 | H45: 20734.72667 | I45: 20734.72667 | J45: 20734.72667 | K45: =SUM(E45:J45) -> 103673.6333 | L45: =E45+NPV(varDiscountRate,F45:J45) -> 78600.92752 | O45: =O43*E44 -> 0 | P45: =P43*E44 -> 78600.92752 | R45: =varBenefit&varSummary&varEquation&varRisk&varTotal -> BSERT | Y45: =CONCATENATE(CELL("address",F45),":",CELL("address",L45),",",CELL("address",O45),":",CELL("address",P45)) -> $F$45:$L$45,$O$45:$P$45
R46: =varBenefit&varSummary&varEquation&varOriginal -> BSEO | S46: =ForrEndChar -> - | T46: -1
R47: =varSummary -> S | S47: =ForrEndChar -> - | T47: -1
B49: For any benefit category in the areas, change the default value(s) to 0 to exclude it from the analysis. | T49: 1
R52: =varCost&varBenefit -> CB | S52: =ForrBeginChar -> + | T52: -1 | U52: =varBenefit -> B
A53: Increased business productivity due to reduction in unplanned downtime. | R53: =varTitle -> Title | T53: 1 | X53: =CONCATENATE("Q=",CELL("address",A53),";") -> Q=$A$53;
B54: Advanced features in Cisco Catalyst switches such as stacking, rolling stack upgrades, field replaceable fans and power supplies etc. make sure that the network is always up and the downtime if any is very very minimal thereby increasing network availability. | T54: 1
T55: 1
M56: TRUE | T56: 1
T57: 1
B58: Number of unplanned downtime events due to access switch failures. | M58: 2 | O58: events / year | R58: =varInput -> Inp | T58: 1 | U58: v1 | X58: =CONCATENATE("Q=",CELL("address",B58),";I=",CELL("address",M58),";U=",CELL("address",O58),";Reset=2;") -> Q=$B$58;I=$M$58;U=$O$58;Reset=2;
T59: 1
B60: Number of users impacted by each downtime event due to access switch failures. | M60: 100 | R60: =varInput -> Inp | T60: 1 | U60: v2 | X60: =CONCATENATE("Q=",CELL("address",B60),";I=",CELL("address",M60),";U=",CELL("address",O60),";Reset=100;") -> Q=$B$60;I=$M$60;U=$O$60;Reset=100;
T61: 1
B62: Dowtime in hours. | M62: =$N$62 -> 1 | N62: 1 | O62: hours | R62: =varInput -> Inp | T62: 1 | U62: v3 | X62: =CONCATENATE("Q=",CELL("address",B62),";I=",CELL("address",M62),";D=",CELL("address",N62),";U=",CELL("address",O62),";") -> Q=$B$62;I=$M$62;D=$N$62;U=$O$62;
T63: 1
B64: Reduction in events per year with Cisco . | M64: =$N$64 -> 0.5 | N64: 0.5 | R64: =varInput -> Inp | T64: 1 | U64: v4 | X64: =CONCATENATE("Q=",CELL("address",B64),";I=",CELL("address",M64),";D=",CELL("address",N64),";") -> Q=$B$64;I=$M$64;D=$N$64;
T65: =varLevel1 -> 0
B66: Amount of productivity captured. | M66: 0.5 | R66: =varCalculation -> Calc | T66: 0 | U66: v5 | X66: =CONCATENATE("Q=",CELL("address",B66),";C=",CELL("address",M66),";") -> Q=$B$66;C=$M$66;
T67: =varLevel1 -> 0
B68: =Info!I61 -> General staff hourly rate. | M68: =Info!H61 -> 64.9 | R68: =varCalculation -> Calc | T68: 0 | U68: v5 | X68: =CONCATENATE("Q=",CELL("address",B68),";C=",CELL("address",M68),";") -> Q=$B$68;C=$M$68; | Y68: =CELL("address",M68) -> $M$68
T69: 1
B70: Business productivity savings due to a reduction in unplanned downtime. | M70: =IF(AND($AC$2=TRUE,$M$56=TRUE),M58*M64*M60*M62*M66*M68,0) -> 3245 | R70: =varTotal&varCalculation -> TCalc | T70: 1 | U70: v6=v1*v2*v3*v4*v5 | V70: =varBenefitsBusiness -> Business | W70: =varOPEX -> OPEX | X70: =CONCATENATE("Q=",CELL("address",B70),";C=",CELL("address",M70),";") -> Q=$B$70;C=$M$70; | Y70: =CELL("address",M70) -> $M$70
T71: 1
R72: =varCost&varBenefit -> CB | S72: =ForrEndChar -> - | T72: -1 | U72: =varBenefit -> B
R73: =varCost&varBenefit -> CB | S73: =ForrBeginChar -> + | T73: -1 | U73: =varBenefit -> B
A74: Increased IT productivity due to reduction in planned downtime. | R74: =varTitle -> Title | T74: 1 | X74: =CONCATENATE("Q=",CELL("address",A74),";") -> Q=$A$74;
B75: IT staff spend more time monitoring the network and less time in planned downtimes like maintenance windows due to features like SmartInstall, and rolling stack upgrade. These features uses the intelligence built into the switches to make sure that image updates happen during the non business hours and the effective downtime is as low as possible. | T75: 1
T76: =varLevel1 -> 0
M77: TRUE | T77: 1
T78: 1
B79: Number of switches. | M79: =Qty_1 -> 121 | R79: =varCalculation -> Calc | T79: 0 | U79: v4 | X79: =CONCATENATE("Q=",CELL("address",B79),";C=",CELL("address",M79),";") -> Q=$B$79;C=$M$79;
T80: 1
B81: Number of planned downtime events per year affecting each device. | M81: 12 | O81: events / year | R81: =varCalculation -> Calc | T81: 1 | U81: v1 | X81: =CONCATENATE("Q=",CELL("address",B81),";I=",CELL("address",M81),";U=",CELL("address",O81),";Reset=12;") -> Q=$B$81;I=$M$81;U=$O$81;Reset=12;
T82: 1
B83: Total IT resource time spent per event. | M83: =$N$83 -> 0.5 | N83: 0.5 | O83: hours | R83: =varInput -> Inp | T83: 1 | U83: v2 | X83: =CONCATENATE("Q=",CELL("address",B83),";I=",CELL("address",M83),";D=",CELL("address",N83),";U=",CELL("address",O83),";") -> Q=$B$83;I=$M$83;D=$N$83;U=$O$83;
T84: 1
B85: Reduction in events per year with Cisco . | M85: =$N$85 -> 0.4 | N85: 0.4 | R85: =varInput -> Inp | T85: 1 | U85: v3 | X85: =CONCATENATE("Q=",CELL("address",B85),";I=",CELL("address",M85),";D=",CELL("address",N85),";") -> Q=$B$85;I=$M$85;D=$N$85;
T86: =varLevel1 -> 0
B87: =Info!$I$59 -> IT staff hourly rate. | M87: =Info!$H$59 -> 48.68 | R87: =varCalculation -> Calc | T87: 0 | U87: v4 | X87: =CONCATENATE("Q=",CELL("address",B87),";C=",CELL("address",M87),";") -> Q=$B$87;C=$M$87; | Y87: =CELL("address",M87) -> $M$87
T88: 1
B89: IT productivity savings due to a reduction in unplanned downtime. | M89: =IF(AND($AC$2=TRUE,$M$77=TRUE),M79*M81*M83*M87*M85,0) -> 14136.672 | R89: =varTotal&varCalculation -> TCalc | T89: 1 | U89: v5=v1*v2*v3*v4 | V89: =varBenefitsBusiness -> Business | W89: =varOPEX -> OPEX | X89: =CONCATENATE("Q=",CELL("address",B89),";C=",CELL("address",M89),";") -> Q=$B$89;C=$M$89; | Y89: =CELL("address",M89) -> $M$89
T90: 1
R91: =varCost&varBenefit -> CB | S91: =ForrEndChar -> - | T91: -1 | U91: =varBenefit -> B
R92: =varCost&varBenefit -> CB | S92: =ForrBeginChar -> + | T92: -1 | U92: =varBenefit -> B
A93: Avoidance of revenue lost to network outages. | R93: =varTitle -> Title | T93: 1 | X93: =CONCATENATE("Q=",CELL("address",A93),";") -> Q=$A$93;
B94: During business hours,access switch capabilities like stacking and HSRP makes sure that even in cases of switch failure, the network continues to operate using the backup devices with sub second failover times. | T94: 1
T95: 1
M96: TRUE | T96: 1
T97: 1
B98: Number of unplanned outages that impact revenues. | M98: 1 | R98: =varInput -> Inp | T98: 1 | U98: v1 | X98: =CONCATENATE("Q=",CELL("address",B98),";I=",CELL("address",M98),";Reset=1;") -> Q=$B$98;I=$M$98;Reset=1;
T99: 1
B100: Average lost of company revenue due to access (edge) switch failures. | M100: =$N$100 -> 50000 | N100: 50000 | O100: per incident | R100: =varInput -> Inp | T100: 1 | U100: v2 | X100: =CONCATENATE("Q=",CELL("address",B100),";I=",CELL("address",M100),";D=",CELL("address",N100),";U=",CELL("address",O100),";") -> Q=$B$100;I=$M$100;D=$N$100;U=$O$100; | Y100: =CONCATENATE(CELL("address",M100),":",CELL("address",N100)) -> $M$100:$N$100
T101: 1
B102: Reduction in events per year with Cisco . | M102: =$N$102 -> 0.5 | N102: 0.5 | R102: =varInput -> Inp | T102: 1 | U102: v3 | X102: =CONCATENATE("Q=",CELL("address",B102),";I=",CELL("address",M102),";D=",CELL("address",N102),";") -> Q=$B$102;I=$M$102;D=$N$102;
T103: 1
B104: Gross margin. | M104: =$N$104 -> 0.3 | N104: 0.3 | R104: =varInput -> Inp | T104: 1 | U104: v3 | X104: =CONCATENATE("Q=",CELL("address",B104),";I=",CELL("address",M104),";D=",CELL("address",N104),";") -> Q=$B$104;I=$M$104;D=$N$104;
T105: 1
B106: Avoidance of lost revenue per year. | M106: =IF(AND($AC$2=TRUE,$M$96=TRUE),M98*M100*M102*M104,0) -> 7500 | R106: =varTotal&varCalculation -> TCalc | T106: 1 | U106: v4=v1*v2*v3 | V106: =varBenefitsBusiness -> Business | W106: =varOPEX -> OPEX | X106: =CONCATENATE("Q=",CELL("address",B106),";C=",CELL("address",M106),";") -> Q=$B$106;C=$M$106; | Y106: =CELL("address",M106) -> $M$106
T107: 1
R108: =varCost&varBenefit -> CB | S108: =ForrEndChar -> - | T108: -1 | U108: =varBenefit -> B

Sheet Refresh
R1: ColH | S1: ColHSub | T1: DisplayLevel | U1: Desc | V1: ITBU | W1: CAPOPEX | X1: InputAdr | Y1: CurrencyRange | Z1: InpValue | AB1: UsableSheet | AC1: VisibleSheet | AD1: FirstVisit | AE1: FirstCell | AF1: EnableSelection | AG1: SheetTitle
T2: -1 | AB2: TRUE | AC2: =Summary!$N$46 -> TRUE | AD2: FALSE | AF2: xlUnlockedCells | AG2: Refresh Cycles
R3: =varHeader&2 -> H2 | S3: =ForrBeginChar -> + | T3: -1
C4: =varToolTitle -> Cisco Access Switching ROI Calculator | P4: Key:
P5: Input
C6: =$AG$2 -> Refresh Cycles | P6: Suggested
I7: Select Service Benefits | P7: Calculated
R8: =varHeader&2 -> H2 | S8: =ForrEndChar -> - | T8: -1
B10: Cisco Catalyst Switching portfolio has an approach of investment protection for the customer's network to ensure that the network can be adapted to the latest business | T10: 1
B11: All network and service modules are field replaceable, hot-swappable power supplies and cooling fans. Transition smoothly to IPv6 with full hardware support Upgrade software platform or add new features with minimal disruption | T11: 1
B12: Cisco's focus to protect network investment makes a 6-8 year lifecycle for Cisco access switches versus potential industry average refresh by year 5. | T12: 1
R14: =varSummary -> S | S14: =ForrBeginChar -> + | T14: -1
A15: Summary of Benefits
R17: =varSummary&varChart -> SChart | S17: =ForrBeginChar -> +
R36: =varSummary&varChart -> SChart | S36: =ForrEndChar -> -
R37: =varBenefit&varSummary&varEquation&varOriginal -> BSEO | S37: =ForrBeginChar -> + | T37: -1
B38: =CONCATENATE("Cash Flows - ", $AG$2) -> Cash Flows - Refresh Cycles | N38: Breakdown
B39: Category | E39: Initial | F39: Year 1 | G39: Year 2 | H39: Year 3 | I39: Year 4 | J39: Year 5 | K39: Total | L39: Present Value | N39: % Total | O39: CAPEX | P39: OPEX | R39: =varBenefit&varSummary&varTitle -> BSTitle
B40: =$A$52 -> Savings from delayed purchase of switches. | E40: 0 | F40: 0 | G40: 0 | H40: 0 | I40: 0 | J40: =$M$62 -> 333143.25 | K40: =SUM(E40:J40) -> 333143.25 | L40: =E40+NPV(varDiscountRate,F40:J40) -> 206855.7476 | N40: =IF($L$42=0,"----",L40/$L$42) -> 0.7458855401 | O40: =IF(W40=varCAPEX,L40,"") -> 206855.7476 | P40: =IF(W40=varOPEX,L40,"") ->  | R40: =varBenefit&varSummary&varEquation&varOriginal -> BSEO | T40: =$T$62 -> 1 | V40: =$V$62 -> Business | W40: =$W$62 -> CAPEX | Y40: =CONCATENATE(CELL("address",F40),":",CELL("address",L40),",",CELL("address",O40),":",CELL("address",P40)) -> $F$40:$L$40,$O$40:$P$40
B41: =$A$66 -> Savings from delayed implementation of switches. | E41: 0 | F41: 0 | G41: 0 | H41: 0 | I41: 0 | J41: =$M$71 -> 113498 | K41: =SUM(E41:J41) -> 113498 | L41: =E41+NPV(varDiscountRate,F41:J41) -> 70473.32832 | N41: =IF($L$42=0,"----",L41/$L$42) -> 0.2541144599 | O41: =IF(W41=varCAPEX,L41,"") -> 70473.32832 | P41: =IF(W41=varOPEX,L41,"") ->  | R41: =varBenefit&varSummary&varEquation&varOriginal -> BSEO | T41: =$T$71 -> 1 | V41: =$V$71 -> Business | W41: =$W$71 -> CAPEX | Y41: =CONCATENATE(CELL("address",F41),":",CELL("address",L41),",",CELL("address",O41),":",CELL("address",P41)) -> $F$41:$L$41,$O$41:$P$41
B42: Total | E42: =SUM(E40:E41) -> 0 | F42: 0 | G42: 0 | H42: 0 | I42: 0 | J42: 446641.25 | K42: 446641.25 | L42: 277329.0759 | O42: =SUM(O40:O41) -> 277329.0759 | P42: =SUM(P40:P41) -> 0 | R42: =varBenefit&varSummary&varEquation&varOriginal&varTotal -> BSEOT | Y42: =CONCATENATE(CELL("address",F42),":",CELL("address",L42),",",CELL("address",O42),":",CELL("address",P42)) -> $F$42:$L$42,$O$42:$P$42
B43: ="Confidence adjustment (" & varConfidenceLevel &")" -> Confidence adjustment (Low) | E43: =IF(R43=varBenefit,varRiskB,varRiskC) -> 0.8333333333 | R43: =varBenefit -> B
B44: Total (Risk Adjusted) | E44: =E42*$E43 -> 0 | F44: 0 | G44: 0 | H44: 0 | I44: 0 | J44: 372201.0417 | K44: =SUM(E44:J44) -> 372201.0417 | L44: =E44+NPV(varDiscountRate,F44:J44) -> 231107.5632 | O44: =O42*E43 -> 231107.5632 | P44: =P42*E43 -> 0 | R44: =varBenefit&varSummary&varEquation&varRisk&varTotal -> BSERT | Y44: =CONCATENATE(CELL("address",F44),":",CELL("address",L44),",",CELL("address",O44),":",CELL("address",P44)) -> $F$44:$L$44,$O$44:$P$44
R45: =varBenefit&varSummary&varEquation&varOriginal -> BSEO | S45: =ForrEndChar -> - | T45: -1
R46: =varSummary -> S | S46: =ForrEndChar -> - | T46: -1
B48: For any benefit category in the areas, check or uncheck the "Include in analysis?" box. | T48: 1
R51: =varCost&varBenefit -> CB | S51: =ForrBeginChar -> + | T51: -1 | U51: =varBenefit -> B
A52: Savings from delayed purchase of switches. | R52: =varTitle -> Title | T52: 1 | X52: =CONCATENATE("Q=",CELL("address",A52),";") -> Q=$A$52;
T53: 1
M54: TRUE | T54: 1 | X54: =CONCATENATE("I=",CELL("address",M54),";Reset=True;") -> I=$M$54;Reset=True;
T55: 1
B56: Total hardware costs. | M56: =Costs!M73 -> 1219075 | R56: =varCalculation -> Calc | T56: 0 | U56: v1 | X56: =CONCATENATE("Q=",CELL("address",B56),";C=",CELL("address",M56),";") -> Q=$B$56;C=$M$56; | Y56: =CELL("address",M56) -> $M$56
T57: 0
B58: Installation costs. | M58: =Costs!M95 -> 113498 | R58: =varCalculation -> Calc | T58: 0 | U58: v2 | X58: =CONCATENATE("Q=",CELL("address",B58),";C=",CELL("address",M58),";") -> Q=$B$58;C=$M$58; | Y58: =CELL("address",M58) -> $M$58
T59: 1
B60: Increase in length of refresh cycle (e.g., moving from 4 to 5 years is a 25% increase.) | M60: =$N$60 -> 0.25 | N60: =1/(varYears-1) -> 0.25 | R60: =varInput -> Inp | T60: 1 | U60: v3 | X60: =CONCATENATE("Q=",CELL("address",B60),";I=",CELL("address",M60),";D=",CELL("address",N60),";U=",CELL("address",O60),";") -> Q=$B$60;I=$M$60;D=$N$60;U=$O$60;
T61: 1
B62: Savings from delayed purchase of switches with longer refresh cycles. (Benefit accrues in Year 5.) | M62: =IF(AND($AC$2=TRUE,M54=TRUE),(M56+M58)*M60,0) -> 333143.25 | R62: =varTotal&varCalculation -> TCalc | T62: 1 | U62: v4=(v1+v2)*v3 | V62: =varBenefitsBusiness -> Business | W62: =varCAPEX -> CAPEX | X62: =CONCATENATE("Q=",CELL("address",B62),";C=",CELL("address",M62),";PERIODSTART=5;") -> Q=$B$62;C=$M$62;PERIODSTART=5; | Y62: =CELL("address",M62) -> $M$62
T63: 1
R64: =varCost&varBenefit -> CB | S64: =ForrEndChar -> - | T64: -1 | U64: =varBenefit -> B
R65: =varCost&varBenefit -> CB | S65: =ForrBeginChar -> + | T65: -1 | U65: =varBenefit -> B
A66: Savings from delayed implementation of switches. | R66: =varTitle -> Title | T66: 1 | X66: =CONCATENATE("Q=",CELL("address",A66),";") -> Q=$A$66;
T67: 1
M68: TRUE | T68: 1 | X68: =CONCATENATE("I=",CELL("address",M68),";Reset=True;") -> I=$M$68;Reset=True;
T69: 1
T70: 1
B71: Savings from implementing switches with longer refresh cycles. (Benefit accrues in Year 5.) | M71: =IF(AND($AC$2=TRUE,M68=TRUE),Costs!M95,0) -> 113498 | R71: =varTotal&varCalculation -> TCalc | T71: 1 | U71: v4=(v1+v2)*v3 | V71: =varBenefitsBusiness -> Business | W71: =varCAPEX -> CAPEX | X71: =CONCATENATE("Q=",CELL("address",B71),";C=",CELL("address",M71),";PERIODSTART=5;") -> Q=$B$71;C=$M$71;PERIODSTART=5; | Y71: =CELL("address",M71) -> $M$71
T72: 1
R73: =varCost&varBenefit -> CB | S73: =ForrEndChar -> - | T73: -1 | U73: =varBenefit -> B

Sheet Settings
R1: ColH | S1: ColHSub | T1: DisplayLevel | U1: InputAdr | V1: CurrencyRange | W1: InpValue | AA1: UsableSheet | AB1: VisibleSheet | AC1: FirstVisit | AD1: FirstCell | AE1: EnableSelection | AG1: SheetTitle
T2: -1 | AA2: TRUE | AB2: TRUE | AC2: TRUE | AD2: =F41 -> 8 | AE2: xlUnlockedCells | AG2: Settings
R3: =varHeader&3 -> H3 | S3: =ForrBeginChar -> + | T3: -1
C4: =varToolTitle -> Cisco Access Switching ROI Calculator | P4: Key:
P5: Input
C6: =$AG$2 -> Settings | P6: Suggested
P7: Calculated
R8: =varHeader&3 -> H3 | S8: =ForrEndChar -> - | T8: -1
T13: -1
B14: Currencies | E14: Sample | F14: Exchange Rate | G14: =Info!$B$59 -> IT staff | H14: =Info!I60 -> Help desk staff hourly rate. | I14: =Info!$B$61 -> General staff | J14: Pct of Salary in Benefits | L14: The currency is selected from the Info page. | T14: -1
B15: Argentina Peso (ARS) | E15: 1 | F15: 4.014 | G15: =$G$38*F15 -> 301050 | H15: =$H$38*F15 -> 240840 | I15: =$I$38*F15 -> 401400 | J15: =$J$38 -> 0.35 | T15: -1
B16: Australian Dollar (AUD) | E16: 1 | F16: 1.1 | G16: 82500 | H16: 66000 | I16: 110000 | J16: =$J$38 -> 0.35 | T16: -1
B17: Brazil Reais (BRL) | E17: 1 | F17: 1.66 | G17: 124500 | H17: 99600 | I17: 166000 | J17: 0.35 | T17: -1
B18: Canadian Dollar (CAD) | E18: 1 | F18: 1.03 | G18: 77250 | H18: 61800 | I18: 103000 | J18: 0.35 | T18: -1
B19: China Yuan (CNY) | E19: 1 | F19: 6.7 | G19: 502500 | H19: 402000 | I19: 670000 | J19: 0.35 | T19: -1
B20: Czech Republic Koruny (CZK) | E20: 1 | F20: 17.65 | G20: 1323750 | H20: 1059000 | I20: 1765000 | J20: 0.35 | T20: -1
B21: Euro (EUR) | E21: 1 | F21: 0.75 | G21: 56250 | H21: 45000 | I21: 75000 | J21: 0.35 | T21: -1
B22: Hong Kong Dollar (HKD) | E22: 1 | F22: 7.787 | G22: 584025 | H22: 467220 | I22: 778700 | J22: 0.35 | T22: -1
B23: India Rupee (INR) | E23: 1 | F23: 45.4 | G23: 3405000 | H23: 2724000 | I23: 4540000 | J23: 0.35 | T23: -1
B24: Indonesia Rupiah (IDR) | E24: 1 | F24: 8930 | G24: 669750000 | H24: 535800000 | I24: 893000000 | J24: 0.35 | T24: -1
B25: Israel New Shekels (ILS) | E25: 1 | F25: 3.67 | G25: 275250 | H25: 220200 | I25: 367000 | J25: 0.35 | T25: -1
B26: Japanese Yen (JPY) | E26: 1 | F26: 85 | G26: =$G$38*F26 -> 6375000 | H26: =$H$38*F26 -> 5100000 | I26: =$I$38*F26 -> 8500000 | J26: 0.35 | T26: -1
B27: Malaysia Ringgit (MYR) | E27: 1 | F27: 3.04 | G27: 228000 | H27: 182400 | I27: 304000 | J27: 0.35 | T27: -1
B28: Mexico Peso (MXN) | E28: 1 | F28: 12.07 | G28: 905250 | H28: 724200 | I28: 1207000 | J28: 0.35 | T28: -1
B29: Poland Zlotych (PLN) | E29: 1 | F29: 2.85 | G29: 213750 | H29: 171000 | I29: 285000 | J29: 0.35 | T29: -1
B30: Russian Ruble (RUB) | E30: 1 | F30: 29.3 | G30: 2197500 | H30: 1758000 | I30: 2930000 | J30: 0.35 | T30: -1
B31: Singapore Dollar (SGD) | E31: 1 | F31: 1.275 | G31: 95625 | H31: 76500 | I31: 127500 | J31: 0.35 | T31: -1
B32: South Korea Won (KRW) | E32: 1 | F32: 1110 | G32: 83250000 | H32: 66600000 | I32: 111000000 | J32: 0.35 | T32: -1
B33: Sweden Krona (SEK) | E33: 1 | F33: 6.44 | G33: 483000 | H33: 386400 | I33: 644000 | J33: 0.35 | T33: -1
B34: Switzerland Franc (CHF) | E34: 1 | F34: 0.96 | G34: 72000 | H34: 57600 | I34: 96000 | J34: 0.35 | T34: -1
B35: Taiwan New Dollar (TWD) | E35: 1 | F35: 28.85 | G35: 2163750 | H35: 1731000 | I35: 2885000 | J35: 0.35 | T35: -1
B36: Thailand Baht (THB) | E36: 1 | F36: 30.73 | G36: =$G$38*F36 -> 2304750 | H36: =$H$38*F36 -> 1843800 | I36: =$I$38*F36 -> 3073000 | J36: 0.35 | T36: -1
B37: United Kingdom Pound (GPB) | E37: 1 | F37: 0.65 | G37: =$G$38*F37 -> 48750 | H37: =$H$38*F37 -> 39000 | I37: =$I$38*F37 -> 65000 | J37: 0.35 | T37: -1
B38: US Dollar (USD) | E38: 1 | F38: 1 | G38: 75000 | H38: 60000 | I38: 100000 | J38: 0.35 | T38: -1
B39: Currently Selected | F39: =LOOKUP(varCurrency,varCurrencies,varExchangeRates) -> 1 | G39: =LOOKUP(varCurrency,varCurrencies,G15:G38) -> 75000 | H39: =LOOKUP(varCurrency,varCurrencies,H15:H38) -> 60000 | I39: =LOOKUP(varCurrency,varCurrencies,I15:I38) -> 100000 | J39: =LOOKUP(varCurrency,varCurrencies,J15:J38) -> 0.35 | T39: -1 | V39: =CONCATENATE(CELL("address",G39),":",CELL("address",I39)) -> $G$39:$I$39
B41: Number of working hours in a day. | F41: =$G$41 -> 8 | G41: 8 | U41: =CONCATENATE("Q=",CELL("address",B41),";I=",CELL("address",F41),";D=",CELL("address",G41),";") -> Q=$B$41;I=$F$41;D=$G$41;
B42: Number of working days in a week. | F42: =$G$42 -> 5 | G42: 5 | U42: =CONCATENATE("Q=",CELL("address",B42),";I=",CELL("address",F42),";D=",CELL("address",G42),";") -> Q=$B$42;I=$F$42;D=$G$42;
B43: Number of working weeks in a year. | F43: =$G$43 -> 52 | G43: 52 | U43: =CONCATENATE("Q=",CELL("address",B43),";I=",CELL("address",F43),";D=",CELL("address",G43),";") -> Q=$B$43;I=$F$43;D=$G$43;
B44: Number of working hours in a year. | F44: =F43*F42*F41 -> 2080
B45: Number of working days in a year. | F45: =F43*F42 -> 260
B47: Productivity captured. | F47: =$G$47 -> 0.25 | G47: 0.25 | H47: Productivity is often viewed as a soft benefit because it is difficult to measure. Because of this and to be conservative, Forrester reduces productivity calculations by this percentage. | U47: =CONCATENATE("Q=",CELL("address",B47),";I=",CELL("address",F47),";D=",CELL("address",G47),";") -> Q=$B$47;I=$F$47;D=$G$47;
B49: Discount rate. | F49: =$G$49 -> 0.1 | G49: 0.1 | U49: =CONCATENATE("Q=",CELL("address",B49),";I=",CELL("address",F49),";D=",CELL("address",G49),";") -> Q=$B$49;I=$F$49;D=$G$49;
B51: Set Visual Zoom | F51: =$H$51 -> 1 | H51: 1 | U51: =CONCATENATE("Q=",CELL("address",B51),";I=",CELL("address",F51),";D=",CELL("address",H51),";") -> Q=$B$51;I=$F$51;D=$H$51;
B54: Risk
B56: Confidence level in estimates | F56: =$G$56 -> Low | G56: =varRiskLow -> Low | K56: Forrester risk-adjusts benefits and costs to incorporate uncertainties in the estimates. The "confidence level in estimates" selection will drive different adjustment percentages. For example, a "Low" confidence selection will adjust cost estimates higher and benefit estimates lower than a "Medium" confidence selection. | U56: =CONCATENATE("Q=",CELL("address",B56),";I=",CELL("address",F56),";D=",CELL("address",G56),";") -> Q=$B$56;I=$F$56;D=$G$56;
B59: Risk %, Benefit | F59: Low Estimate | G59: Expected Estimate | H59: High Estimate | I59: Avg
E60: =varRiskHigh -> High | F60: 0.9 | G60: 1 | H60: 1.05 | I60: =AVERAGE(F60:H60) -> 0.9833333333
E61: =varRiskLow -> Low | F61: 0.5 | G61: 1 | H61: 1 | I61: =AVERAGE(F61:H61) -> 0.8333333333
E62: =varRiskMedium -> Medium | F62: 0.8 | G62: 1 | H62: 1.03 | I62: =AVERAGE(F62:H62) -> 0.9433333333 | K62: The risk-adjusted percentage is the average of three outcomes: a low estimate, an expected estimate, and a high estimate.
E63: =varRiskNone -> None | F63: 1 | G63: 1 | H63: 1 | I63: =AVERAGE(F63:H63) -> 1
E64: Benefit Risk Adjustment | F64: =LOOKUP(varConfidenceLevel,varRiskPointsB,I60:I63) -> 0.8333333333
B66: Risk %, Cost | F66: Low Estimate | G66: Expected Estimate | H66: High Estimate | I66: Avg
E67: =varRiskHigh -> High | F67: 0.98 | G67: 1 | H67: 1.05 | I67: =AVERAGE(F67:H67) -> 1.01
E68: =varRiskLow -> Low | F68: 1 | G68: 1 | H68: 1.25 | I68: =AVERAGE(F68:H68) -> 1.083333333
E69: =varRiskMedium -> Medium | F69: 1 | G69: 1 | H69: 1.15 | I69: =AVERAGE(F69:H69) -> 1.05
E70: =varRiskNone -> None | F70: 1 | G70: 1 | H70: 1 | I70: =AVERAGE(F70:H70) -> 1
E71: Cost Risk Adjustment | F71: =LOOKUP(varConfidenceLevel,varRiskPointsC,I67:I70) -> 1.083333333
B74: Industry Selections
B75: Primary products manufacturing (agriculture, metals, etc.)
B76: Consumer products manufacturing (consumer packaged goods, pharma/biotech, etc.)
B77: Chemicals and petroleum manufacturing
B78: High-tech products manufacturing (electronics, software, aerospace, etc.)
B79: Industrial products manufacturing (automotive, machinery, equipment, etc.)
B80: Retail (general merchandise, food and beverage, etc.)
B81: Wholesale
B82: Transportation and logistics services (shipping and transport, warehousing, etc.)
B83: Professional services (consulting, outsourcing, accounting, legal, etc.)
B84: Construction and engineering services
B85: Media, entertainment, and leisure (publishing, advertising, recreation, etc.)
B86: Utilities (electricity, water and waste, etc.)
B87: Telecom carriers
B88: Financial services
B89: Insurance
B90: Public services (healthcare, private education, nonprofit, etc.)
B91: Government (federal, state, local)
B92: Healthcare
B93: Other

Sheet Instructions
R1: ColH | S1: ColHSub | T1: DisplayLevel | U1: UsableSheet | V1: UsableSheet | W1: VisibleSheet | X1: FirstVisit | Y1: FirstCell | Z1: EnableSelection | AG1: SheetTitle
T2: -1 | U2: -1 | V2: TRUE | W2: TRUE | X2: FALSE | Z2: xlNoSelection | AG2: Instructions
R3: =varHeader&3 -> H3 | S3: =ForrBeginChar -> + | T3: -1
C4: =varToolTitle -> Cisco Access Switching ROI Calculator | P4: Key:
P5: Input
C6: =$AG$2 -> Instructions | P6: Suggested
P7: Calculated
R8: =varHeader&3 -> H3 | S8: =ForrEndChar -> - | T8: -1
A11: General Instructions
B13: Overview
B14: - Excel macros must be enabled for this tool to function correctly.
B15: - Use the navigation buttons at the top right of each screen to move to different sections.
B16: - The Key below provides information what each colored cell means. A brief key is provided in the top right of most sections.
B18: Key: | C18: Input | D18: (yellow highlighted cell with bold border) Input value. Value likely to vary from customer to customer and should be changed or confirmed.
C20: Input | D20: (yellow highlighted cell with light border) Input value. Default (suggested) value often can be used as customer may not have information.
C22: Suggested | D22: (pink highlighted cell) Suggested value from survey of senior IT network staff or Forrester general knowledge. This value is protected and cannot be changed. Moving the mouse over the cell will display a comment on the basis of the suggested value.
C24: Calculated | D24: (green highlighted cell) A value that is calculated from other cells. This value is protected and cannot be changed.
B26: Home
B27: Click START to begin entering information. To change assumptions and settings (including currency) and to reset inputs to default values, click Settings. To understand the methodology, disclosures, and disclaimers, click Methodology.
B29: General Information
B30: Enter initial information for the organization. This includes a number of basic organizational questions. The answers to these questions will be used to calculate the costs and benefits. The number of employees is important as the answer to this impacts default values.
B32: Key Drivers
B33: The Key Drivers section captures the most important business drivers of the organization. Answers to the questions will enable or disable associated sections and/or questions.
B35: Costs
B36: Enter hardware, software, annual maintenance and services costs to implement Cisco Borderless Network services and solutions based on key drivers selected.
B38: Summary Results
B39: Provides the financial summary results. From this section, you can access the Report by pressing the associated button.
B41: Area Benefits (Energy, Security, SMART Operations, High Availability, Maintenance and Troubleshooting, Refresh, and Traffic Optimization)
B42: For each area, benefits are presented with a series of input questions. Most of inputs start with a default value which is equal to the suggested value. For each input, fill in the best estimate for the organization and use the default value if an estimate is unknown or will be provided later. By moving the mouse over the suggested value cell, a comment will appear which explains the basis of the suggested value.
B44: Report
B45: Presents a report based upon the inputs to the interactive tool. Press the "Create PDF" button to create a PDF of the report. To attach the file to an e-mail, from Adobe Reader, select File -> Attach to Email…
B47: Settings
B48: Provides information as the currency and salary information for different roles. Use the "Reset" button to reset all inputs to their default (suggested) values.
B50: Methodology, Disclaimer, and Disclosures
B51: This section provides an overview of the methodology to build the tool and an important disclaimer and disclosures plus a glossary of terms.

Sheet Methodology
R1: ColH | S1: ColHSub | T1: DisplayLevel | U1: UsableSheet | V1: UsableSheet | W1: VisibleSheet | X1: FirstVisit | Y1: FirstCell | Z1: EnableSelection | AG1: SheetTitle
T2: -1 | U2: -1 | V2: TRUE | W2: TRUE | X2: FALSE | Z2: xlNoSelection | AG2: Methodology
R3: =varHeader&3 -> H3 | S3: =ForrBeginChar -> + | T3: -1
C4: =varToolTitle -> Cisco Access Switching ROI Calculator | P4: Key:
P5: Input
C6: =$AG$2 -> Methodology | P6: Suggested
P7: Calculated
R8: =varHeader&3 -> H3 | S8: =ForrEndChar -> - | T8: -1
C16: Methodology
C18: Forrester used the following methodology to develop this Cisco Access Switching ROI Calculator: 1. Forrester gathered data from existing Forrester research relative to Cisco and the networking market in general. 2. Forrester interviewed Cisco marketing and sales personnel to fully understand the potential (or intended) value proposition of a Cisco. 3. Forrester conducted a web survey of 100 senior IT network executives. 4. Forrester interviewed five Cisco customers to discover the benefits they are receiving from Cisco Access Switching. 5. Forrester constructed this calculator based upon existing Cisco work and deems that it is in accordance with Forrester and TEI standards. Forrester’s aim is to clearly show all calculations and assumptions used in the analysis.
C20: Disclaimer
C22: Cisco commissioned Forrester Consulting to develop this business case model in November 2011 using its proprietary Total Economic Impact™ methodology. The intent is for Cisco to guide prospects through the questionnaire in order to solicit inputs specific to their business. Cisco is not permitted to change the calculations or equations. Forrester believes that this analysis is representative of what companies may achieve with Cisco based on the inputs provided and any assumptions made. Forrester does not endorse Cisco or its offerings. Although great care has been taken to ensure the accuracy and completeness of this model, Cisco and Forrester Research are unable to accept any legal responsibility for any actions taken on the basis of the information contained herein. The tool is provided ‘AS IS,’ and Forrester and Cisco make no warranties of any kind.
C24: Disclosures
C26: The reader should be aware of the following: 1. The Cisco ROI Caclulator is commissioned by Cisco and delivered by the Forrester Consulting group. 2. Cisco reviewed and provided feedback to Forrester, but Forrester maintains editorial control over the calculator and its equations and did not accept changes to the calculator that contradicted Forrester’s findings or obscured the meaning of the calculator. 3. The customer names for the interviews were provided by Cisco. The survey respondents were chosen randomly. 4. Forrester makes no assumptions as to the potential return on investment that organizations will receive. See the Disclaimer section. 5. This Calculator is not meant to be used as a competitive product analysis.
C28: TEI methodology
C45: TEI not only measures costs and cost reduction (areas that are typically accounted for within IT) but also weighs the enabling value of a technology in increasing the effectiveness of overall business processes. For this calculator, Forrester employed four fundamental elements of TEI in modeling the financial impact of producing a TEI study: 1) cost and cost reduction, 2) benefits to the entire organization, 3) risk, and 4) flexibility. Given the increasing sophistication of IT investment cost analyses, Forrester’s TEI methodology serves an extremely useful purpose by providing a complete picture of the total economic impact of purchase decisions.
C47: Glossary
C49: Discount rate | F49: The interest rate used in cash flow analysis to take into account the time value of money. Although the Federal Reserve Bank sets a discount rate, companies often set a discount rate based on their business and investment environment. Forrester assumes a yearly discount rate of 10% for this analysis. Organizations typically use discount rates between 8% and 16% based on their current environment. Readers are urged to consult their respective organization to determine the most appropriate discount rate to use in their own environment.
C50: Net Present Value (NPV) | F50: The present or current value of (discounted) future net cash flows given an interest rate (the discount rate). A positive project NPV normally indicates that the investment should be made, unless other projects have higher NPVs.
C51: Present Value (PV) | F51: The present or current value of (discounted) cost and benefit estimates given at an interest rate (the discount rate). The PV of costs and benefits feed into the total net present value of cash flows.
C52: Return On Investment (ROI) | F52: A measure of a project’s expected return in percentage terms. ROI is calculated by dividing net benefits (benefits minus costs) by costs.
C53: Risk-Adjusted | F53: Forrester risk-adjusts cost and benefit estimates to better reflect the level of uncertainty that exists in real-life business scenarios but not necessarily captured in traditional business cases. If a risk-adjusted ROI still demonstrates a compelling business case, it raises confidence that the investment is likely to succeed because the risks that threaten the project have been taken into consideration and quantified. In general, risks affect costs by raising the original estimates, and they affect benefits by reducing the original estimates.
C54: Payback Period | F54: The breakeven point for an investment. The point in time at which net benefits (benefits minus costs) equal initial investment or cost.
C56: Forrester Copyright
C58: © 2011, Forrester Research, Inc. All rights reserved. Unauthorized reproduction is strictly prohibited. Information is based on best available resources. Opinions reflect judgment at the time and are subject to change. Forrester®, Technographics®, Forrester Wave, RoleView, TechRadar, and Total Economic Impact are trademarks of Forrester Research, Inc. All other trademarks are the property of their respective companies. For additional information, go to www.forrester.com.

Sheet All Options
B3: Product Family Required | C3: =Costs!$G$46 -> 3750X
B4: Check if 48 ports required (default is 24 ports) | C4: =Costs!$G$47 -> TRUE
B5: PoE Power | C5: =Costs!$G$48 -> TRUE
B6: Stackwise/Stacking | C6: =Costs!$G$49 -> FALSE
B7: Check if GE is required | C7: =Costs!$G$50 -> TRUE
B8: 10 GE Uplinks | C8: =Costs!$G$51 -> TRUE
B9: Select the Software Image for Product Family selected | C9: =Costs!$G$52 -> IP Base
B12: Options For Selections | F12: Product SKU Selection Logic
B13: Possible SKU Selections Based on Logic on the Right | F13: Boolean Logic (PF, Ports, PoE,GE) | G13: Boolean Logic with SW Image | H13: Final Boolean | I13: List number | J13: SKU | K13: Product Family | L13: Description | M13: Ports | N13: SLP | O13: Full PoE | P13: Uplink Logic | Q13: Comments
B14: =IF(ISNA(VLOOKUP(C14,$I$15:$N$127,2,FALSE)),"",VLOOKUP(C14,$I$15:$N$127,2,FALSE)) -> WS-C3750X-48P-S | C14: 1 | F14: Catalyst 3750 Gig | Q14: Port Density: If we are not using 10G and 1G UL's then we have a port density advantage. In case of 10G UL - no port advantage
B15: WS-C3750X-48PF-S | C15: 2 | F15: =IF((MATCH($C$3,product_family_new,0)=3),1,0)*IF($C$4,0,1)*IF($C$5,0,1)*IF($C$7,1,0) -> 0 | G15: =IF(ISNA(IF((MATCH($C$9,Images_3k_New,0)=3),1,0)),0,IF((MATCH($C$9,Images_3k_New,0)=3),1,0)) -> 0 | H15: =G15*F15 -> 0 | I15: =H15 -> 0 | J15: WS-C3750G-24T-E | K15: 3750 | L15: Catalyst 3750 24 10/100/1000T Enhanced Multilayer Image | M15: 24 | N15: 9990 | O15: =IF(ISERROR(SEARCH("f",J15,1)),0,1) -> 0 | P15: =IF($C$8,1,0) -> 1 | R15: =G15 -> 0
C16: 3 | F16: =IF((MATCH($C$3,product_family_new,0)=3),1,0)*IF($C$4,0,1)*IF($C$5,0,1)*IF($C$7,1,0) -> 0 | G16: =IF(ISNA(IF((MATCH($C$9,Images_3k_New,0)=2),1,0)),0,IF((MATCH($C$9,Images_3k_New,0)=2),1,0)) -> 1 | H16: =G16*F16 -> 0 | I16: =IF(H16=0,I15,I15+1) -> 0 | J16: WS-C3750G-24T-S | K16: 3750 | L16: Catalyst 3750 24 10/100/1000T Standard Multilayer Image | M16: 24 | N16: 5995 | O16: 0 | P16: =IF($C$8,1,0) -> 1 | R16: =H16+SUM($H$15:H15) -> 0
C17: 4 | F17: =IF((MATCH($C$3,product_family_new,0)=3),1,0)*IF($C$4,0,1)*IF($C$5,0,1)*IF($C$7,1,0) -> 0 | G17: =IF(ISNA(IF((MATCH($C$9,Images_3k_New,0)=3),1,0)),0,IF((MATCH($C$9,Images_3k_New,0)=3),1,0)) -> 0 | H17: =G17*F17 -> 0 | I17: =IF(H17=0,I16,I16+1) -> 0 | J17: WS-C3750G-24TS-E1U | K17: 3750 | L17: Catalyst 3750 24 10/100/1000 + 4 SFP Enh Multilayer;1RU | M17: 24 | N17: 10990 | O17: 0 | P17: =N17*O17 -> 0 | R17: =H17+SUM($H$15:H16) -> 0
C18: 5 | F18: =IF((MATCH($C$3,product_family_new,0)=3),1,0)*IF($C$4,0,1)*IF($C$5,0,1)*IF($C$7,1,0) -> 0 | G18: =IF(ISNA(IF((MATCH($C$9,Images_3k_New,0)=2),1,0)),0,IF((MATCH($C$9,Images_3k_New,0)=2),1,0)) -> 1 | H18: =G18*F18 -> 0 | I18: 0 | J18: WS-C3750G-24TS-S1U | K18: 3750 | L18: Catalyst 3750 24 10/100/1000 + 4 SFP Std Multilayer;1RU | M18: 24 | N18: 6995 | O18: 0 | P18: 0 | R18: =H18+SUM($H$15:H17) -> 0
C19: 6 | F19: =IF((MATCH($C$3,product_family_new,0)=3),1,0)*IF($C$4,1,0)*IF($C$5,0,1)*IF($C$7,1,0) -> 0 | G19: =IF(ISNA(IF((MATCH($C$9,Images_3k_New,0)=3),1,0)),0,IF((MATCH($C$9,Images_3k_New,0)=3),1,0)) -> 0 | H19: 0 | I19: 0 | J19: WS-C3750G-48TS-E | K19: 3750 | L19: Catalyst 3750 48 10/100/1000T + 4 SFP Enhanced Multilayer | M19: 48 | N19: 21990 | O19: 0 | P19: 0 | R19: =H19+SUM($H$15:H18) -> 0
F20: =IF((MATCH($C$3,product_family_new,0)=3),1,0)*IF($C$4,1,0)*IF($C$5,0,1)*IF($C$7,1,0) -> 0 | G20: =IF(ISNA(IF((MATCH($C$9,Images_3k_New,0)=2),1,0)),0,IF((MATCH($C$9,Images_3k_New,0)=2),1,0)) -> 1 | H20: 0 | I20: 0 | J20: WS-C3750G-48TS-S | K20: 3750 | L20: Catalyst 3750 48 10/100/1000T + 4 SFP Standard Multilayer | M20: 48 | N20: 13995 | O20: 0 | P20: 0 | R20: =H20+SUM($H$15:H19) -> 0
F21: =IF((MATCH($C$3,product_family_new,0)=3),1,0)*IF($C$4,0,1)*IF($C$5,0,1)*IF($C$7,1,0) -> 0 | G21: =IF(ISNA(IF((MATCH($C$9,Images_3k_New,0)=3),1,0)),0,IF((MATCH($C$9,Images_3k_New,0)=3),1,0)) -> 0 | H21: 0 | I21: 0 | J21: WS-C3750G-12S-E | K21: 3750 | L21: Catalyst 3750 12 SFP Enhanced Multilayer Image | M21: 12 | N21: 11990 | O21: 0 | P21: 0 | Q21: Aggregation - IGNORE | R21: =H21+SUM($H$15:H20) -> 0
F22: =IF((MATCH($C$3,product_family_new,0)=3),1,0)*IF($C$4,0,1)*IF($C$5,0,1)*IF($C$7,1,0) -> 0 | G22: =IF(ISNA(IF((MATCH($C$9,Images_3k_New,0)=2),1,0)),0,IF((MATCH($C$9,Images_3k_New,0)=2),1,0)) -> 1 | H22: =G22*F22 -> 0 | I22: 0 | J22: WS-C3750G-12S-S | K22: 3750 | L22: Catalyst 3750 12 SFP Standard Multilayer Image | M22: 12 | N22: 7995 | O22: 0 | P22: 0 | Q22: Aggregation - IGNORE | R22: =H22+SUM($H$15:H21) -> 0
F23: =IF((MATCH($C$3,product_family_new,0)=3),1,0)*IF($C$4,0,1)*IF($C$5,0,1)*IF($C$7,1,0) -> 0 | G23: =IF(ISNA(IF((MATCH($C$9,Images_3k_New,0)=2),1,0)),0,IF((MATCH($C$9,Images_3k_New,0)=2),1,0)) -> 1 | H23: 0 | I23: 0 | J23: WS-C3750G-12S-SD | K23: 3750 | L23: Catalyst 3750 12 SFP DC powered Standard Multilayer Image | M23: 12 | N23: 8995 | O23: 0 | P23: 0 | Q23: Aggregation - IGNORE | R23: =H23+SUM($H$15:H22) -> 0
F24: Catalyst 3750 Gig PoE | I24: 0 | R24: =H24+SUM($H$15:H23) -> 0
F25: =IF((MATCH($C$3,product_family_new,0)=3),1,0)*IF($C$4,0,1)*IF($C$5,1,0)*IF($C$7,1,0) -> 0 | G25: =IF(ISNA(IF((MATCH($C$9,Images_3k_New,0)=3),1,0)),0,IF((MATCH($C$9,Images_3k_New,0)=3),1,0)) -> 0 | H25: 0 | I25: 0 | J25: WS-C3750G-24PS-E | K25: 3750 | L25: Catalyst 3750 24 10/100/1000T PoE + 4 SFP Enhanced Image | M25: 24 | N25: 11790 | O25: =IF(ISERROR(SEARCH("f",J25,1)),0,1) -> 0 | P25: =N25*O25 -> 0 | R25: =H25+SUM($H$15:H24) -> 0
F26: =IF((MATCH($C$3,product_family_new,0)=3),1,0)*IF($C$4,0,1)*IF($C$5,1,0)*IF($C$7,1,0) -> 0 | G26: =IF(ISNA(IF((MATCH($C$9,Images_3k_New,0)=2),1,0)),0,IF((MATCH($C$9,Images_3k_New,0)=2),1,0)) -> 1 | H26: 0 | I26: 0 | J26: WS-C3750G-24PS-S | K26: 3750 | L26: Catalyst 3750 24 10/100/1000T PoE + 4 SFP Standard Image | M26: 24 | N26: 7795 | O26: =IF(ISERROR(SEARCH("f",J26,1)),0,1) -> 0 | P26: =N26*O26 -> 0 | R26: =H26+SUM($H$15:H25) -> 0
B27: SmartNet Support Options | F27: =IF((MATCH($C$3,product_family_new,0)=3),1,0)*IF($C$4,1,0)*IF($C$5,1,0)*IF($C$7,1,0) -> 0 | G27: =IF(ISNA(IF((MATCH($C$9,Images_3k_New,0)=3),1,0)),0,IF((MATCH($C$9,Images_3k_New,0)=3),1,0)) -> 0 | H27: 0 | I27: 0 | J27: WS-C3750G-48PS-E | K27: 3750 | L27: Catalyst 3750 48 10/100/1000T PoE + 4 SFP Enhanced Image | M27: 48 | N27: 23490 | O27: =IF(ISERROR(SEARCH("f",J27,1)),0,1) -> 0 | P27: =N27*O27 -> 0 | R27: =H27+SUM($H$15:H26) -> 0
B28: 24x7x2 | F28: =IF((MATCH($C$3,product_family_new,0)=3),1,0)*IF($C$4,1,0)*IF($C$5,1,0)*IF($C$7,1,0) -> 0 | G28: =IF(ISNA(IF((MATCH($C$9,Images_3k_New,0)=2),1,0)),0,IF((MATCH($C$9,Images_3k_New,0)=2),1,0)) -> 1 | H28: 0 | I28: 0 | J28: WS-C3750G-48PS-S | K28: 3750 | L28: Catalyst 3750 48 10/100/1000T PoE + 4 SFP Standard Image | M28: 48 | N28: 15495 | O28: =IF(ISERROR(SEARCH("f",J28,1)),0,1) -> 0 | P28: =N28*O28 -> 0 | R28: =H28+SUM($H$15:H27) -> 0
B29: 24x7x4 | F29: Catalyst 3750 10/100 | I29: 0 | K29: 10/100 | R29: =H29+SUM($H$15:H28) -> 0
B30: 8x5x4 | F30: =IF((MATCH($C$3,product_family_new,0)=3),1,0)*IF($C$4,0,1)*IF($C$5,0,1)*IF($C$7,0,1) -> 0 | G30: =IF(ISNA(IF((MATCH($C$9,Images_3k_New,0)=2),1,0)),0,IF((MATCH($C$9,Images_3k_New,0)=2),1,0)) -> 1 | H30: 0 | I30: 0 | J30: WS-C3750-24FS-S | K30: 3750 | L30: Catalyst 3750 24 100BaseFX + 2 SFP Standard Multilayer Image | M30: 24 | N30: 10795 | O30: =IF(ISERROR(SEARCH("f",J30,1)),0,1) -> 1 | P30: =N30*O30 -> 10795 | R30: =H30+SUM($H$15:H29) -> 0
B31: 8x5xNBD | F31: =IF((MATCH($C$3,product_family_new,0)=3),1,0)*IF($C$4,1,0)*IF($C$5,0,1)*IF($C$7,0,1) -> 0 | G31: =IF(ISNA(IF((MATCH($C$9,Images_3k_New,0)=3),1,0)),0,IF((MATCH($C$9,Images_3k_New,0)=3),1,0)) -> 0 | H31: 0 | I31: 0 | J31: WS-C3750-48TS-E | K31: 3750 | L31: Catalyst 3750 48 10/100 + 4 SFP Enhanced Multilayer Image | M31: 48 | N31: 8990 | O31: 0 | P31: 0 | R31: =H31+SUM($H$15:H30) -> 0
B32: On-site 24x7x2 | F32: =IF((MATCH($C$3,product_family_new,0)=3),1,0)*IF($C$4,1,0)*IF($C$5,0,1)*IF($C$7,0,1) -> 0 | G32: =IF(ISNA(IF((MATCH($C$9,Images_3k_New,0)=2),1,0)),0,IF((MATCH($C$9,Images_3k_New,0)=2),1,0)) -> 1 | H32: 0 | I32: 0 | J32: WS-C3750-48TS-S | K32: 3750 | L32: Catalyst 3750 48 10/100 + 4 SFP Standard Multilayer Image | M32: 48 | N32: 6995 | O32: 0 | P32: 0 | R32: =H32+SUM($H$15:H31) -> 0
B33: On-site 24x7x4 | F33: =IF((MATCH($C$3,product_family_new,0)=3),1,0)*IF($C$4,0,1)*IF($C$5,0,1)*IF($C$7,0,1) -> 0 | G33: =IF(ISNA(IF((MATCH($C$9,Images_3k_New,0)=3),1,0)),0,IF((MATCH($C$9,Images_3k_New,0)=3),1,0)) -> 0 | H33: 0 | I33: 0 | J33: WS-C3750V2-24TS-E | K33: 3750 | L33: Catalyst 3750V2 24 10/100 + 2 SFP Enhanced Image | M33: 24 | N33: 5990 | O33: 0 | P33: 0 | R33: =H33+SUM($H$15:H32) -> 0
B34: On-site 8x5x4 | F34: =IF((MATCH($C$3,product_family_new,0)=3),1,0)*IF($C$4,0,1)*IF($C$5,0,1)*IF($C$7,0,1) -> 0 | G34: =IF(ISNA(IF((MATCH($C$9,Images_3k_New,0)=2),1,0)),0,IF((MATCH($C$9,Images_3k_New,0)=2),1,0)) -> 1 | H34: =G34*F34 -> 0 | I34: 0 | J34: WS-C3750V2-24TS-S | K34: 3750 | L34: Catalyst 3750V2 24 10/100 + 2 SFP Standard Image | M34: 24 | N34: 3995 | O34: 0 | P34: 0 | R34: =H34+SUM($H$15:H33) -> 0
B35: On-site 8x5xNBD | F35: =IF((MATCH($C$3,product_family_new,0)=3),1,0)*IF($C$4,1,0)*IF($C$5,0,1)*IF($C$7,0,1) -> 0 | G35: =IF(ISNA(IF((MATCH($C$9,Images_3k_New,0)=3),1,0)),0,IF((MATCH($C$9,Images_3k_New,0)=3),1,0)) -> 0 | H35: 0 | I35: 0 | J35: WS-C3750V2-48TS-E | K35: 3750 | L35: Catalyst 3750V2 48 10/100 + 4 SFP Enhanced Image | M35: 48 | N35: 8990 | O35: 0 | P35: 0 | R35: =H35+SUM($H$15:H34) -> 0
F36: =IF((MATCH($C$3,product_family_new,0)=3),1,0)*IF($C$4,1,0)*IF($C$5,0,1)*IF($C$7,0,1) -> 0 | G36: =IF(ISNA(IF((MATCH($C$9,Images_3k_New,0)=2),1,0)),0,IF((MATCH($C$9,Images_3k_New,0)=2),1,0)) -> 1 | H36: 0 | I36: 0 | J36: WS-C3750V2-48TS-S | K36: 3750 | L36: Catalyst 3750V2 48 10/100 + 4 SFP Standard Image | M36: 48 | N36: 6995 | O36: 0 | P36: 0 | R36: =H36+SUM($H$15:H35) -> 0
F37: Catalyst 3750 10/100 PoE | I37: 0 | R37: =H37+SUM($H$15:H36) -> 0
F38: =IF((MATCH($C$3,product_family_new,0)=3),1,0)*IF($C$4,0,1)*IF($C$5,1,0)*IF($C$7,0,1) -> 0 | G38: =IF(ISNA(IF((MATCH($C$9,Images_3k_New,0)=2),1,0)),0,IF((MATCH($C$9,Images_3k_New,0)=2),1,0)) -> 1 | H38: 0 | I38: 0 | J38: WS-C3750-24PS-S | K38: 3750 | L38: Catalyst 3750 24 10/100 PoE + 2 SFP Standard Image | M38: 24 | N38: 4795 | O38: =IF(ISERROR(SEARCH("f",J38,1)),0,1) -> 0 | P38: =N38*O38 -> 0 | R38: =H38+SUM($H$15:H37) -> 0
F39: =IF((MATCH($C$3,product_family_new,0)=3),1,0)*IF($C$4,1,0)*IF($C$5,1,0)*IF($C$7,0,1) -> 0 | G39: =IF(ISNA(IF((MATCH($C$9,Images_3k_New,0)=3),1,0)),0,IF((MATCH($C$9,Images_3k_New,0)=3),1,0)) -> 0 | H39: 0 | I39: 0 | J39: WS-C3750-48PS-E | K39: 3750 | L39: Catalyst 3750 48 10/100 PoE + 4 SFP Enhanced Image | M39: 48 | N39: 10490 | O39: 0 | P39: 0 | R39: =H39+SUM($H$15:H38) -> 0
B40: Geo Regions | F40: =IF((MATCH($C$3,product_family_new,0)=3),1,0)*IF($C$4,1,0)*IF($C$5,1,0)*IF($C$7,0,1) -> 0 | G40: =IF(ISNA(IF((MATCH($C$9,Images_3k_New,0)=2),1,0)),0,IF((MATCH($C$9,Images_3k_New,0)=2),1,0)) -> 1 | H40: 0 | I40: 0 | J40: WS-C3750-48PS-S | K40: 3750 | L40: Catalyst 3750 48 10/100 PoE + 4 SFP Standard Image | M40: 48 | N40: 8495 | O40: 0 | P40: 0 | R40: =H40+SUM($H$15:H39) -> 0
B41: North America | F41: =IF((MATCH($C$3,product_family_new,0)=3),1,0)*IF($C$4,0,1)*IF($C$5,1,0)*IF($C$7,0,1) -> 0 | G41: =IF(ISNA(IF((MATCH($C$9,Images_3k_New,0)=3),1,0)),0,IF((MATCH($C$9,Images_3k_New,0)=3),1,0)) -> 0 | H41: 0 | I41: 0 | J41: WS-C3750V2-24PS-E | K41: 3750 | L41: Catalyst 3750V2 24 10/100 PoE + 2 SFP Enhanced Image | M41: 24 | N41: 6790 | O41: 0 | P41: 0 | R41: =H41+SUM($H$15:H40) -> 0
B42: APAC | F42: =IF((MATCH($C$3,product_family_new,0)=3),1,0)*IF($C$4,0,1)*IF($C$5,1,0)*IF($C$7,0,1) -> 0 | G42: =IF(ISNA(IF((MATCH($C$9,Images_3k_New,0)=2),1,0)),0,IF((MATCH($C$9,Images_3k_New,0)=2),1,0)) -> 1 | H42: 0 | I42: 0 | J42: WS-C3750V2-24PS-S | K42: 3750 | L42: Catalyst 3750V2 24 10/100 PoE + 2 SFP Standard Image | M42: 24 | N42: 4795 | O42: 0 | P42: 0 | R42: =H42+SUM($H$15:H41) -> 0
B43: EMEA | F43: =IF((MATCH($C$3,product_family_new,0)=3),1,0)*IF($C$4,1,0)*IF($C$5,1,0)*IF($C$7,0,1) -> 0 | G43: =IF(ISNA(IF((MATCH($C$9,Images_3k_New,0)=3),1,0)),0,IF((MATCH($C$9,Images_3k_New,0)=3),1,0)) -> 0 | H43: 0 | I43: 0 | J43: WS-C3750V2-48PS-E | K43: 3750 | L43: Catalyst 3750V2 48 10/100 PoE + 4 SFP Enhanced Image | M43: 48 | N43: 10490 | O43: 0 | P43: 0 | R43: =H43+SUM($H$15:H42) -> 0
F44: =IF((MATCH($C$3,product_family_new,0)=3),1,0)*IF($C$4,1,0)*IF($C$5,1,0)*IF($C$7,0,1) -> 0 | G44: =IF(ISNA(IF((MATCH($C$9,Images_3k_New,0)=2),1,0)),0,IF((MATCH($C$9,Images_3k_New,0)=2),1,0)) -> 1 | H44: 0 | I44: 0 | J44: WS-C3750V2-48PS-S | K44: 3750 | L44: Catalyst 3750V2 48 10/100 PoE + 4 SFP Standard Image | M44: 48 | N44: 8495 | O44: 0 | P44: 0 | R44: =H44+SUM($H$15:H43) -> 0
F45: C3560 Gig | I45: 0 | R45: =H45+SUM($H$15:H44) -> 0
B46: Hours of Operation | C46: Hrs | D46: Days | F46: =IF((MATCH($C$3,product_family_new,0)=3),1,0)*IF($C$4,0,1)*IF($C$5,0,1)*IF($C$7,1,0) -> 0 | G46: =IF(ISNA(IF((MATCH($C$9,Images_3k_New,0)=3),1,0)),0,IF((MATCH($C$9,Images_3k_New,0)=3),1,0)) -> 0 | H46: 0 | I46: 0 | J46: WS-C3560G-24TS-E | K46: 3560 | L46: Catalyst 3560 24 10/100/1000T + 4 SFP Enhanced Image | M46: 24 | N46: 8790 | O46: =IF(ISERROR(SEARCH("f",J46,1)),0,1) -> 0 | P46: =N46*O46 -> 0 | R46: =H46+SUM($H$15:H45) -> 0
B47: 10x5 | C47: =50 -> 50 | D47: 5 | F47: =IF((MATCH($C$3,product_family_new,0)=3),1,0)*IF($C$4,0,1)*IF($C$5,0,1)*IF($C$7,1,0) -> 0 | G47: =IF(ISNA(IF((MATCH($C$9,Images_3k_New,0)=2),1,0)),0,IF((MATCH($C$9,Images_3k_New,0)=2),1,0)) -> 1 | H47: 0 | I47: 0 | J47: WS-C3560G-24TS-S | K47: 3560 | L47: Catalyst 3560 24 10/100/1000T + 4 SFP Standard Image | M47: 24 | N47: 4795 | O47: =IF(ISERROR(SEARCH("f",J47,1)),0,1) -> 0 | P47: =N47*O47 -> 0 | R47: =H47+SUM($H$15:H46) -> 0
B48: 10x6 | C48: 60 | D48: 6 | F48: =IF((MATCH($C$3,product_family_new,0)=3),1,0)*IF($C$4,1,0)*IF($C$5,0,1)*IF($C$7,1,0) -> 0 | G48: =IF(ISNA(IF((MATCH($C$9,Images_3k_New,0)=3),1,0)),0,IF((MATCH($C$9,Images_3k_New,0)=3),1,0)) -> 0 | H48: 0 | I48: 0 | J48: WS-C3560G-48TS-E | K48: 3560 | L48: Catalyst 3560 48 10/100/1000T + 4 SFP Enhanced Image | M48: 48 | N48: 11990 | O48: =IF(ISERROR(SEARCH("f",J48,1)),0,1) -> 0 | P48: =N48*O48 -> 0 | R48: =H48+SUM($H$15:H47) -> 0
B49: 10x7 | C49: 70 | D49: 7 | F49: =IF((MATCH($C$3,product_family_new,0)=3),1,0)*IF($C$4,1,0)*IF($C$5,0,1)*IF($C$7,1,0) -> 0 | G49: =IF(ISNA(IF((MATCH($C$9,Images_3k_New,0)=2),1,0)),0,IF((MATCH($C$9,Images_3k_New,0)=2),1,0)) -> 1 | H49: 0 | I49: 0 | J49: WS-C3560G-48TS-S | K49: 3560 | L49: Catalyst 3560 48 10/100/1000T + 4 SFP Standard Image | M49: 48 | N49: 7995 | O49: =IF(ISERROR(SEARCH("f",J49,1)),0,1) -> 0 | P49: =N49*O49 -> 0 | R49: =H49+SUM($H$15:H48) -> 0
B50: 24x7 | C50: =24*7 -> 168 | D50: 7 | F50: C3560 Gig PoE | I50: 0 | R50: =H50+SUM($H$15:H49) -> 0
B51: 8x5 | C51: =8*5 -> 40 | D51: 5 | F51: =IF((MATCH($C$3,product_family_new,0)=2),1,0)*IF($C$4,0,1)*IF($C$5,1,0)*IF($C$7,1,0) -> 0 | G51: =IF(ISNA(IF((MATCH($C$9,Images_3k_New,0)=3),1,0)),0,IF((MATCH($C$9,Images_3k_New,0)=3),1,0)) -> 0 | H51: 0 | I51: 0 | J51: WS-C3560G-24PS-E | K51: 3560 | L51: Catalyst 3560 24 10/100/1000T PoE + 4 SFP Enhanced Image | M51: 24 | N51: 9590 | O51: =IF(ISERROR(SEARCH("f",J51,1)),0,1) -> 0 | P51: =N51*O51 -> 0 | R51: =H51+SUM($H$15:H50) -> 0
B52: 8x6 | C52: =8*6 -> 48 | D52: 6 | F52: =IF((MATCH($C$3,product_family_new,0)=2),1,0)*IF($C$4,0,1)*IF($C$5,1,0)*IF($C$7,1,0) -> 0 | G52: =IF(ISNA(IF((MATCH($C$9,Images_3k_New,0)=2),1,0)),0,IF((MATCH($C$9,Images_3k_New,0)=2),1,0)) -> 1 | H52: 0 | I52: 0 | J52: WS-C3560G-24PS-S | K52: 3560 | L52: Catalyst 3560 24 10/100/1000T PoE + 4 SFP Standard Image | M52: 24 | N52: 5595 | O52: 0 | P52: =N52*O52 -> 0 | R52: =H52+SUM($H$15:H51) -> 0
B53: 8x7 | C53: =8*7 -> 56 | D53: 7 | F53: =IF((MATCH($C$3,product_family_new,0)=2),1,0)*IF($C$4,1,0)*IF($C$5,1,0)*IF($C$7,1,0) -> 0 | G53: =IF(ISNA(IF((MATCH($C$9,Images_3k_New,0)=3),1,0)),0,IF((MATCH($C$9,Images_3k_New,0)=3),1,0)) -> 0 | H53: 0 | I53: 0 | J53: WS-C3560G-48PS-E | K53: 3560 | L53: Catalyst 3560 48 10/100/1000T PoE + 4 SFP Enhanced Image | M53: 48 | N53: 13490 | O53: 0 | P53: =N53*O53 -> 0 | R53: =H53+SUM($H$15:H52) -> 0
B54: 9x5 | C54: =9*5 -> 45 | D54: 5 | F54: =IF((MATCH($C$3,product_family_new,0)=2),1,0)*IF($C$4,1,0)*IF($C$5,1,0)*IF($C$7,1,0) -> 0 | G54: =IF(ISNA(IF((MATCH($C$9,Images_3k_New,0)=2),1,0)),0,IF((MATCH($C$9,Images_3k_New,0)=2),1,0)) -> 1 | H54: 0 | I54: 0 | J54: WS-C3560G-48PS-S | K54: 3560 | L54: Catalyst 3560 48 10/100/1000T PoE + 4 SFP Standard Image | M54: 48 | N54: 9495 | O54: 0 | P54: =N54*O54 -> 0 | R54: =H54+SUM($H$15:H53) -> 0
B55: 9x6 | C55: =9*6 -> 54 | D55: 6 | F55: C3560 10/100 | I55: 0 | O55: 0 | R55: =H55+SUM($H$15:H54) -> 0
F56: =IF((MATCH($C$3,product_family_new,0)=2),1,0)*IF($C$4,0,1)*IF($C$5,0,1)*IF($C$7,0,1) -> 0 | G56: =IF(ISNA(IF((MATCH($C$9,Images_3k_New,0)=3),1,0)),0,IF((MATCH($C$9,Images_3k_New,0)=3),1,0)) -> 0 | H56: 0 | I56: 0 | J56: WS-C3560V2-24TS-E | K56: 3560 | L56: Catalyst 3560V2 24 10/100 + 2 SFP Enhanced Image | M56: 24 | N56: 4990 | O56: 0 | P56: =N56*O56 -> 0 | R56: =H56+SUM($H$15:H55) -> 0
B57: Product Family | D57: 70% power | F57: =IF((MATCH($C$3,product_family_new,0)=2),1,0)*IF($C$4,0,1)*IF($C$5,0,1)*IF($C$7,0,1) -> 0 | G57: =IF(ISNA(IF((MATCH($C$9,Images_3k_New,0)=2),1,0)),0,IF((MATCH($C$9,Images_3k_New,0)=2),1,0)) -> 1 | H57: 0 | I57: 0 | J57: WS-C3560V2-24TS-S | K57: 3560 | L57: Catalyst 3560V2 24 10/100 + 2 SFP Standard Image | M57: 24 | N57: 2995 | O57: 0 | P57: =N57*O57 -> 0 | R57: =H57+SUM($H$15:H56) -> 0
B58: 2960 | C58: 1 | D58: 0 | F58: =IF((MATCH($C$3,product_family_new,0)=2),1,0)*IF($C$4,0,1)*IF($C$5,0,1)*IF($C$7,0,1) -> 0 | G58: =IF(ISNA(IF((MATCH($C$9,Images_3k_New,0)=2),1,0)),0,IF((MATCH($C$9,Images_3k_New,0)=2),1,0)) -> 1 | H58: 0 | I58: 0 | J58: WS-C3560V2-24TS-SD | K58: 3560 | L58: Catalyst 3560V2 24 10/100 + 2 SFP Standard Image DC Power | M58: 24 | N58: 3495 | O58: 0 | P58: =N58*O58 -> 0 | R58: =H58+SUM($H$15:H57) -> 0
B59: 3560 | C59: 2 | D59: 0 | F59: =IF((MATCH($C$3,product_family_new,0)=2),1,0)*IF($C$4,1,0)*IF($C$5,0,1)*IF($C$7,0,1) -> 0 | G59: =IF(ISNA(IF((MATCH($C$9,Images_3k_New,0)=3),1,0)),0,IF((MATCH($C$9,Images_3k_New,0)=3),1,0)) -> 0 | H59: 0 | I59: 0 | J59: WS-C3560V2-48TS-E | K59: 3560 | L59: Catalyst 3560V2 48 10/100 + 4 SFP Enhanced Image | M59: 48 | N59: 6990 | O59: 0 | P59: =N59*O59 -> 0 | R59: =H59+SUM($H$15:H58) -> 0
B60: 3750 | C60: 3 | D60: 0 | F60: =IF((MATCH($C$3,product_family_new,0)=2),1,0)*IF($C$4,1,0)*IF($C$5,0,1)*IF($C$7,0,1) -> 0 | G60: =IF(ISNA(IF((MATCH($C$9,Images_3k_New,0)=2),1,0)),0,IF((MATCH($C$9,Images_3k_New,0)=2),1,0)) -> 1 | H60: 0 | I60: 0 | J60: WS-C3560V2-48TS-S | K60: 3560 | L60: Catalyst 3560V2 48 10/100 + 4 SFP Standard Image | M60: 48 | N60: 4995 | O60: 0 | P60: =N60*O60 -> 0 | R60: =H60+SUM($H$15:H59) -> 0
B61: 2960S | C61: 4 | D61: =C76 -> 48 | F61: C3560 10/100 PoE | I61: 0 | O61: 0 | R61: =H61+SUM($H$15:H60) -> 0
B62: 3560X | C62: 5 | D62: =C77 -> 123.6 | F62: =IF((MATCH($C$3,product_family_new,0)=2),1,0)*IF($C$4,0,0)*IF($C$5,1,0)*IF($C$7,0,1) -> 0 | G62: =IF(ISNA(IF((MATCH($C$9,Images_3k_New,0)=2),1,0)),0,IF((MATCH($C$9,Images_3k_New,0)=2),1,0)) -> 1 | H62: 0 | I62: 0 | J62: WS-C3560-8PC-S | K62: 3560 | L62: Catalyst 3560 8 10/100 PoE + 1 T/SFP Standard Image | M62: 8 | N62: 1395 | O62: 0 | P62: =N62*O62 -> 0 | Q62: IGNORE | R62: =H62+SUM($H$15:H61) -> 0
B63: 3750X | C63: 6 | D63: =C78 -> 127.1 | F63: =IF((MATCH($C$3,product_family_new,0)=2),1,0)*IF($C$4,0,0)*IF($C$5,1,0)*IF($C$7,0,1) -> 0 | G63: =IF(ISNA(IF((MATCH($C$9,Images_3k_New,0)=2),1,0)),0,IF((MATCH($C$9,Images_3k_New,0)=2),1,0)) -> 1 | H63: 0 | I63: 0 | J63: WS-C3560-12PC-S | K63: 3560 | L63: Catalyst 3560 Compact 12 10/100 PoE + 1 T/SFP; IP Base Image | M63: 12 | N63: 1995 | O63: 0 | P63: 0 | Q63: IGNORE | R63: =H63+SUM($H$15:H62) -> 0
B64: 2K SW Images | F64: =IF((MATCH($C$3,product_family_new,0)=2),1,0)*IF($C$4,0,1)*IF($C$5,1,0)*IF($C$7,0,1) -> 0 | G64: =IF(ISNA(IF((MATCH($C$9,Images_3k_New,0)=3),1,0)),0,IF((MATCH($C$9,Images_3k_New,0)=3),1,0)) -> 0 | H64: 0 | I64: 0 | J64: WS-C3560V2-24PS-E | K64: 3560 | L64: Catalyst 3560V2 24 10/100 PoE + 2 SFP Enhanced Image | M64: 24 | N64: 5790 | O64: 0 | P64: 0 | R64: =H64+SUM($H$15:H63) -> 0
B65: LAN Lite | F65: =IF((MATCH($C$3,product_family_new,0)=2),1,0)*IF($C$4,0,1)*IF($C$5,1,0)*IF($C$7,0,1) -> 0 | G65: =IF(ISNA(IF((MATCH($C$9,Images_3k_New,0)=2),1,0)),0,IF((MATCH($C$9,Images_3k_New,0)=2),1,0)) -> 1 | H65: 0 | I65: 0 | J65: WS-C3560V2-24PS-S | K65: 3560 | L65: Catalyst 3560V2 24 10/100 PoE + 2 SFP Standard Image | M65: 24 | N65: 3795 | O65: 0 | P65: 0 | R65: =H65+SUM($H$15:H64) -> 0
B66: LAN Base | F66: =IF((MATCH($C$3,product_family_new,0)=2),1,0)*IF($C$4,1,0)*IF($C$5,1,0)*IF($C$7,0,1) -> 0 | G66: =IF(ISNA(IF((MATCH($C$9,Images_3k_New,0)=3),1,0)),0,IF((MATCH($C$9,Images_3k_New,0)=3),1,0)) -> 0 | H66: 0 | I66: 0 | J66: WS-C3560V2-48PS-E | K66: 3560 | L66: Catalyst 3560V2 48 10/100 PoE + 4 SFP Enhanced Image | M66: 48 | N66: 8490 | O66: 0 | P66: 0 | R66: =H66+SUM($H$15:H65) -> 0
B67: 3K SW Images | F67: =IF((MATCH($C$3,product_family_new,0)=2),1,0)*IF($C$4,1,0)*IF($C$5,1,0)*IF($C$7,0,1) -> 0 | G67: =IF(ISNA(IF((MATCH($C$9,Images_3k_New,0)=2),1,0)),0,IF((MATCH($C$9,Images_3k_New,0)=2),1,0)) -> 1 | H67: 0 | I67: 0 | J67: WS-C3560V2-48PS-S | K67: 3560 | L67: Catalyst 3560V2 48 10/100 PoE + 4 SFP Standard Image | M67: 48 | N67: 6495 | O67: 0 | P67: 0 | R67: =H67+SUM($H$15:H66) -> 0
B68: LAN Base | F68: C2960 Gig | I68: 0 | O68: 0 | R68: =H68+SUM($H$15:H67) -> 0
B69: IP Base | F69: =IF((MATCH($C$3,product_family_new,0)=1),1,0)*IF($C$4,0,0)*IF($C$5,0,1)*IF($C$7,1,0) -> 0 | G69: =IF(ISNA(IF((MATCH($C$9,Images_2k,0)=2),1,0)),0,IF((MATCH($C$9,Images_2k,0)=2),1,0)) -> 0 | H69: 0 | I69: 0 | J69: WS-C2960G-24TC-L | K69: 2960 | L69: Catalyst 2960 24 10/100/1000, 4 T/SFP LAN Base Image | M69: 20 | N69: 3295 | O69: 0 | P69: =N69*O69 -> 0 | Q69: IGNORE | R69: =H69+SUM($H$15:H68) -> 0
B70: IP Services | F70: =IF((MATCH($C$3,product_family_new,0)=1),1,0)*IF($C$4,1,0)*IF($C$5,0,1)*IF($C$7,1,0) -> 0 | G70: =IF(ISNA(IF((MATCH($C$9,Images_2k,0)=2),1,0)),0,IF((MATCH($C$9,Images_2k,0)=2),1,0)) -> 0 | H70: 0 | I70: 0 | J70: WS-C2960G-48TC-L | K70: 2960 | L70: Catalyst 2960 48 10/100/1000, 4 T/SFP LAN Base Image | M70: 48 | N70: 5995 | O70: 0 | P70: =N70*O70 -> 0 | R70: =H70+SUM($H$15:H69) -> 0
F71: =IF((MATCH($C$3,product_family_new,0)=1),1,0)*IF($C$4,1,0)*IF($C$5,0,1)*IF($C$7,1,0) -> 0 | G71: =IF(ISNA(IF((MATCH($C$9,Images_2k,0)=2),1,0)),0,IF((MATCH($C$9,Images_2k,0)=2),1,0)) -> 0 | H71: 0 | I71: 0 | J71: WS-C2960G-8TC-L | K71: 2960 | L71: Catalyst 2960 7 10/100/1000 + 1 T/SFP LAN Base | M71: 8 | N71: 1395 | O71: 0 | P71: =N71*O71 -> 0 | R71: =H71+SUM($H$15:H70) -> 0
F72: C2960 10/100 | I72: 0 | O72: 0 | R72: =H72+SUM($H$15:H71) -> 0
F73: =IF((MATCH($C$3,product_family_new,0)=1),1,0)*IF($C$4,0,1)*IF($C$5,0,1)*IF($C$7,0,1) -> 0 | G73: =IF(ISNA(IF((MATCH($C$9,Images_2k,0)=2),1,0)),0,IF((MATCH($C$9,Images_2k,0)=2),1,0)) -> 0 | H73: =G73*F73 -> 0 | I73: 0 | J73: WS-C2960-24TT-L | K73: 2960 | L73: Catalyst 2960 24 10/100 + 2 1000BT LAN Base Image | M73: 24 | N73: 1295 | O73: 0 | P73: =N73*O73 -> 0 | R73: =H73+SUM($H$15:H72) -> 0
A74: Power Consumption From Miercom Report | F74: =IF((MATCH($C$3,product_family_new,0)=1),1,0)*IF($C$4,0,1)*IF($C$5,0,1)*IF($C$7,0,1) -> 0 | G74: 0 | H74: 0 | I74: 0 | J74: WS-C2960-24TC-L | K74: 2960 | L74: Catalyst 2960 24 10/100 + 2T/SFP LAN Base Image | M74: 24 | N74: 1295 | O74: 0 | P74: 0 | R74: =H74+SUM($H$15:H73) -> 0
B75: Idle | C75: 0.7 | D75: 1 | F75: =IF((MATCH($C$3,product_family_new,0)=1),1,0)*IF($C$4,1,0)*IF($C$5,0,1)*IF($C$7,0,1) -> 0 | G75: 0 | H75: 0 | I75: 0 | J75: WS-C2960-48TT-L | K75: 2960 | L75: Catalyst 2960 48 10/100 Ports + 2 1000BT LAN Base Image | M75: 48 | N75: 2495 | O75: 0 | P75: 0 | R75: =H75+SUM($H$15:H74) -> 0
A76: 2K | B76: 46.3 | C76: 48 | D76: 48.2 | F76: =IF((MATCH($C$3,product_family_new,0)=1),1,0)*IF($C$4,1,0)*IF($C$5,0,1)*IF($C$7,0,1) -> 0 | G76: 0 | H76: 0 | I76: 0 | J76: WS-C2960-48TC-L | K76: 2960 | L76: Catalyst 2960 48 10/100 + 2 T/SFP LAN Base Image | M76: 48 | N76: 2495 | O76: 0 | P76: 0 | R76: =H76+SUM($H$15:H75) -> 0
A77: 3560 | B77: 119.4 | C77: 123.6 | D77: 124.4 | F77: =IF((MATCH($C$3,product_family_new,0)=1),1,0)*IF($C$4,1,0)*IF($C$5,0,1)*IF($C$7,0,1) -> 0 | G77: 0 | H77: 0 | I77: 0 | J77: WS-C2960-8TC-L | K77: 2960 | L77: Catalyst 2960 8 10/100 + 1 T/SFP LAN Base Image | M77: 8 | N77: 895 | O77: 0 | P77: 0 | R77: =H77+SUM($H$15:H76) -> 0
A78: 3750 | B78: 124.8 | C78: 127.1 | D78: 128.1 | F78: =IF((MATCH($C$3,product_family_new,0)=1),1,0)*IF($C$5,1,0)*IF($C$4,0,1)*IF($C$7,0,1) -> 0 | G78: 0 | H78: 0 | I78: 0 | J78: WS-C2960-24LT-L | K78: 2960 | L78: Catalyst2960 24 10/100 (8 PoE)+ 2 1000BT LAN Base Image | M78: 24 | N78: 1495 | O78: 0 | P78: 0 | Q78: Treated like PoE | R78: =H78+SUM($H$15:H77) -> 0
F79: =IF((MATCH($C$3,product_family_new,0)=1),1,0)*IF($C$4,0,1)*IF($C$5,0,1)*IF($C$7,0,1) -> 0 | G79: =IF(ISNA(IF((MATCH($C$9,Images_2k,0)=1),1,0)),0,IF((MATCH($C$9,Images_2k,0)=1),1,0)) -> 0 | H79: 0 | I79: 0 | J79: WS-C2960-24TC-S | K79: 2960 | L79: Catalyst 2960 24 10/100 + 2 T/SFP LAN Lite Image | M79: 24 | N79: 725 | O79: 0 | P79: 0 | R79: =H79+SUM($H$15:H78) -> 0
F80: =IF((MATCH($C$3,product_family_new,0)=1),1,0)*IF($C$4,1,0)*IF($C$5,0,1)*IF($C$7,0,1) -> 0 | G80: =IF(ISNA(IF((MATCH($C$9,Images_2k,0)=1),1,0)),0,IF((MATCH($C$9,Images_2k,0)=1),1,0)) -> 0 | H80: 0 | I80: 0 | J80: WS-C2960-48TC-S | K80: 2960 | L80: Catalyst 2960 48 10/100 + 2 T/SFP LAN Lite Image | M80: 48 | N80: 1245 | O80: 0 | P80: 0 | R80: =H80+SUM($H$15:H79) -> 0
B81: Industry/Vertical List | F81: =IF((MATCH($C$3,product_family_new,0)=1),1,0)*IF($C$4,1,0)*IF($C$5,0,1)*IF($C$7,0,1) -> 0 | G81: =IF(ISNA(IF((MATCH($C$9,Images_2k,0)=1),1,0)),0,IF((MATCH($C$9,Images_2k,0)=1),1,0)) -> 0 | H81: 0 | I81: =IF(H81=0,I80,I80+1) -> 0 | J81: WS-C2960-48TT-S | K81: 2960 | L81: Catalyst 2960 48 10/100 + 2 1000BT LAN Lite Image | M81: 48 | N81: 1245 | O81: 0 | P81: 0 | R81: =H81+SUM($H$15:H80) -> 0
F82: =IF((MATCH($C$3,product_family_new,0)=1),1,0)*IF($C$4,1,0)*IF($C$5,0,1)*IF($C$7,0,1) -> 0 | G82: =IF(ISNA(IF((MATCH($C$9,Images_2k,0)=2),1,0)),0,IF((MATCH($C$9,Images_2k,0)=2),1,0)) -> 0 | H82: =G82*F82 -> 0 | I82: 0 | J82: WS-C2960PD-8TT-L | K82: 2960 | L82: Catalyst 2960 Powered Device 8 10/100 + 1 1000BT LAN Base | M82: 8 | N82: 795 | O82: 0 | P82: 0 | R82: =H82+SUM($H$15:H81) -> 0
B83: Automotive | F83: =IF((MATCH($C$3,product_family_new,0)=1),1,0)*IF($C$4,0,1)*IF($C$5,0,1)*IF($C$7,0,1) -> 0 | G83: =IF(ISNA(IF((MATCH($C$9,Images_2k,0)=1),1,0)),0,IF((MATCH($C$9,Images_2k,0)=1),1,0)) -> 0 | H83: 0 | I83: 0 | J83: WS-C2960-24-S | K83: 2960 | L83: Catalyst 2960 24 10/100 LAN Lite Image | M83: 24 | N83: 725 | O83: 0 | P83: 0 | R83: =H83+SUM($H$15:H82) -> 0
B84: Basic Materials - Manufacturing | F84: =IF((MATCH($C$3,product_family_new,0)=1),1,0)*IF($C$4,1,0)*IF($C$5,0,1)*IF($C$7,0,1) -> 0 | G84: =IF(ISNA(IF((MATCH($C$9,Images_2k,0)=1),1,0)),0,IF((MATCH($C$9,Images_2k,0)=1),1,0)) -> 0 | H84: 0 | I84: 0 | J84: WS-C2960-8TC-S | K84: 2960 | L84: Catalyst 2960 8 10/100 + 1 T/SFP LAN Lite Image | M84: 8 | N84: 595 | O84: 0 | P84: 0 | R84: =H84+SUM($H$15:H83) -> 0
B85: Computer Hardware | F85: C2960 10/100 PoE | I85: 0 | O85: 0 | R85: =H85+SUM($H$15:H84) -> 0
B86: Computer Software | F86: =IF((MATCH($C$3,product_family_new,0)=1),1,0)*IF($C$4,0,1)*IF($C$5,1,0)*IF($C$7,0,1) -> 0 | G86: =IF(ISNA(IF((MATCH($C$9,Images_2k,0)=2),1,0)),0,IF((MATCH($C$9,Images_2k,0)=2),1,0)) -> 0 | H86: 0 | I86: 0 | J86: WS-C2960-24PC-L | K86: 2960 | L86: Catalyst 2960 24 10/100 PoE + 2 T/SFP LAN Base Image | M86: 24 | N86: 2495 | O86: 0 | P86: =N86*O86 -> 0 | R86: =H86+SUM($H$15:H85) -> 0
B87: Conglomerates | F87: =IF((MATCH($C$3,product_family_new,0)=1),1,0)*IF($C$4,1,0)*IF($C$5,1,0)*IF($C$7,0,1) -> 0 | G87: =IF(ISNA(IF((MATCH($C$9,Images_2k,0)=2),1,0)),0,IF((MATCH($C$9,Images_2k,0)=2),1,0)) -> 0 | H87: 0 | I87: 0 | J87: WS-C2960-48PST-L | K87: 2960 | L87: Catalyst 2960 48 10/100 PoE + 2 1000BT +2 SFP LAN Base Image | M87: 48 | N87: 4495 | O87: 0 | P87: =N87*O87 -> 0 | R87: =H87+SUM($H$15:H86) -> 0
B88: Construction and Building Material | F88: =IF((MATCH($C$3,product_family_new,0)=1),1,0)*IF($C$4,1,0)*IF($C$5,1,0)*IF($C$7,0,1) -> 0 | G88: =IF(ISNA(IF((MATCH($C$9,Images_2k,0)=1),1,0)),0,IF((MATCH($C$9,Images_2k,0)=1),1,0)) -> 0 | H88: 0 | I88: 0 | J88: WS-C2960-48PST-S | K88: 2960 | L88: Catalyst 2960 48 10/100 PoE + 2 1000BT +2 SFP LAN Lite Image | M88: 48 | N88: 3095 | O88: 0 | P88: =N88*O88 -> 0 | R88: =H88+SUM($H$15:H87) -> 0
B89: Consulting | F89: =IF((MATCH($C$3,product_family_new,0)=1),1,0)*IF($C$4,0,1)*IF($C$5,1,0)*IF($C$7,0,1) -> 0 | G89: =IF(ISNA(IF((MATCH($C$9,Images_2k,0)=1),1,0)),0,IF((MATCH($C$9,Images_2k,0)=1),1,0)) -> 0 | H89: 0 | I89: 0 | J89: WS-C2960-24PC-S | K89: 2960 | L89: Catalyst 2960 24 10/100 PoE + 2 T/SFP LAN Lite Image | M89: 24 | N89: 1795 | O89: 0 | P89: =N89*O89 -> 0 | R89: =H89+SUM($H$15:H88) -> 0
B90: Consumer Goods | F90: =IF((MATCH($C$3,product_family_new,0)=1),1,0)*IF($C$4,0,1)*IF($C$5,1,0)*IF($C$7,0,1) -> 0 | G90: =IF(ISNA(IF((MATCH($C$9,Images_2k,0)=1),1,0)),0,IF((MATCH($C$9,Images_2k,0)=1),1,0)) -> 0 | H90: 0 | I90: 0 | J90: WS-C2960-24LC-S | K90: 2960 | L90: Catalyst 2960 24 10/100 (8 PoE) + 2 T/SFP LAN Lite Image | M90: 24 | N90: 1095 | O90: 0 | P90: =N90*O90 -> 0 | Q90: Treated like PoE | R90: =H90+SUM($H$15:H89) -> 0
B91: Financial Services | F91: C2960 Stout | I91: 0 | O91: 0 | R91: =H91+SUM($H$15:H90) -> 0
B92: Food and Beverage | F92: =IF((MATCH($C$3,product_family_new,0)=4),1,0)*IF($C$4,1,0)*IF($C$5,1,0)*IF($C$7,1,0) -> 0 | G92: =IF(ISNA(IF((MATCH($C$9,Images_2k,0)=2),1,0)),0,IF((MATCH($C$9,Images_2k,0)=2),1,0)) -> 0 | H92: =G92*F92*IF(UL,1,0) -> 0 | I92: 0 | J92: WS-C2960S-48FPD-L | K92: 2960S | L92: Catalyst 2960S 48 GigE PoE 740W, 2 x 10G SFP+ LAN Base | M92: 48 | N92: 9495 | O92: 1 | P92: =N92*O92 -> 9495 | R92: =H92+SUM($H$15:H91) -> 0
B93: Government(Public) | F93: =IF((MATCH($C$3,product_family_new,0)=4),1,0)*IF($C$4,1,0)*IF($C$5,1,0)*IF($C$7,1,0) -> 0 | G93: 0 | H93: =G93*F93*IF(UL,1,0) -> 0 | I93: 0 | J93: WS-C2960S-48LPD-L | K93: 2960S | L93: Catalyst 2960S 48 GigE PoE 370W, 2 x 10G SFP+ LAN Base | M93: 48 | N93: 8495 | O93: 0 | P93: 0 | R93: =H93+SUM($H$15:H92) -> 0
B94: Healthcare | F94: =IF((MATCH($C$3,product_family_new,0)=4),1,0)*IF($C$4,0,1)*IF($C$5,1,0)*IF($C$7,1,0) -> 0 | G94: 0 | H94: =G94*F94*IF(UL,1,0) -> 0 | I94: 0 | J94: WS-C2960S-24PD-L | K94: 2960S | L94: Catalyst 2960S 24 GigE PoE 370W, 2 x 10G SFP+ LAN Base | M94: 24 | N94: 5495 | O94: 0 | P94: 0 | R94: =H94+SUM($H$15:H93) -> 0
B95: Higher Education | F95: =IF((MATCH($C$3,product_family_new,0)=4),1,0)*IF($C$4,1,0)*IF($C$5,0,1)*IF($C$7,1,0) -> 0 | G95: 0 | H95: =G95*F95*IF(UL,1,0) -> 0 | I95: 0 | J95: WS-C2960S-48TD-L | K95: 2960S | L95: Catalyst 2960S 48 GigE, 2 x 10G SFP+ LAN Base | M95: 48 | N95: 6995 | O95: 0 | P95: 0 | R95: =H95+SUM($H$15:H94) -> 0
B96: Hospital | F96: =IF((MATCH($C$3,product_family_new,0)=4),1,0)*IF($C$4,0,1)*IF($C$5,0,1)*IF($C$7,1,0) -> 0 | G96: 0 | H96: =G96*F96*IF(UL,1,0) -> 0 | I96: 0 | J96: WS-C2960S-24TD-L | K96: 2960S | L96: Catalyst 2960S 24 GigE, 2 x 10G SFP+ LAN Base | M96: 24 | N96: 4495 | O96: 0 | P96: 0 | R96: =H96+SUM($H$15:H95) -> 0
B97: Hospitality, Leisure | F97: =IF((MATCH($C$3,product_family_new,0)=4),1,0)*IF($C$4,1,0)*IF($C$5,1,0)*IF($C$7,1,0) -> 0 | G97: 0 | H97: =G97*F97*IF(UL,0,1) -> 0 | I97: 0 | J97: WS-C2960S-48FPS-L | K97: 2960S | L97: Catalyst 2960S 48 GigE PoE 740W, 4 x SFP LAN Base | M97: 48 | N97: 7495 | O97: 1 | P97: 7495 | R97: =H97+SUM($H$15:H96) -> 0
B98: Information Technology | F98: =IF((MATCH($C$3,product_family_new,0)=4),1,0)*IF($C$4,1,0)*IF($C$5,1,0)*IF($C$7,1,0) -> 0 | G98: 0 | H98: 0 | I98: 0 | J98: WS-C2960S-48LPS-L | K98: 2960S | L98: Catalyst 2960S 48 GigE PoE 370W, 4 x SFP LAN Base | M98: 48 | N98: 6495 | O98: 0 | P98: 0 | R98: =H98+SUM($H$15:H97) -> 0
B99: K-12 Education | F99: =IF((MATCH($C$3,product_family_new,0)=4),1,0)*IF($C$4,0,1)*IF($C$5,1,0)*IF($C$7,1,0) -> 0 | G99: 0 | H99: 0 | I99: 0 | J99: WS-C2960S-24PS-L | K99: 2960S | L99: Catalyst 2960S 24 GigE PoE 370W, 4 x SFP LAN Base | M99: 24 | N99: 3995 | O99: 0 | P99: 0 | R99: =H99+SUM($H$15:H98) -> 0
B100: Oil and Gas | F100: =IF((MATCH($C$3,product_family_new,0)=4),1,0)*IF($C$4,1,0)*IF($C$5,0,1)*IF($C$7,1,0) -> 0 | G100: 0 | H100: 0 | I100: 0 | J100: WS-C2960S-48TS-L | K100: 2960S | L100: Catalyst 2960S 48 GigE, 4 x SFP LAN Base | M100: 48 | N100: 4995 | O100: 0 | P100: 0 | R100: =H100+SUM($H$15:H99) -> 0
B101: Outsourcing | F101: =IF((MATCH($C$3,product_family_new,0)=4),1,0)*IF($C$4,0,1)*IF($C$5,0,1)*IF($C$7,1,0) -> 0 | G101: 0 | H101: 0 | I101: 0 | J101: WS-C2960S-24TS-L | K101: 2960S | L101: Catalyst 2960S 24 GigE, 4 x SFP LAN Base | M101: 24 | N101: 2995 | O101: 0 | P101: 0 | R101: =H101+SUM($H$15:H100) -> 0
B102: Retail and Consumer | F102: =IF((MATCH($C$3,product_family_new,0)=4),1,0)*IF($C$4,1,0)*IF($C$5,0,1)*IF($C$7,1,0) -> 0 | G102: =IF(ISNA(IF((MATCH($C$9,Images_2k,0)=1),1,0)),0,IF((MATCH($C$9,Images_2k,0)=1),1,0)) -> 0 | H102: 0 | I102: 0 | J102: WS-C2960S-48TS-S | K102: 2960S | L102: Catalyst 2960S 48 GigE, 2 x SFP LAN Lite | M102: 48 | N102: 3595 | O102: 0 | P102: 0 | R102: =H102+SUM($H$15:H101) -> 0
B103: Services | F103: =IF((MATCH($C$3,product_family_new,0)=4),1,0)*IF($C$4,0,1)*IF($C$5,0,1)*IF($C$7,1,0) -> 0 | G103: =IF(ISNA(IF((MATCH($C$9,Images_2k,0)=1),1,0)),0,IF((MATCH($C$9,Images_2k,0)=1),1,0)) -> 0 | H103: 0 | I103: 0 | J103: WS-C2960S-24TS-S | K103: 2960S | L103: Catalyst 2960S 24 GigE, 2 x SFP LAN Lite | M103: 24 | N103: 1995 | O103: 0 | P103: 0 | R103: =H103+SUM($H$15:H102) -> 0
B104: Technology-Others | I104: 0 | J104: C2960S-STACK | K104: 2960S | L104: Catalyst 2960S FlexStack Stack Module optional for LAN Base | N104: 1500 | O104: 0 | P104: 0 | R104: =H104+SUM($H$15:H103) -> 0
B105: Transport & Logistics | F105: Incredibles - C3560X | I105: 0 | O105: 0 | R105: =H105+SUM($H$15:H104) -> 0
B106: Utilities | F106: =IF((MATCH($C$3,product_family_new,0)=5),1,0)*IF($C$4,0,1)*IF($C$5,0,1) -> 0 | G106: =IF(ISNA(IF((MATCH($C$9,Images_3k_New,0)=1),1,0)),0,IF((MATCH($C$9,Images_3k_New,0)=1),1,0)) -> 0 | H106: 0 | I106: 0 | J106: WS-C3560X-24T-L | K106: 3560X | L106: Catalyst 3560X 24 Port Data LAN Base | M106: 24 | N106: 3400 | O106: 0 | P106: =N106*O106 -> 0 | R106: =H106+SUM($H$15:H105) -> 0
F107: =IF((MATCH($C$3,product_family_new,0)=5),1,0)*IF($C$4,1,0)*IF($C$5,0,1) -> 0 | G107: =IF(ISNA(IF((MATCH($C$9,Images_3k_New,0)=1),1,0)),0,IF((MATCH($C$9,Images_3k_New,0)=1),1,0)) -> 0 | H107: 0 | I107: 0 | J107: WS-C3560X-48T-L | K107: 3560X | L107: Catalyst 3560X 48 Port Data LAN Base | M107: 48 | N107: 6100 | O107: 0 | P107: 0 | R107: =H107+SUM($H$15:H106) -> 0
F108: =IF((MATCH($C$3,product_family_new,0)=5),1,0)*IF($C$4,0,1)*IF($C$5,1,0) -> 0 | G108: =IF(ISNA(IF((MATCH($C$9,Images_3k_New,0)=1),1,0)),0,IF((MATCH($C$9,Images_3k_New,0)=1),1,0)) -> 0 | H108: 0 | I108: 0 | J108: WS-C3560X-24P-L | K108: 3560X | L108: Catalyst 3560X 24 Port PoE LAN Base | M108: 24 | N108: 4200 | O108: 0 | P108: 0 | R108: =H108+SUM($H$15:H107) -> 0
F109: =IF((MATCH($C$3,product_family_new,0)=5),1,0)*IF($C$4,1,0)*IF($C$5,1,0) -> 0 | G109: =IF(ISNA(IF((MATCH($C$9,Images_3k_New,0)=1),1,0)),0,IF((MATCH($C$9,Images_3k_New,0)=1),1,0)) -> 0 | H109: 0 | I109: 0 | J109: WS-C3560X-48P-L | K109: 3560X | L109: Catalyst 3560X 48 Port PoE LAN Base | M109: 48 | N109: 7600 | O109: 0 | P109: 0 | R109: =H109+SUM($H$15:H108) -> 0
F110: =IF((MATCH($C$3,product_family_new,0)=5),1,0)*IF($C$4,1,0)*IF($C$5,1,0) -> 0 | G110: =IF(ISNA(IF((MATCH($C$9,Images_3k_New,0)=1),1,0)),0,IF((MATCH($C$9,Images_3k_New,0)=1),1,0)) -> 0 | H110: 0 | I110: 0 | J110: WS-C3560X-48PF-L | K110: 3560X | L110: Catalyst 3560X 48 Port Full PoE LAN Base | M110: 48 | N110: 8600 | O110: 1 | P110: 8600 | R110: =H110+SUM($H$15:H109) -> 0
B111: Yes/No Logic Toggle | F111: =IF((MATCH($C$3,product_family_new,0)=5),1,0)*IF($C$4,0,1)*IF($C$5,0,1) -> 0 | G111: =IF(ISNA(IF((MATCH($C$9,Images_3k_New,0)=2),1,0)),0,IF((MATCH($C$9,Images_3k_New,0)=2),1,0)) -> 1 | H111: 0 | I111: 0 | J111: WS-C3560X-24T-S | K111: 3560X | L111: Catalyst 3560X 24 Port Data IP Base | M111: 24 | N111: 4300 | O111: 0 | P111: 0 | R111: =H111+SUM($H$15:H110) -> 0
B112: Yes | F112: =IF((MATCH($C$3,product_family_new,0)=5),1,0)*IF($C$4,1,0)*IF($C$5,0,1) -> 0 | G112: =IF(ISNA(IF((MATCH($C$9,Images_3k_New,0)=2),1,0)),0,IF((MATCH($C$9,Images_3k_New,0)=2),1,0)) -> 1 | H112: 0 | I112: 0 | J112: WS-C3560X-48T-S | K112: 3560X | L112: Catalyst 3560X 48 Port Data IP Base | M112: 48 | N112: 7500 | O112: 0 | P112: 0 | R112: =H112+SUM($H$15:H111) -> 0
B113: No | F113: =IF((MATCH($C$3,product_family_new,0)=5),1,0)*IF($C$4,0,1)*IF($C$5,1,0) -> 0 | G113: =IF(ISNA(IF((MATCH($C$9,Images_3k_New,0)=2),1,0)),0,IF((MATCH($C$9,Images_3k_New,0)=2),1,0)) -> 1 | H113: 0 | I113: 0 | J113: WS-C3560X-24P-S | K113: 3560X | L113: Catalyst 3560X 24 Port PoE IP Base | M113: 24 | N113: 5100 | O113: 0 | P113: 0 | R113: =H113+SUM($H$15:H112) -> 0
F114: =IF((MATCH($C$3,product_family_new,0)=5),1,0)*IF($C$4,1,0)*IF($C$5,1,0) -> 0 | G114: =IF(ISNA(IF((MATCH($C$9,Images_3k_New,0)=2),1,0)),0,IF((MATCH($C$9,Images_3k_New,0)=2),1,0)) -> 1 | H114: 0 | I114: 0 | J114: WS-C3560X-48P-S | K114: 3560X | L114: Catalyst 3560X 48 Port PoE IP Base | M114: 48 | N114: 9000 | O114: 0 | P114: 0 | R114: =H114+SUM($H$15:H113) -> 0
F115: =IF((MATCH($C$3,product_family_new,0)=5),1,0)*IF($C$4,1,0)*IF($C$5,1,0) -> 0 | G115: =IF(ISNA(IF((MATCH($C$9,Images_3k_New,0)=2),1,0)),0,IF((MATCH($C$9,Images_3k_New,0)=2),1,0)) -> 1 | H115: 0 | I115: 0 | J115: WS-C3560X-48PF-S | K115: 3560X | L115: Catalyst 3560X 48 Port Full PoE IP Base | M115: 48 | N115: 10000 | O115: =IF(ISERROR(SEARCH("f",J115,1)),0,1) -> 1 | P115: =N115*O115 -> 10000 | R115: =H115+SUM($H$15:H114) -> 0
F116: Incredibles - C3750X | I116: 0 | O116: =IF(ISERROR(SEARCH("f",J116,1)),0,1) -> 0 | R116: =H116+SUM($H$15:H115) -> 0
F117: =IF((MATCH($C$3,product_family_new,0)=6),1,0)*IF($C$4,0,1)*IF($C$5,0,1) -> 0 | G117: =IF(ISNA(IF((MATCH($C$9,Images_3k_New,0)=1),1,0)),0,IF((MATCH($C$9,Images_3k_New,0)=1),1,0)) -> 0 | H117: 0 | I117: 0 | J117: WS-C3750X-24T-L | K117: 3750X | L117: Catalyst 3750X 24 Port Data LAN Base | M117: 24 | N117: 5200 | O117: =IF(ISERROR(SEARCH("f",J117,1)),0,1) -> 0 | P117: =N117*O117 -> 0 | R117: =H117+SUM($H$15:H116) -> 0
F118: =IF((MATCH($C$3,product_family_new,0)=6),1,0)*IF($C$4,1,0)*IF($C$5,0,1) -> 0 | G118: =IF(ISNA(IF((MATCH($C$9,Images_3k_New,0)=1),1,0)),0,IF((MATCH($C$9,Images_3k_New,0)=1),1,0)) -> 0 | H118: 0 | I118: 0 | J118: WS-C3750X-48T-L | K118: 3750X | L118: Catalyst 3750X 48 Port Data LAN Base | M118: 48 | N118: 8900 | O118: 0 | P118: =N118*O118 -> 0 | R118: =H118+SUM($H$15:H117) -> 0
F119: =IF((MATCH($C$3,product_family_new,0)=6),1,0)*IF($C$4,0,1)*IF($C$5,1,0) -> 0 | G119: =IF(ISNA(IF((MATCH($C$9,Images_3k_New,0)=1),1,0)),0,IF((MATCH($C$9,Images_3k_New,0)=1),1,0)) -> 0 | H119: 0 | I119: 0 | J119: WS-C3750X-24P-L | K119: 3750X | L119: Catalyst 3750X 24 Port PoE LAN Base | M119: 24 | N119: 6000 | O119: 0 | P119: 0 | R119: =H119+SUM($H$15:H118) -> 0
F120: =IF((MATCH($C$3,product_family_new,0)=6),1,0)*IF($C$4,1,0)*IF($C$5,1,0) -> 1 | G120: =IF(ISNA(IF((MATCH($C$9,Images_3k_New,0)=1),1,0)),0,IF((MATCH($C$9,Images_3k_New,0)=1),1,0)) -> 0 | H120: 0 | I120: 0 | J120: WS-C3750X-48P-L | K120: 3750X | L120: Catalyst 3750X 48 Port PoE LAN Base | M120: 48 | N120: 10400 | O120: 0 | P120: 0 | R120: =H120+SUM($H$15:H119) -> 0
F121: =IF((MATCH($C$3,product_family_new,0)=6),1,0)*IF($C$4,1,0)*IF($C$5,1,0) -> 1 | G121: =IF(ISNA(IF((MATCH($C$9,Images_3k_New,0)=1),1,0)),0,IF((MATCH($C$9,Images_3k_New,0)=1),1,0)) -> 0 | H121: 0 | I121: 0 | J121: WS-C3750X-48PF-L | K121: 3750X | L121: Catalyst 3750X 48 Port Full PoE LAN Base | M121: 48 | N121: 11400 | O121: 1 | P121: 11400 | R121: =H121+SUM($H$15:H120) -> 0
F122: =IF((MATCH($C$3,product_family_new,0)=6),1,0)*IF($C$4,0,1)*IF($C$5,0,1) -> 0 | G122: =IF(ISNA(IF((MATCH($C$9,Images_3k_New,0)=2),1,0)),0,IF((MATCH($C$9,Images_3k_New,0)=2),1,0)) -> 1 | H122: 0 | I122: 0 | J122: WS-C3750X-24T-S | K122: 3750X | L122: Catalyst 3750X 24 Port Data IP Base | M122: 24 | N122: 6500 | O122: 0 | P122: 0 | R122: =H122+SUM($H$15:H121) -> 0
F123: =IF((MATCH($C$3,product_family_new,0)=6),1,0)*IF($C$4,1,0)*IF($C$5,0,1) -> 0 | G123: =IF(ISNA(IF((MATCH($C$9,Images_3k_New,0)=2),1,0)),0,IF((MATCH($C$9,Images_3k_New,0)=2),1,0)) -> 1 | H123: 0 | I123: 0 | J123: WS-C3750X-48T-S | K123: 3750X | L123: Catalyst 3750X 48 Port Data IP Base | M123: 48 | N123: 11500 | O123: 0 | P123: 0 | R123: =H123+SUM($H$15:H122) -> 0
F124: =IF((MATCH($C$3,product_family_new,0)=6),1,0)*IF($C$4,0,1)*IF($C$5,1,0) -> 0 | G124: =IF(ISNA(IF((MATCH($C$9,Images_3k_New,0)=2),1,0)),0,IF((MATCH($C$9,Images_3k_New,0)=2),1,0)) -> 1 | H124: 0 | I124: 0 | J124: WS-C3750X-24P-S | K124: 3750X | L124: Catalyst 3750X 24 Port PoE IP Base | M124: 24 | N124: 7300 | O124: 0 | P124: 0 | R124: =H124+SUM($H$15:H123) -> 0
F125: =IF((MATCH($C$3,product_family_new,0)=6),1,0)*IF($C$4,1,0)*IF($C$5,1,0) -> 1 | G125: =IF(ISNA(IF((MATCH($C$9,Images_3k_New,0)=2),1,0)),0,IF((MATCH($C$9,Images_3k_New,0)=2),1,0)) -> 1 | H125: 1 | I125: 1 | J125: WS-C3750X-48P-S | K125: 3750X | L125: Catalyst 3750X 48 Port PoE IP Base | M125: 48 | N125: 13000 | O125: 0 | P125: 0 | R125: =H125+SUM($H$15:H124) -> 1
F126: =IF((MATCH($C$3,product_family_new,0)=6),1,0)*IF($C$4,1,0)*IF($C$5,1,0) -> 1 | G126: =IF(ISNA(IF((MATCH($C$9,Images_3k_New,0)=2),1,0)),0,IF((MATCH($C$9,Images_3k_New,0)=2),1,0)) -> 1 | H126: 1 | I126: 2 | J126: WS-C3750X-48PF-S | K126: 3750X | L126: Catalyst 3750X 48 Port Full PoE IP Base | M126: 48 | N126: 14000 | O126: 1 | P126: 14000 | R126: =H126+SUM($H$15:H125) -> 2
F127: Network Modules for the Catalyst 3750-X and 3560-X Series
J128: C3KX-NM-1G= | K128: 3750X | L128: Catalyst 3K-X 1G Network Module Spare | N128: 500
J129: C3KX-NM-10G= | K129: 3750X | L129: Catalyst 3K-X 10G Network Module Spare | N129: 2500
J130: C3KX-NM-BLANK= | K130: 3750X | L130: Catalyst 3K-X Network Module Blank Spare | N130: 50

Sheet PFBenefits
B1: Energy | C1: Security | D1: Security: Virus / Malware | E1: SMART / MTNO | F1: ="MTNO: "&MTNO!A68 -> MTNO: Savings from avoiding purchase of network assessment tools. | G1: ="MTNO: "&MTNO!A78 -> MTNO: Savings from avoiding use and testing of network traffic tools. | H1: ="MTNO: "&MTNO!A95 -> MTNO: Savings from avoiding purchase of network sniffer-trace tools. | I1: ="MTNO: "&MTNO!A106 -> MTNO: Savings from avoiding use and testing of network sniffer-trace tools. | J1: HA | K1: ="HA: " & HA!$A$53 -> HA: Increased business productivity due to reduction in unplanned downtime. | L1: ="HA: " & HA!$A$74 -> HA: Increased IT productivity due to reduction in planned downtime. | M1: ="HA: " & HA!$A$93 -> HA: Avoidance of revenue lost to network outages. | N1: Refresh
A2: Assoc Cell / Product Family | B2: =CELL("Address",Summary!N42) -> '[Cisco Access Switching v20120120.xlsm]Summary'!$N$42 | C2: =CELL("Address",Summary!N43) -> '[Cisco Access Switching v20120120.xlsm]Summary'!$N$43 | D2: =CELL("Address",Security!M88) -> '[Cisco Access Switching v20120120.xlsm]Security'!$M$88 | E2: =CELL("Address",Summary!$N$44) -> '[Cisco Access Switching v20120120.xlsm]Summary'!$N$44 | F2: =CELL("address",MTNO!$M$71) -> '[Cisco Access Switching v20120120.xlsm]MTNO'!$M$71 | G2: =CELL("address",MTNO!$M$81) -> '[Cisco Access Switching v20120120.xlsm]MTNO'!$M$81 | H2: =CELL("address",MTNO!$M$98) -> '[Cisco Access Switching v20120120.xlsm]MTNO'!$M$98 | I2: =CELL("address",MTNO!$M$109) -> '[Cisco Access Switching v20120120.xlsm]MTNO'!$M$109 | J2: =CELL("Address",Summary!$N$45) -> '[Cisco Access Switching v20120120.xlsm]Summary'!$N$45 | K2: =CELL("address",HA!$M$56) -> '[Cisco Access Switching v20120120.xlsm]HA'!$M$56 | L2: =CELL("address",HA!$M$77) -> '[Cisco Access Switching v20120120.xlsm]HA'!$M$77 | M2: =CELL("address",HA!$M$96) -> '[Cisco Access Switching v20120120.xlsm]HA'!$M$96 | N2: =CELL("Address",Summary!$N$46) -> '[Cisco Access Switching v20120120.xlsm]Summary'!$N$46
A3: 2960 | B3: TRUE | C3: TRUE | D3: FALSE | E3: TRUE | F3: FALSE | G3: FALSE | H3: FALSE | I3: FALSE | J3: TRUE | K3: TRUE | L3: FALSE | M3: FALSE | N3: TRUE
A4: 3560 | B4: TRUE | C4: TRUE | D4: TRUE | E4: TRUE | F4: TRUE | G4: TRUE | H4: TRUE | I4: TRUE | J4: TRUE | K4: TRUE | L4: FALSE | M4: FALSE | N4: TRUE
A5: 3750 | B5: TRUE | C5: TRUE | D5: TRUE | E5: TRUE | F5: TRUE | G5: TRUE | H5: TRUE | I5: TRUE | J5: TRUE | K5: TRUE | L5: TRUE | M5: TRUE | N5: TRUE
A6: 2960S | B6: TRUE | C6: TRUE | D6: FALSE | E6: TRUE | F6: FALSE | G6: FALSE | H6: FALSE | I6: FALSE | J6: TRUE | K6: TRUE | L6: FALSE | M6: FALSE | N6: TRUE
A7: 3560X | B7: TRUE | C7: TRUE | D7: TRUE | E7: TRUE | F7: TRUE | G7: TRUE | H7: TRUE | I7: TRUE | J7: TRUE | K7: TRUE | L7: FALSE | M7: FALSE | N7: TRUE
A8: 3750X | B8: TRUE | C8: TRUE | D8: TRUE | E8: TRUE | F8: TRUE | G8: TRUE | H8: TRUE | I8: TRUE | J8: TRUE | K8: TRUE | L8: TRUE | M8: TRUE | N8: TRUE

Sheet Utilities
I1: UsableSheet | J1: VisibleSheet
I2: FALSE | J2: FALSE
A4: Variables | D4: Cell Formats
A5: Variable | B5: Value | E5: Input | F5: Default
A6: varNo | B6: No | D6: IntegerPosInput | E6: 5000 | F6: 6
A7: varYes | B7: Yes | D7: IntegerPosInput1 | E7: 10
A8: varBenefit | B8: B | D8: IntegerPosCalc | E8: 3200
A9: varCost | B9: C | D9: PctPosCalc | E9: 0.2
A10: varEquation | B10: E | D10: PctPosInput | E10: 0.01 | F10: 0.01
A11: varHeader | B11: H | D11: CurrencyIntegerPosInput | E11: 5 | F11: 6
A12: varOriginal | B12: O | D12: CurrencyIntegerPosInput1 | E12: 1000
A13: varRisk | B13: R | D13: CurrencyDecimalPosInput | E13: 5 | F13: 6
A14: varSummary | B14: S
A15: varTotal | B15: T | D15: CurrencyIntegerCalc | E15: 5
A16: varAnnual | B16: A | D16: CurrencyDecimalCalc | E16: 6.12
A17: varROI | B17: ROI | D17: CurrencyTotalCalc | E17: 28000
A18: varIRR | B18: IRR
A19: varPayback | B19: Pb
A20: varChart | B20: Chart
A21: varTitle | B21: Title
A22: varDesc | B22: Desc
A23: varInput | B23: Inp
A24: varCalculation | B24: Calc
A25: varRunningTotal | B25: Rt
A26: varDistribution | B26: Di
A27: varBegin | B27: +
A28: varEnd | B28: -
A29: varPrimeInput | B29: 0
A30: varLevel1 | B30: 0
A31: varLevel2 | B31: 5
A32: varLevel3 | B32: 10
A33: varLevel4 | B33: 20
A34: varWSReportTemplate | B34: =#REF! -> 
A35: varWSReportTemplateCol | B35: =#REF! -> 
A36: varWSReport | B36: =#REF! -> 
A37: varBenefitsIT | B37: IT
A38: varBenefitsBusiness | B38: Business
A39: varBenefitsHelpDesk | B39: Help Desk
A40: varOPEX | B40: OPEX
A41: varCAPEX | B41: CAPEX
A42: varExpand | B42: +
A43: varContract | B43: -
A44: varPageBreak | B44: PageBreak
A45: varChangeMade | B45: TRUE
A46: varChangeMadeSummary | B46: TRUE
A47: varToolTitle | B47: Cisco Access Switching ROI Calculator
A49: varGotoSheetsAll | B49: =Energy!AC2 -> TRUE | C49: =Security!AC2 -> TRUE | D49: =HA!AC2 -> TRUE | E49: =SMART!AC2 -> TRUE | F49: =MTNO!AC2 -> TRUE | G49: =Refresh!AC2 -> TRUE
A50: Energy | B50: Security | C50: High Availability | D50: SMART Operations | E50: Monitoring and Network Optimization | F50: Refresh Cycles | G50: Refresh Cycles
A51: varYears | B51: 5
A53: Display row and column headings | B53: No
A54: Display worksheet tabs | B54: No
A55: Display gridlines | B55: No
A56: Protect sheets | B56: Yes
A57: Hide benefit columns (Q on) | B57: No
A58: Contract/Expand benefits on reset | B58: No
A59: Contract all equations on reset | B59: Yes
A60: Enable On Error | B60: Yes
A61: First column to hide | B61: Q
A62: Developer mode | B62: No
A64: RiskPoints | B64: Low | C64: Medium | D64: High | E64: None
B66: Type 1 | C66: Type 2 | D66: Type 3
A67: Argentina Peso (ARS) | B67: 1 | C67: -1 | D67: 1
A68: Australian Dollar (AUD) | B68: 1 | C68: -1 | D68: -1
A69: Brazil Reais (BRL) | B69: 1 | C69: -1 | D69: 1
A70: Canadian Dollar (CAD) | B70: 1 | C70: -1 | D70: 1
A71: China Yuan (CNY) | B71: 1 | C71: -1 | D71: 1
A72: Czech Republic Koruny (CZK) | B72: 1 | C72: -1 | D72: 1
A73: Euro (EUR) | B73: 1 | C73: -1 | D73: 1
A74: Hong Kong Dollar (HKD) | B74: 1 | C74: -1 | D74: 1
A75: India Rupee (INR) | B75: 1 | C75: -1 | D75: 1
A76: Indonesia Rupiah (IDR) | B76: 1 | C76: -1 | D76: 1
A77: Israel New Shekels (ILS) | B77: 1 | C77: -1 | D77: 1
A78: Japanese Yen (JPY) | B78: 1 | C78: -1 | D78: 1
A79: Malaysia Ringgit (MYR) | B79: 1 | C79: -1 | D79: 1
A80: Mexico Peso (MXN) | B80: 1 | C80: -1 | D80: 1
A81: Poland Zlotych (PLN) | B81: 1 | C81: -1 | D81: 1
A82: Russian Ruble (RUB) | B82: 1 | C82: -1 | D82: 1
A83: Singapore Dollar (SGD) | B83: 1 | C83: -1 | D83: 1
A84: South Korea Won (KRW) | B84: 1 | C84: -1 | D84: 1
A85: Sweden Krona (SEK) | B85: 1 | C85: -1 | D85: 1
A86: Switzerland Franc (CHF) | B86: 1 | C86: -1 | D86: 1
A87: Taiwan New Dollar (TWD) | B87: 1 | C87: -1 | D87: 1
A88: Thailand Baht (THB) | B88: 1 | C88: -1 | D88: 1
A89: United Kingdom Pound (GPB) | B89: 1 | C89: -1 | D89: 1
A90: US Dollar (USD) | B90: 1 | C90: -1 | D90: 1
A92: varExchangeRateLast | B92: 1
A94: Color of Cost, Benefit in summary chart

Sheet ForrTemplates
B1: Category | E1: 0 | F1: 1 | L1: PV | N1: PctTotal | R1: ColH | S1: ColHSub | T1: DisplayLevel | U1: Desc | V1: ITBU | W1: CAPOPEX | X1: InputAdr | Y1: CurrencyRange | Z1: InpValue | AA1: UsableSheet | AB1: VisibleSheet | AC1: FirstVisit | AD1: FirstCell
AA2: FALSE
R4: =varBenefit&varSummary&varEquation&varOriginal -> BSEO | S4: =ForrBeginChar -> + | T4: -1
B5: =CONCATENATE("Cash Flows - ", $AG$2) -> Cash Flows - | N5: Breakdown
B6: Category | E6: Initial | F6: Year 1 | G6: Year 2 | H6: Year 3 | I6: Year 4 | J6: Year 5 | K6: Total | L6: Present Value | N6: % Total | O6: CAPEX | P6: OPEX | R6: =varBenefit&varSummary&varTitle -> BSTitle
K7: =SUM(E7:J7) -> 0 | L7: =E7+NPV(varDiscountRate,F7:J7) -> 0 | N7: =IF(L8=0,"----",L7/L8) -> ---- | O7: =IF(W7=varCAPEX,L7,"") ->  | P7: =IF(W7=varOPEX,L7,"") ->  | R7: =varBenefit&varSummary&varEquation&varOriginal -> BSEO | Y7: =CONCATENATE(CELL("address",F7),":",CELL("address",L7),",",CELL("address",O7),":",CELL("address",P7)) -> $F$7:$L$7,$O$7:$P$7
B8: Total | O8: =SUM(O7:O7) -> 0 | P8: =SUM(P7:P7) -> 0 | R8: =varBenefit&varSummary&varEquation&varOriginal&varTotal -> BSEOT | Y8: =CONCATENATE(CELL("address",F8),":",CELL("address",L8),",",CELL("address",O8),":",CELL("address",P8)) -> $F$8:$L$8,$O$8:$P$8
B9: ="Confidence adjustment (" & varConfidenceLevel &")" -> Confidence adjustment (Low) | E9: =IF(R9=varBenefit,varRiskB,varRiskC) -> 0.8333333333 | R9: =varBenefit -> B
B10: Total (Risk Adjusted) | E10: =E8*$E9 -> 0 | F10: 0 | G10: 0 | H10: 0 | I10: 0 | J10: 0 | K10: =SUM(E10:J10) -> 0 | L10: =E10+NPV(varDiscountRate,F10:J10) -> 0 | O10: =O8*E9 -> 0 | P10: =P8*E9 -> 0 | R10: =varBenefit&varSummary&varEquation&varRisk&varTotal -> BSERT | Y10: =CONCATENATE(CELL("address",F10),":",CELL("address",L10),",",CELL("address",O10),":",CELL("address",P10)) -> $F$10:$L$10,$O$10:$P$10
R11: =varBenefit&varSummary&varEquation&varOriginal -> BSEO | S11: =ForrEndChar -> - | T11: -1
R12: =varCost&varSummary&varEquation&varOriginal -> CSEO | S12: =ForrBeginChar -> + | T12: -1
B13: =CONCATENATE("Cash Flows - ", $AG$2) -> Cash Flows - | N13: Breakdown
B14: Category | E14: =IF(R14=varBenefit&varSummary&varTitle,"","Initial") -> Initial | F14: Year 1 | G14: Year 2 | H14: Year 3 | I14: Year 4 | J14: Year 5 | K14: Total | L14: Present Value | N14: % Total | O14: CAPEX | P14: OPEX | R14: =varCost&varSummary&varTitle -> CSTitle
K15: =SUM(E15:J15) -> 0 | L15: =E15+NPV(varDiscountRate,F15:J15) -> 0 | N15: =IF(L16=0,"----",L15/L16) -> ---- | O15: =IF(W15=varCAPEX,L15,"") ->  | P15: =IF(W15=varOPEX,L15,"") ->  | R15: =varCost&varSummary&varEquation&varOriginal -> CSEO | Y15: =CONCATENATE(CELL("address",E15),":",CELL("address",L15)) -> $E$15:$L$15
B16: Total | E16: =IF(E14<>"",SUM(E15:E15),"") -> 0 | O16: =SUM(O15:O15) -> 0 | P16: =SUM(P15:P15) -> 0 | R16: =varCost&varSummary&varEquation&varOriginal&varTotal -> CSEOT | Y16: =CONCATENATE(CELL("address",E16),":",CELL("address",L16)) -> $E$16:$L$16
B17: ="Confidence adjustment (" & varConfidenceLevel &")" -> Confidence adjustment (Low) | E17: =IF(R17=varBenefit,varRiskB,varRiskC) -> 1.083333333 | R17: =varCost -> C
B18: Total (Risk Adjusted) | E18: =E16*$E17 -> 0 | F18: 0 | G18: 0 | H18: 0 | I18: 0 | J18: 0 | K18: =SUM(E18:J18) -> 0 | L18: =E18+NPV(varDiscountRate,F18:J18) -> 0 | O18: =O16*E17 -> 0 | P18: =P16*E17 -> 0 | R18: =varCost&varSummary&varEquation&varRisk&varTotal -> CSERT | Y18: =CONCATENATE(CELL("address",E18),":",CELL("address",L18)) -> $E$18:$L$18
R19: =varCost&varSummary&varEquation&varOriginal -> CSEO | S19: =ForrEndChar -> - | T19: -1
R20: =varBenefit&varSummary&varEquation&varRisk&varTotal -> BSERT | S20: =ForrBeginChar -> + | T20: -1
B21: Total Cash Flows - Benefits | N21: Breakdown
B22: Category | E22: =IF(R22=varBenefit,"","Initial") -> Initial | F22: Year 1 | G22: Year 2 | H22: Year 3 | I22: Year 4 | J22: Year 5 | K22: Total | L22: Present Value | N22: % Total | O22: CAPEX | P22: OPEX
N23: =IF(L24=0,"----",L23/L24) -> ---- | R23: =varBenefit&varSummary&varEquation&varRisk&varTotal -> BSERT | Y23: =CONCATENATE(CELL("address",F23),":",CELL("address",L23),",",CELL("address",O23),":",CELL("address",P23)) -> $F$23:$L$23,$O$23:$P$23
B24: Total (Risk Adjusted) | O24: =SUM(O22:O23) -> 0 | P24: =SUM(P22:P23) -> 0 | R24: =varBenefit&varSummary&varEquation&varRisk&varTotal&varTotal -> BSERTT | Y24: =CONCATENATE(CELL("address",F24),":",CELL("address",L24),",",CELL("address",O24),":",CELL("address",P24)) -> $F$24:$L$24,$O$24:$P$24
R25: =varBenefit&varSummary&varEquation&varRisk&varTotal -> BSERT | S25: =ForrEndChar -> - | T25: -1
R26: =varCost&varSummary&varEquation&varRisk&varTotal -> CSERT | S26: =ForrBeginChar -> + | T26: -1
B27: Total Cash Flows - Costs | N27: Breakdown
B28: Category | E28: =IF(R28=varBenefit,"","Initial") -> Initial | F28: Year 1 | G28: Year 2 | H28: Year 3 | I28: Year 4 | J28: Year 5 | K28: Total | L28: Present Value | N28: % Total | O28: CAPEX | P28: OPEX
N29: =IF(L30=0,"----",L29/L30) -> ---- | R29: =varCost&varSummary&varEquation&varRisk&varTotal -> CSERT | Y29: =CONCATENATE(CELL("address",E29),":",CELL("address",L29)) -> $E$29:$L$29
B30: ="Total ("&IF(ISERROR(FIND(varOriginal,R26,1))=FALSE,"Original","Risk Adjusted")&")" -> Total (Risk Adjusted) | O30: =SUM(O28:O29) -> 0 | P30: =SUM(P28:P29) -> 0 | R30: =varCost&varSummary&varEquation&varRisk&varTotal&varTotal -> CSERTT | Y30: =CONCATENATE(CELL("address",E30),":",CELL("address",L30)) -> $E$30:$L$30
R31: =varCost&varSummary&varEquation&varRisk&varTotal -> CSERT | S31: =ForrEndChar -> - | T31: -1
R33: =varTotal&varSummary&varEquation&varRisk -> TSER | S33: =ForrBeginChar -> + | T33: -1
B34: Total Cash Flows
B35: Category | E35: Initial | F35: Year 1 | G35: Year 2 | H35: Year 3 | I35: Year 4 | J35: Year 5 | K35: Total | L35: Present Value
B36: Total Costs | R36: =varTotal&varCost&varTotal&varSummary&varEquation&varRisk&varTotal -> TCTSERT | Y36: =CONCATENATE(CELL("address",E36),":",CELL("address",L36)) -> $E$36:$L$36
B37: Total Benefits | R37: =varTotal&varBenefit&varTotal&varSummary&varEquation&varRisk&varTotal -> TBTSERT | Y37: =CONCATENATE(CELL("address",F37),":",CELL("address",L37)) -> $F$37:$L$37
B38: ="Total ("&IF(ISERROR(FIND(varOriginal,R33,1))=FALSE,"Original","Risk Adjusted")&")" -> Total (Risk Adjusted) | E38: =SUM(E36:E37) -> 0 | F38: 0 | G38: 0 | H38: 0 | I38: 0 | J38: 0 | K38: 0 | L38: 0 | R38: =varTotal&varSummary&varEquation&varRisk -> TSER | Y38: =CONCATENATE(CELL("address",E38),":",CELL("address",L38)) -> $E$38:$L$38
B39: Running Total | E39: =SUM($E38:E38) -> 0 | F39: =SUM($E38:F38) -> 0 | G39: =SUM($E38:G38) -> 0 | H39: =SUM($E38:H38) -> 0 | I39: =SUM($E38:I38) -> 0 | J39: =SUM($E38:J38) -> 0 | R39: =varTotal&varRunningTotal -> TRt | Y39: =CONCATENATE(CELL("address",E39),":",CELL("address",J39)) -> $E$39:$J$39
B40: ROI | L40: =IF(L36<>0,L38/ABS(L36),0) -> 0 | R40: =varTotal&varROI -> TROI
B41: Payback Period (months) | F41: =IF(AND(F39>=0,E39<0,MIN(G39:$J39)>=0),(ABS(E39)/F38)*12,0) -> 0 | G41: =IF(AND(G39>=0,F39<0,MIN(H39:$J39)>=0),((COLUMN()-COLUMN($F41))+(ABS(F39)/G38))*12,0) -> 0 | H41: =IF(AND(H39>=0,G39<0,MIN(I39:$J39)>=0),((COLUMN()-COLUMN($F41))+(ABS(G39)/H38))*12,0) -> 0 | I41: =IF(AND(I39>=0,H39<0,MIN(J39:$J39)>=0),((COLUMN()-COLUMN($F41))+(ABS(H39)/I38))*12,0) -> 0 | J41: =IF(AND(J39>=0,I39<0,MIN($J39:K39)>=0),((COLUMN()-COLUMN($F41))+(ABS(I39)/J38))*12,0) -> 0 | L41: =IF(MIN(E39:J39)>=0,0,IF(MAX(F41:J41)>0,ROUNDUP(MAX(F41:J41),0),"> "&(varYears*12))) -> 0 | R41: =varTotal&varPayback -> TPb
R42: =varTotal&varSummary&varEquation&varRisk -> TSER | S42: =ForrEndChar -> - | T42: -1
R44: =varTotal&varOPEX -> TOPEX | S44: =ForrBeginChar -> + | T44: -1
B45: Total Operating Expenses | N45: Breakdown
B46: Category | E46: =IF(R46=varBenefit,"","Initial") -> Initial | F46: Year 1 | G46: Year 2 | H46: Year 3 | I46: Year 4 | J46: Year 5 | K46: Total | L46: Present Value | N46: % Total | O46: CAPEX | P46: OPEX
B47: Energy and Power | F47: =Energy!G41 -> 125925 | G47: =F47 -> 125925 | H47: =F47 -> 125925 | I47: =F47 -> 125925 | J47: =F47 -> 125925 | K47: =SUM(F47:I47) -> 503700 | L47: =NPV(varDiscountRate,F47:J47) -> 477354.8239 | N47: =IF($L$61=0,"----",L47/$L$61) -> ---- | P47: =Costs!$P$40 -> 0 | T47: 1 | Y47: =CONCATENATE(CELL("address",E47),":",CELL("address",L47)) -> $E$47:$L$47
B48: ="Total ("&IF(ISERROR(FIND(varOriginal,R44,1))=FALSE,"Original","Risk Adjusted")&")" -> Total (Original) | E48: =SUM(E47:E47) -> 0 | F48: 125925 | G48: 125925 | H48: 125925 | I48: 125925 | J48: 125925 | K48: 503700 | L48: 477354.8239 | O48: =SUM(O46:O47) -> 0 | P48: =SUM(P46:P47) -> 0 | Y48: =CONCATENATE(CELL("address",E48),":",CELL("address",L48)) -> $E$48:$L$48
R49: =varTotal&varOPEX -> TOPEX | S49: =ForrEndChar -> - | T49: -1
R51: =varBenefit&varSummary&varAnnual&ForrBeginChar -> BSA+ | T51: -1
B52: ="Potential Annual Cash Flows - "&#REF! -> 
B53: Category | E53: Annual Cash Flow | G53: % | H53: Year 3 | I53: Year 4 | J53: Year 5 | K53: =varBenefitsIT -> IT | L53: =varBenefitsBusiness -> Business | M53: =varBenefitsHelpDesk -> Help Desk
K54: =IF(T54=varBenefitsIT,E54,"") ->  | L54: =IF(T54=varBenefitsBusiness,E54,"") ->  | M54: =IF(T54=varBenefitsHelpDesk,E54,"") ->  | R54: =varBenefit&varSummary&varAnnual -> BSA
B55: Total (Annual) | R55: =varBenefit&varSummary&varAnnual&varTotal -> BSAT
R56: =varBenefit&varSummary&varAnnual&ForrEndChar -> BSA- | T56: -1
B58: Costs | K58: Calculation | L58: Value / Total | R58: A1
R59: A2
R61: A3
R62: A4
R63: A5
A66: This header below has clickNext and clickBack
R67: =varHeader&1 -> H1 | S67: =ForrBeginChar -> + | T67: -1
C68: =varToolTitle -> Cisco Access Switching ROI Calculator | P68: Key:
P69: Input
C70: =$AG$2 -> 0 | P70: Suggested
P71: Calculated
R72: =varHeader&1 -> H1 | S72: =ForrEndChar -> - | T72: -1
A73: This header below has clickNextVisible and clickBackVisible
R74: =varHeader&2 -> H2 | S74: =ForrBeginChar -> + | T74: -1
C75: =varToolTitle -> Cisco Access Switching ROI Calculator | P75: Key:
P76: Input
C77: =$AG$2 -> 0 | P77: Suggested
I78: Select Service Benefits | P78: Calculated
R79: =varHeader&2 -> H2 | S79: =ForrEndChar -> - | T79: -1
A80: This is for Settings, Instructions, Methodlogy
R81: =varHeader&3 -> H3 | S81: =ForrBeginChar -> + | T81: -1
C82: =varToolTitle -> Cisco Access Switching ROI Calculator | P82: Key:
P83: Input
C84: =$AG$2 -> 0 | P84: Suggested
P85: Calculated
R86: =varHeader&3 -> H3 | S86: =ForrEndChar -> - | T86: -1
